Workbook

Sheet TUTORIAL
C1: SIMULADOR DE APOIO À COBRANÇA - BACIA DO DOCE
C7: INSTRUÇÕES PARA O USO
C9: Este simulador é composto de um arquivo Excel com 08 planilhas, sendo 02 aparentes e 06 de suporte à simulação dos dados. Esta planiha faz uma breve apresentação do sistema. Na planilha SIMULADOR os dados serão fornecidos e poderão ser alterados para efeito de novas simulações. A Deliberação CBH-Doce nº 26, de 31 de março de 2011 dispôs sobre mecanismos e valores de cobrança pelo uso de recursos hídricos na bacia hidrográfica do rio Doce, sugerindo valores de cobrança pelo uso destes recursos e pela metodologia sugerida neste trabalho para o caso de lançamento, conforme discriminado abaixo:
E10: Tipo de Uso | F10: Unidade | G10: Valor
G11: 2011/2012 | H11: 2013 | I11: 2014 | J11: 2015
E12: Captação de Água Superficial | F12: R$/m³ | G12: 0.018 | H12: 0.021 | I12: 0.024 | J12: 0.03
E13: Lançamento de Carga Orgânica | F13: R$/hab | G13: 1.564 | H13: 1.825 | I13: 2.086 | J13: 2.607
E14: Transposição de Água | F14: R$/m³ | G14: 0.022 | H14: 0.027 | I14: 0.031 | J14: 0.04
C16: Para o setor industrial, além da evolução dos preços públicos, foi adotado a proposta estabelecida neste trabalho, além de simulações considerando a metodologia proposta neste trabalho, criando-se diferentes cenários, assim definidos:
C17: Cenário 1: Valor da arrecadação pela cobrança dos recursos hídricos para cada usuário outorgado no domínio da União (ANA) e estadual (IGAM e IEMA), atualmente praticada, ou seja com o valor de Kcap igual a unidade.
C18: Cenário 2: Valor da arrecadação pela cobrança dos recursos hídricos para cada usuário outorgado no domínio da União (ANA) e estadual (IGAM e IEMA), de acordo com a proposta que considera o consumo, sendo este função da tipologia de atividade econômica. Considerou-se o limite inferior do consumo apresentado na Matriz de Coeficientes Técnicos (MMA, 2011), ou seja, o menor valor do FPUA_seg proposto
C19: Cenário 3: Valor da arrecadação pela cobrança dos recursos hídricos para cada usuário outorgado no domínio da União (ANA) e estadual (IGAM e IEMA), de acordo com a proposta que considera o consumo, sendo este função da tipologia de atividade econômica. Considerou-se o limite superior do consumo apresentado na Matriz de Coeficientes Técnicos (MMA, 2011), ou seja, o maior valor do FPUA_seg proposto.
C20: Cenário 4: Valor da arrecadação pela cobrança dos recursos hídricos para cada usuário outorgado no domínio da União (ANA) e estadual (IGAM e IEMA), de acordo com a proposta que considera as práticas de uso e conservação da água no setor industrial, ou seja, a captação de água de chuva e o reuso, juntamente com o consumo, sendo este função da tipologia de atividade econômica. Considerou-se o limite inferior do consumo apresentado na Matriz de Coeficientes Técnicos (MMA, 2011), ou seja, o menor valor do FPUA_seg proposto. Nesse caso o Kcap é a multiplicação do Kt e FPUA_seg.
C21: Cenário 5: Valor da arrecadação pela cobrança dos recursos hídricos para cada usuário outorgado no domínio da União (ANA) e estadual (IGAM e IEMA), de acordo com a proposta que considera as práticas de uso e conservação da água no setor industrial, ou seja, a captação de água de chuva e o reuso, juntamente com o consumo, sendo este função da tipologia de atividade econômica. Considerou-se o limite inferior do consumo apresentado na Matriz de Coeficientes Técnicos (MMA, 2011), ou seja, o maior valor do FPUA_seg proposto. Nesse caso o Kcap é a multiplicação do Kt e FPUA_seg.
C22: Obs: O fator de segurança refere-se ao nível de inadiplência previsto e deve ser informado em percentual.

Sheet SIMULADOR
B2: PREÇO PÚBLICO | E2: Fator de Segurança
B3: Captação | C3: Lançamento | D3: Transposição
B4: 0.021 | C4: 1.825 | D4: 0.027 | E4: 0
B7: Selecione o Cenários da Indústria a ser utilizado na simulação
C8: Cenário 1 | D8: Cenário 2 | E8: Cenário 3 | F8: Cenário 4 | G8: Cenário 5
B9: Descrição | C9: Atual | D9: FPua Mínimo | E9: FPua Máximo | F9: Fpua Mín e Kt | G9: Fpua Máx e Kt
B10: Arrecadação | C10: ='Base de dados Indústria'!M14 -> 14930130.73 | D10: ='Base de dados Indústria'!N14 -> 13247586.01 | E10: ='Base de dados Indústria'!O14 -> 15589077.95 | F10: ='Base de dados Indústria'!P14 -> 12021861.42 | G10: ='Base de dados Indústria'!Q14 -> 13873573.55
A13: VALORES ARRECADADOS NA BACIA DO RIO DOCE
B16: SUB-BACIA | C16: TIPO DE USO | G16: SUB-BACIA | H16: SETORES
C17: Captação | D17: Lançamento | E17: Transposição | H17: Indústria | J17: Irrigação | K17: Saneamento
B18: TOTAL | C18: =SUM(C19:C25) -> 21183308.95 | D18: =SUM(D19:D25) -> 5158678.108 | E18: =SUM(E19:E25) -> 4683096 | G18: TOTAL | H18: =SUM(H19:H25) -> 14930130.73 | J18: =SUM(J19:J25) -> 1079415.378 | K18: =SUM(K19:K25) -> 10332440.95
B19: DO1 | C19: ='Base de dados Indústria'!E20+'Base de dados Irrigação'!G6+'Base de Dados Saneamento'!F5 -> 2459269.877 | D19: ='Base de Dados Saneamento'!G5 -> 1078254.335 | E19: 0 | H19: ='Base de dados Indústria'!E20 -> 1461119.053 | J19: ='Base de dados Irrigação'!G6 -> 38538.04928 | K19: ='Base de Dados Saneamento'!F5+'Base de Dados Saneamento'!G5 -> 2037867.11
B20: DO2 | C20: ='Base de dados Indústria'!E21+'Base de dados Irrigação'!G7+'Base de Dados Saneamento'!F6 -> 8880416.666 | D20: ='Base de Dados Saneamento'!G6 -> 2162324.449 | E20: 0 | G20: DO2 | H20: ='Base de dados Indústria'!E21 -> 6731132.546 | J20: ='Base de dados Irrigação'!G7 -> 25179.07091 | K20: ='Base de Dados Saneamento'!F6+'Base de Dados Saneamento'!G6 -> 4286429.498
B21: DO3 | C21: ='Base de dados Indústria'!E22+'Base de dados Irrigação'!G8+'Base de Dados Saneamento'!F7 -> 2027706.678 | D21: ='Base de Dados Saneamento'!G7 -> 360040.5699 | E21: 0 | G21: DO3 | H21: ='Base de dados Indústria'!E22 -> 1683162.37 | J21: ='Base de dados Irrigação'!G8 -> 4032.497212 | K21: ='Base de Dados Saneamento'!F7+'Base de Dados Saneamento'!G7 -> 700552.3809
B22: DO4 | C22: ='Base de dados Indústria'!E23+'Base de dados Irrigação'!G9+'Base de Dados Saneamento'!F8 -> 1140094.221 | D22: ='Base de Dados Saneamento'!G8 -> 952201.4284 | E22: 0 | G22: DO4 | H22: ='Base de dados Indústria'!E23 -> 97314.98614 | J22: ='Base de dados Irrigação'!G9 -> 14353.65638 | K22: ='Base de Dados Saneamento'!F8+'Base de Dados Saneamento'!G8 -> 1980627.007
B23: DO5 | C23: ='Base de dados Indústria'!E24+'Base de dados Irrigação'!G10+'Base de Dados Saneamento'!F9 -> 276166.7124 | D23: ='Base de Dados Saneamento'!G9 -> 124586.9976 | E23: 0 | G23: DO5 | H23: ='Base de dados Indústria'!E24 -> 21028.25086 | J23: ='Base de dados Irrigação'!G10 -> 33394.40401 | K23: ='Base de Dados Saneamento'!F9+'Base de Dados Saneamento'!G9 -> 346331.0552
B24: DO6 | C24: ='Base de dados Indústria'!E25+'Base de dados Irrigação'!G11+'Base de Dados Saneamento'!F10 -> 262175.671 | D24: ='Base de Dados Saneamento'!G10 -> 113326.0945 | E24: 0 | G24: DO6 | H24: ='Base de dados Indústria'!E25 -> 11500.93088 | J24: ='Base de dados Irrigação'!G11 -> 64932.00786 | K24: ='Base de Dados Saneamento'!F10+'Base de Dados Saneamento'!G10 -> 299068.8268
B25: DO-ES | C25: ='Base de dados Indústria'!E26+'Base de dados Irrigação'!G12+'Base de Dados Saneamento'!F11 -> 6137479.121 | D25: ='Base de Dados Saneamento'!G11 -> 367944.234 | E25: ='Base de dados Indústria'!I155*D4*IF(ISBLANK(E4),1,IF(E4=0,1,1-E4)) -> 4683096 | G25: DO-ES | H25: ='Base de dados Indústria'!E26 -> 4924872.59 | J25: ='Base de dados Irrigação'!G12 -> 898985.6921 | K25: ='Base de Dados Saneamento'!F11+'Base de Dados Saneamento'!G11 -> 681565.0731
B28: SUB-BACIA | C28: DOMINIALIDADE | E28: Total | G28: IMPACTO SOBRE USUÁRIOS | J28: RECURSOS PARA CUSTEIO
C29: Estadual | D29: Federal | H29: INDÚSTRIA | J29: Custeio Total | K29: =(J18+K18+'Base de dados Indústria'!M14+E25)*0.075 -> 2326881.229
B30: TOTAL | C30: =SUM(C31:C37) -> 20084086.27 | D30: =SUM(D31:D38) -> 6257900.789 | E30: =SUM(C18:D18) -> 26341987.06 | G30: Receita | H30: =(H18+E25)/'Receita e Custo Ind.'!E4 -> 0.001064463835 | J30: Custeio Estadual | K30: =('Base de dados Indústria'!C14+'Base de dados Irrigação'!G13+'Base de Dados Saneamento'!B12+'Base de Dados Saneamento'!D12)*0.075 -> 1506306.47
B31: DO1 | C31: ='Base de dados Indústria'!C20+'Base de dados Irrigação'!G6+'Base de Dados Saneamento'!B5+'Base de Dados Saneamento'!D5 -> 3533182.608 | D31: ='Base de dados Indústria'!D20+'Base de Dados Saneamento'!C5+'Base de Dados Saneamento'!E5 -> 4341.60384 | E31: =SUM(H19:K19) -> 3537524.212 | G31: Custo | H31: =(H18+E25)/'Receita e Custo Ind.'!F4 -> 0.001065196131 | J31: Custeio Federal | K31: =K29-K30 -> 820574.7592
B32: DO2 | C32: ='Base de dados Indústria'!C21+'Base de dados Irrigação'!G7+'Base de Dados Saneamento'!B6+'Base de Dados Saneamento'!D6 -> 6795421.222 | D32: ='Base de dados Indústria'!D21+'Base de Dados Saneamento'!C6+'Base de Dados Saneamento'!E6 -> 4247319.893 | E32: 11042741.11 | H32: IRRIGAÇÃO
B33: DO3 | C33: ='Base de dados Indústria'!C22+'Base de dados Irrigação'!G8+'Base de Dados Saneamento'!B7+'Base de Dados Saneamento'!D7 -> 2385454.602 | D33: ='Base de dados Indústria'!D22+'Base de Dados Saneamento'!C7+'Base de Dados Saneamento'!E7 -> 2292.6456 | E33: 2387747.248 | G33: Receita | H33: =J18/'Receita e Custo Irrig.'!F4 -> 0.001079078156
B34: DO4 | C34: ='Base de dados Indústria'!C23+'Base de dados Irrigação'!G9+'Base de Dados Saneamento'!B8+'Base de Dados Saneamento'!D8 -> 720986.6547 | D34: ='Base de dados Indústria'!D23+'Base de Dados Saneamento'!C8+'Base de Dados Saneamento'!E8 -> 1371308.995 | E34: 2092295.65 | G34: Custo | H34: =J18/'Receita e Custo Irrig.'!E4 -> 0.001564345367
B35: DO5 | C35: ='Base de dados Indústria'!C24+'Base de dados Irrigação'!G10+'Base de Dados Saneamento'!B9+'Base de Dados Saneamento'!D9 -> 380938.9501 | D35: ='Base de dados Indústria'!D24+'Base de Dados Saneamento'!C9+'Base de Dados Saneamento'!E9 -> 19814.76 | E35: 400753.7101 | H35: SANEAMENTO
B36: DO6 | C36: ='Base de dados Indústria'!C25+'Base de dados Irrigação'!G11+'Base de Dados Saneamento'!B10+'Base de Dados Saneamento'!D10 -> 370164.1473 | D36: ='Base de dados Indústria'!D25+'Base de Dados Saneamento'!C10+'Base de Dados Saneamento'!E10 -> 5337.618237 | E36: 375501.7656 | G36: Receita | H36: =K18/'Receita e Custo. San.'!D3 -> 0.02946998197
B37: DO-ES | C37: ='Base de dados Indústria'!C26+'Base de dados Irrigação'!G12+'Base de Dados Saneamento'!B11+'Base de Dados Saneamento'!D11 -> 5897938.082 | D37: ='Base de dados Indústria'!D26+'Base de Dados Saneamento'!C11+'Base de Dados Saneamento'!E11 -> 607485.2736 | E37: 6505423.355 | G37: Custo | H37: =K18/'Receita e Custo. San.'!E3 -> 0.02928897856

Sheet Base de dados Indústria
C4: Rótulos de Coluna
C5: Soma de Arrecadação Atual | E5: Soma de Arrecadação_mín | G5: Soma de Arrecadação_máx | I5: Soma de Arrecadação Kt e FPua Mín. | K5: Soma de Arrecadação Kt e FPua Máx. | M5: Total Soma de Arrecadação Atual | N5: Total Soma de Arrecadação_mín | O5: Total Soma de Arrecadação_máx | P5: Total Soma de Arrecadação Kt e FPua Mín. | Q5: Total Soma de Arrecadação Kt e FPua Máx.
B6: Rótulos de Linha | C6: Estadual | D6: Federal | E6: Estadual | F6: Federal | G6: Estadual | H6: Federal | I6: Estadual | J6: Federal | K6: Estadual | L6: Federal
B7: DO1 | C7: 1456777.449 | D7: 4341.60384 | E7: 1247851.932 | F7: 1582.8624 | G7: 1980587.933 | H7: 1775.8944 | I7: 1018382.909 | J7: 1582.8624 | K7: 1597244.351 | L7: 1775.8944 | M7: 1461119.053 | N7: 1249434.794 | O7: 1982363.828 | P7: 1019965.772 | Q7: 1599020.245
B8: DO2 | C8: 4430308.118 | D8: 2300824.428 | E8: 3824305.769 | F8: 1818101.492 | G8: 4528481.087 | H8: 1818382.22 | I8: 3119904.774 | J8: 1691468.025 | K8: 3677650.025 | L8: 1691748.753 | M8: 6731132.546 | N8: 5642407.261 | O8: 6346863.307 | P8: 4811372.8 | Q8: 5369398.778
B9: DO3 | C9: 1680869.724 | D9: 2292.6456 | E9: 1350258.198 | F9: 60.7194 | G9: 2246425.372 | H9: 60.7194 | I9: 1104508.952 | J9: 60.7194 | K9: 1811741.279 | L9: 60.7194 | M9: 1683162.37 | N9: 1350318.917 | O9: 2246486.091 | P9: 1104569.671 | Q9: 1811801.999
B10: DO4 | C10: 39672.07018 | D10: 57642.91596 | E10: 34200.40301 | F10: 52309.9085 | G10: 34508.07359 | H10: 55216.89482 | I10: 34740.72881 | J10: 52345.72526 | K10: 34508.07359 | L10: 55252.71158 | M10: 97314.98614 | N10: 86510.31151 | O10: 89724.96841 | P10: 87086.45407 | Q10: 89760.78517
B11: DO5 | C11: 1213.490859 | D11: 19814.76 | E11: 1002.550332 | F11: 22541.1984 | G11: 1002.550332 | H11: 24809.1984 | I11: 1353.838332 | J11: 22541.1984 | K11: 1353.838332 | L11: 24809.1984 | M11: 21028.25086 | N11: 23543.74873 | O11: 25811.74873 | P11: 23895.03673 | Q11: 26163.03673
B12: DO6 | C12: 6163.312638 | D12: 5337.618237 | E12: 4532.092267 | F12: 1311.785798 | G12: 4867.790656 | H12: 1444.908326 | I12: 4862.736427 | J12: 5499.800195 | K12: 5198.434816 | L12: 5632.922723 | M12: 11500.93088 | N12: 5843.878066 | O12: 6312.698982 | P12: 10362.53662 | Q12: 10831.35754
B13: DO-ES | C13: 4896388.79 | D13: 28483.80024 | E13: 4865964.219 | F13: 23562.88015 | G13: 4866113.227 | H13: 25402.07695 | I13: 4935328.913 | J13: 29280.23599 | K13: 4935477.921 | L13: 31119.43279 | M13: 4924872.59 | N13: 4889527.1 | O13: 4891515.304 | P13: 4964609.149 | Q13: 4966597.353
B14: Total geral | C14: 12511392.96 | D14: 2418737.772 | E14: 11328115.16 | F14: 1919470.847 | G14: 13661986.03 | H14: 1927091.912 | I14: 10219082.85 | J14: 1802778.567 | K14: 12063173.92 | L14: 1810399.633 | M14: 14930130.73 | N14: 13247586.01 | O14: 15589077.95 | P14: 12021861.42 | Q14: 13873573.55
C16: Cenário Escolhido | D16: 1
C18: DOMINIALIDADE
C19: Estadual | D19: Federal | E19: Total
C20: =IF($D$16=1,C7,IF($D$16=2,E7,IF($D$16=3,G7,IF($D$16=4,I7,IF($D$16=5,K7,0))))) -> 1456777.449 | D20: =IF($D$16=1,D7,IF($D$16=2,F7,IF($D$16=3,H7,IF($D$16=4,J7,IF($D$16=5,L7,0))))) -> 4341.60384 | E20: =D20+C20 -> 1461119.053
C21: =IF($D$16=1,C8,IF($D$16=2,E8,IF($D$16=3,G8,IF($D$16=4,I8,IF($D$16=5,K8,0))))) -> 4430308.118 | D21: 2300824.428 | E21: =D21+C21 -> 6731132.546
C22: =IF($D$16=1,C9,IF($D$16=2,E9,IF($D$16=3,G9,IF($D$16=4,I9,IF($D$16=5,K9,0))))) -> 1680869.724 | D22: 2292.6456 | E22: 1683162.37
C23: =IF($D$16=1,C10,IF($D$16=2,E10,IF($D$16=3,G10,IF($D$16=4,I10,IF($D$16=5,K10,0))))) -> 39672.07018 | D23: 57642.91596 | E23: 97314.98614
C24: =IF($D$16=1,C11,IF($D$16=2,E11,IF($D$16=3,G11,IF($D$16=4,I11,IF($D$16=5,K11,0))))) -> 1213.490859 | D24: 19814.76 | E24: 21028.25086
C25: =IF($D$16=1,C12,IF($D$16=2,E12,IF($D$16=3,G12,IF($D$16=4,I12,IF($D$16=5,K12,0))))) -> 6163.312638 | D25: 5337.618237 | E25: 11500.93088
C26: =IF($D$16=1,C13,IF($D$16=2,E13,IF($D$16=3,G13,IF($D$16=4,I13,IF($D$16=5,K13,0))))) -> 4896388.79 | D26: 28483.80024 | E26: 4924872.59
C27: =IF($D$16=1,C14,IF($D$16=2,E14,IF($D$16=3,G14,IF($D$16=4,I14,IF($D$16=5,K14,0))))) -> 12511392.96 | D27: 2418737.772 | E27: 14930130.73
A29: PPU Captação
A30: =SIMULADOR!B4*IF(ISBLANK(SIMULADOR!$E$4),1,IF(SIMULADOR!$E$4=0,1,1-SIMULADOR!$E$4)) -> 0.021
A31: Orgão Gestor | B31: Municipio | C31: Razão Social | D31: Domínio | E31: UF | F31: Domínio 1.0 | G31: UPGRH | H31: UPGRH 1.0 | I31: Q TRANSPOSIÇÃO | J31: Q Captação (m³/ano) | K31: Finalidade | L31: CNAE - Classe | M31: FPUA_Seg mín | N31: FPUA_Seg max | O31: % reuso | P31: Kreuso | Q31: Kchuva | R31: Kt | S31: Arrecadação_mín | T31: Arrecadação_máx | U31: Arrecadação Atual | V31: Arrecadação Kt e FPua Mín. | W31: Arrecadação Kt e FPua Máx.
A32: IEMA | B32: AFONSO CLÁUDIO | C32: ARNËBIO TEIXEIRA | D32: Estadual | E32: Espírito Santo | F32: =IF(D32="estadual",E32,D32) -> Espírito Santo | G32: Guandu | H32: DO-ES | J32: 37843.2 | K32: Indústria | R32: 1 | U32: =J32*A$30 -> 794.7072 | V32: =R32*IF(ISBLANK(S32),U32,S32) -> 794.7072 | W32: =R32*IF(ISBLANK(T32),U32,T32) -> 794.7072
A33: IEMA | B33: AFONSO CLÁUDIO | C33: AUGUSTO REETZ | D33: Estadual | E33: Espírito Santo | F33: Espírito Santo | G33: Guandu | H33: DO-ES | J33: 15768 | K33: Indústria | R33: 1 | U33: 331.128 | V33: =R33*IF(ISBLANK(S33),U33,S33) -> 331.128 | W33: =R33*IF(ISBLANK(T33),U33,T33) -> 331.128
A34: IEMA | B34: AFONSO CLÁUDIO | C34: DAIDE DAVEL DELPUPO | D34: Estadual | E34: Espírito Santo | F34: Espírito Santo | G34: Guandu | H34: DO-ES | J34: 26805.6 | K34: Indústria | R34: 1 | U34: 562.9176 | V34: 562.9176 | W34: 562.9176
A35: IEMA | B35: AFONSO CLÁUDIO | C35: DEIDSON DELPUPO | D35: Estadual | E35: Espírito Santo | F35: Espírito Santo | G35: Guandu | H35: DO-ES | J35: 43519.68 | K35: Indústria | R35: 1 | U35: 913.91328 | V35: 913.91328 | W35: 913.91328
A36: IEMA | B36: AFONSO CLÁUDIO | C36: F.M MINERAÃ├O LTDA ME | D36: Estadual | E36: Espírito Santo | F36: Espírito Santo | G36: Guandu | H36: DO-ES | J36: 47304 | K36: Indústria | L36: 0810-0 - EXTRAÇÃO DE PEDRA, AREIA E ARGILA | M36: 1.23 | N36: 1.38 | R36: 1 | S36: =M36*$A$30*J36 -> 1221.86232 | T36: =$A$30*N36*J36 -> 1370.86992 | U36: 993.384 | V36: 1221.86232 | W36: 1370.86992
A37: IEMA | B37: AFONSO CLÁUDIO | C37: JO├O TURRA NUNES | D37: Estadual | E37: Espírito Santo | F37: Espírito Santo | G37: Guandu | H37: DO-ES | J37: 69379.2 | K37: Indústria | R37: 1 | U37: 1456.9632 | V37: 1456.9632 | W37: 1456.9632
A38: IEMA | B38: AFONSO CLÁUDIO | C38: JOEL DE VARGAS | D38: Estadual | E38: Espírito Santo | F38: Espírito Santo | G38: Guandu | H38: DO-ES | J38: 63072 | K38: Indústria | R38: 1 | U38: 1324.512 | V38: 1324.512 | W38: 1324.512
A39: IEMA | B39: AFONSO CLÁUDIO | C39: JORGE LUIZ DIAS DA SILVA | D39: Estadual | E39: Espírito Santo | F39: Espírito Santo | G39: Guandu | H39: DO-ES | J39: 47304 | K39: Indústria | R39: 1 | U39: 993.384 | V39: 993.384 | W39: 993.384
A40: IEMA | B40: AFONSO CLÁUDIO | C40: JOS╔ SERGIO HADDAD FAF┴ | D40: Estadual | E40: Espírito Santo | F40: Espírito Santo | G40: Guandu | H40: DO-ES | J40: 15768 | K40: Indústria | R40: 1 | U40: 331.128 | V40: 331.128 | W40: 331.128
A41: IEMA | B41: AFONSO CLÁUDIO | C41: JOSE BARBOSA | D41: Estadual | E41: Espírito Santo | F41: Espírito Santo | G41: Guandu | H41: DO-ES | J41: 34689.6 | K41: Indústria | R41: 1 | U41: 728.4816 | V41: 728.4816 | W41: 728.4816
A42: IEMA | B42: AFONSO CLÁUDIO | C42: M┴RIO C╔SAR DELATORRE | D42: Estadual | E42: Espírito Santo | F42: Espírito Santo | G42: Guandu | H42: DO-ES | J42: 63072 | K42: Indústria | R42: 1 | U42: 1324.512 | V42: 1324.512 | W42: 1324.512
A43: IEMA | B43: AFONSO CLÁUDIO | C43: MARCIO EUT═MEO VICENTE | D43: Estadual | E43: Espírito Santo | F43: Espírito Santo | G43: Guandu | H43: DO-ES | J43: 129297.6 | K43: Indústria | R43: 1 | U43: 2715.2496 | V43: 2715.2496 | W43: 2715.2496
A44: IEMA | B44: AFONSO CLÁUDIO | C44: PAULO ROBERTO DIAS SOARES | D44: Estadual | E44: Espírito Santo | F44: Espírito Santo | G44: Guandu | H44: DO-ES | J44: 220752 | K44: Indústria | R44: 1 | U44: 4635.792 | V44: 4635.792 | W44: 4635.792
A45: IEMA | B45: AFONSO CLÁUDIO | C45: RODOLFO FERREIRA KIEFFER | D45: Estadual | E45: Espírito Santo | F45: Espírito Santo | G45: Guandu | H45: DO-ES | J45: 43519.68 | K45: Indústria | R45: 1 | U45: 913.91328 | V45: 913.91328 | W45: 913.91328
A46: IEMA | B46: AFONSO CLÁUDIO | C46: SEBASTI├O DE VARGAS COUTINHO | D46: Estadual | E46: Espírito Santo | F46: Espírito Santo | G46: Guandu | H46: DO-ES | J46: 40996.8 | K46: Indústria | R46: 1 | U46: 860.9328 | V46: 860.9328 | W46: 860.9328
A47: IEMA | B47: AFONSO CLÁUDIO | C47: VALTER JOS╔DE VARGAS | D47: Estadual | E47: Espírito Santo | F47: Espírito Santo | G47: Guandu | H47: DO-ES | J47: 94608 | K47: Indústria | R47: 1 | U47: 1986.768 | V47: 1986.768 | W47: 1986.768
A48: IEMA | B48: ÁGUIA BRANCA | C48: LATICINIOS REZENDE LTDA - ME | D48: Estadual | E48: Espírito Santo | F48: Espírito Santo | G48: São José | H48: DO-ES | J48: 11037.6 | K48: Indústria | L48: 1052-0 - FABRICAÇÃO DE LATICÍNIOS | M48: 0.7 | N48: 0.7 | R48: 1 | S48: =M48*$A$30*J48 -> 162.25272 | T48: =$A$30*N48*J48 -> 162.25272 | U48: 231.7896 | V48: 162.25272 | W48: 162.25272
A49: IEMA | B49: ÁGUIA BRANCA | C49: MINERAÃ├O PANCIERI LTDA | D49: Estadual | E49: Espírito Santo | F49: Espírito Santo | G49: São José | H49: DO-ES | J49: 122990.4 | K49: Indústria | L49: 2391-5 - APARELHAMENTO E OUTROS TRABALHOS EM PEDRAS | M49: 0.84 | N49: 0.84 | R49: 1 | S49: =M49*$A$30*J49 -> 2169.550656 | T49: =$A$30*N49*J49 -> 2169.550656 | U49: 2582.7984 | V49: 2169.550656 | W49: 2169.550656
A50: IGAM | B50: Aimorés | C50: DIAS E SIQUEIRA COMERCIAL LTDA | D50: Estadual | E50: Minas Gerais | F50: Minas Gerais | G50: DO6 | H50: DO6 | J50: 21960 | K50: Indústria | L50: 1011-2 - ABATE DE RESES, EXCETO SUÍNOS | M50: 0.79 | N50: 0.79 | R50: 1 | S50: =M50*J50*$A$30 -> 364.3164 | T50: =J50*N50*$A$30 -> 364.3164 | U50: 461.16 | V50: 364.3164 | W50: 364.3164
A51: ANA | B51: Aimorés | C51: BONICENHA LOCADORA LTDA ME | D51: Federal | E51: Minas Gerais | F51: Federal | G51: DO6 | H51: DO6 | J51: 84480 | K51: Extração de Areia | R51: 1 | U51: 1774.08 | V51: 1774.08 | W51: 1774.08
A52: IGAM | B52: Antônio Dias | C52: PETRA MINERAÇÃO COMÉRCIO E EXPORTAÇÃO LTDA | D52: Estadual | E52: Minas Gerais | F52: Minas Gerais | G52: DO2 | H52: DO2 | J52: 158111.999 | K52: Indústria | L52: 0899-1 - EXTRAÇÃO DE MINERAIS NÃO-METÁLICOS NÃO ESPECIFICADOS ANTERIORMENTE | M52: 0.84 | N52: 0.84 | R52: 1 | S52: =$A$30*M52*J52 -> 2789.095662 | T52: =$A$30*N52*J52 -> 2789.095662 | U52: 3320.351979 | V52: 2789.095662 | W52: 2789.095662
A53: IGAM | B53: Antônio Dias | C53: ALEXANDRITA MINERAÇÃO COMÉRCIO E EXPORTAÇÃO LTDA | D53: Estadual | E53: Minas Gerais | F53: Minas Gerais | G53: DO2 | H53: DO2 | J53: 60756 | K53: Mineração | R53: 1 | U53: 1275.876 | V53: 1275.876 | W53: 1275.876
A54: ANA | B54: Antônio Dias | C54: CELULOSE NIPO-BRASILEIRA S.A - CENIBRA | D54: Federal | E54: Minas Gerais | F54: Federal | G54: DO2 | H54: DO2 | J54: 109451448 | K54: Indústria | L54: 1710-9 - FABRICAÇÃO DE CELULOSE E OUTRAS PASTAS PARA A FABRICAÇÃO DE PAPEL | M54: 0.79 | N54: 0.79 | O54: 28 | P54: 0.1 | Q54: 0 | R54: 0.93 | S54: =$A$30*M54*J54 -> 1815799.522 | T54: =$A$30*N54*J54 -> 1815799.522 | U54: 2298480.408 | V54: 1688693.556 | W54: 1688693.556
A55: ANA | B55: Baixo Guandu | C55: CAPIXABA COUROS LTDA | D55: Federal | E55: Espírito Santo | F55: Federal | G55: Guandu | H55: DO-ES | J55: 0 | K55: Indústria | L55: 1510-6 - CURTIMENTO E OUTRAS PREPARAÇÕES DE COURO | M55: 0.7 | N55: 0.7 | R55: 1 | S55: =M55*$A$30*J55 -> 0 | T55: =$A$30*N55*J55 -> 0 | U55: 0 | V55: 0 | W55: 0
A56: IEMA | B56: BAIXO GUANDÚ | C56: CAPIXABA COUROS LTDA | D56: Estadual | E56: Espírito Santo | F56: Espírito Santo | G56: Guandu | H56: DO-ES | J56: 220752 | K56: Indústria | L56: 1510-6 - CURTIMENTO E OUTRAS PREPARAÇÕES DE COURO | M56: 0.7 | N56: 0.7 | R56: 1 | S56: =M56*$A$30*J56 -> 3245.0544 | T56: =$A$30*N56*J56 -> 3245.0544 | U56: 4635.792 | V56: 3245.0544 | W56: 3245.0544
A57: IGAM | B57: Barão de Cocais | C57: VALE S/A | D57: Estadual | E57: Minas Gerais | F57: Minas Gerais | G57: DO2 | H57: DO2 | J57: 9395366.4 | K57: Mineração | L57: 0710-3 - EXTRAÇÃO DE MINÉRIO DE FERRO | M57: 0.82 | N57: 1.37 | O57: 73 - 80 | P57: 0.3 | Q57: 0 | R57: 0.79 | S57: =$A$30*M57*J57 -> 161788.2094 | T57: =$A$30*N57*J57 -> 270304.6913 | U57: 197302.6944 | V57: 127812.6854 | W57: 213540.7061
A58: IGAM | B58: Barão de Cocais | C58: GERDAU AÇOS LONGOS S/A | D58: Estadual | E58: Minas Gerais | F58: Minas Gerais | G58: DO2 | H58: DO2 | J58: 3952800 | K58: Indústria | L58: 2423-7 - PRODUÇÃO DE LAMINADOS LONGOS DE AÇO | M58: 0.88 | N58: 0.88 | O58: 97 | P58: 0.3 | Q58: 0 | R58: 0.79 | S58: =$A$30*M58*J58 -> 73047.744 | T58: =$A$30*N58*J58 -> 73047.744 | U58: 83008.8 | V58: 57707.71776 | W58: 57707.71776
A59: IGAM | B59: Belo Oriente | C59: ANACLETO JOSÉ BAIÃO | D59: Estadual | E59: Minas Gerais | F59: Minas Gerais | G59: DO3 | H59: DO3 | J59: 3660 | K59: Indústria | R59: 1 | U59: 76.86 | V59: 76.86 | W59: 76.86
A60: IGAM | B60: Belo Oriente | C60: MÁRMORES E GRANITOS DO VALE LTDA | D60: Estadual | E60: Minas Gerais | F60: Minas Gerais | G60: DO3 | H60: DO3 | J60: 8564.399 | K60: Indústria | R60: 1 | U60: 179.852379 | V60: 179.852379 | W60: 179.852379
A61: ANA | B61: Belo Oriente | C61: Ione Ferreira Alves Ramos | D61: Federal | E61: Minas Gerais | F61: Federal | G61: DO3 | H61: DO3 | J61: 32313.6 | K61: Extração de Areia | R61: 1 | S61: =$A$30*J61*M61 -> 0 | T61: =$A$30*N61*J61 -> 0 | U61: 678.5856 | V61: 0 | W61: 0
A62: IEMA | B62: BREJETUBA | C62: ANDREA VIVACQUA | D62: Estadual | E62: Espírito Santo | F62: Espírito Santo | G62: Guandu | H62: DO-ES | J62: 31536 | K62: Indústria | R62: 1 | U62: 662.256 | V62: 662.256 | W62: 662.256
A63: IEMA | B63: BREJETUBA | C63: ANGEO MARCOS ULIANA | D63: Estadual | E63: Espírito Santo | F63: Espírito Santo | G63: Guandu | H63: DO-ES | J63: 15768 | K63: Indústria | R63: 1 | U63: 331.128 | V63: 331.128 | W63: 331.128
A64: IEMA | B64: BREJETUBA | C64: ANTÈNIO MARINO RONCETE | D64: Estadual | E64: Espírito Santo | F64: Espírito Santo | G64: Guandu | H64: DO-ES | J64: 15768 | K64: Indústria | R64: 1 | U64: 331.128 | V64: 331.128 | W64: 331.128
A65: IEMA | B65: BREJETUBA | C65: ANTÈNIO ZUCON SOBRINHO | D65: Estadual | E65: Espírito Santo | F65: Espírito Santo | G65: Guandu | H65: DO-ES | J65: 31536 | K65: Indústria | R65: 1 | U65: 662.256 | V65: 662.256 | W65: 662.256
A66: IEMA | B66: BREJETUBA | C66: ASSSOCIAÃ├O DE PRODUTORES E MORADORS DE BEJAUBINHA | D66: Estadual | E66: Espírito Santo | F66: Espírito Santo | G66: Guandu | H66: DO-ES | J66: 31536 | K66: Indústria | R66: 1 | U66: 662.256 | V66: 662.256 | W66: 662.256
A67: IEMA | B67: BREJETUBA | C67: BELLARMINO ULYANA | D67: Estadual | E67: Espírito Santo | F67: Espírito Santo | G67: Guandu | H67: DO-ES | J67: 132451.2 | K67: Indústria | R67: 1 | U67: 2781.4752 | V67: 2781.4752 | W67: 2781.4752
A68: IEMA | B68: BREJETUBA | C68: C╔RGIO ADALBERTO CÈCO E IRM├OS | D68: Estadual | E68: Espírito Santo | F68: Espírito Santo | G68: Guandu | H68: DO-ES | J68: 10406.88 | K68: Indústria | R68: 1 | U68: 218.54448 | V68: 218.54448 | W68: 218.54448
A69: IEMA | B69: BREJETUBA | C69: HENRIQUE DUFFLES TEIXEIRA LOTT COCO | D69: Estadual | E69: Espírito Santo | F69: Espírito Santo | G69: Guandu | H69: DO-ES | J69: 274363.2 | K69: Indústria | R69: 1 | U69: 5761.6272 | V69: 5761.6272 | W69: 5761.6272
A70: IEMA | B70: BREJETUBA | C70: JOSE FORTUNATO GIOVANI | D70: Estadual | E70: Espírito Santo | F70: Espírito Santo | G70: Guandu | H70: DO-ES | J70: 15768 | K70: Indústria | R70: 1 | U70: 331.128 | V70: 331.128 | W70: 331.128
A71: IEMA | B71: BREJETUBA | C71: JUC╔RIO CÈCO | D71: Estadual | E71: Espírito Santo | F71: Espírito Santo | G71: Guandu | H71: DO-ES | J71: 31536 | K71: Indústria | R71: 1 | U71: 662.256 | V71: 662.256 | W71: 662.256
A72: IEMA | B72: BREJETUBA | C72: MOACYR P┴GIO | D72: Estadual | E72: Espírito Santo | F72: Espírito Santo | G72: Guandu | H72: DO-ES | J72: 15768 | K72: Indústria | R72: 1 | U72: 331.128 | V72: 331.128 | W72: 331.128
A73: IEMA | B73: BREJETUBA | C73: SEBASTI├O FRANCISCO FILHO | D73: Estadual | E73: Espírito Santo | F73: Espírito Santo | G73: Guandu | H73: DO-ES | J73: 15768 | K73: Indústria | R73: 1 | U73: 331.128 | V73: 331.128 | W73: 331.128
A74: IGAM | B74: Caranaíba | C74: Cimento Tupi S.A | D74: Estadual | E74: Minas Gerais | F74: Minas Gerais | G74: DO1 | H74: DO1 | J74: 4428600 | K74: Indústria | L74: 2320-6 - FABRICAÇÃO DE CIMENTO | M74: 1.4 | N74: 1.4 | R74: 1 | S74: =M74*$A$30*J74 -> 130200.84 | T74: =$A$30*N74*J74 -> 130200.84 | U74: 93000.6 | V74: 130200.84 | W74: 130200.84
A75: IGAM | B75: Caratinga | C75: CENTRALBETON LTDA | D75: Estadual | E75: Minas Gerais | F75: Minas Gerais | G75: DO5 | H75: DO5 | J75: 15000 | K75: Indústria | R75: 1 | U75: 315 | V75: 315 | W75: 315
A76: IGAM | B76: Caratinga | C76: FRICAL ALIMENTOS LTDA | D76: Estadual | E76: Minas Gerais | F76: Minas Gerais | G76: DO5 | H76: DO5 | J76: 15966.719 | K76: Indústria | L76: 1011-2 - ABATE DE RESES, EXCETO SUÍNOS | M76: 0.79 | N76: 0.79 | R76: 1 | S76: =M76*J76*$A$30 -> 264.8878682 | T76: =N76*$A$30*J76 -> 264.8878682 | U76: 335.301099 | V76: 264.8878682 | W76: 264.8878682
A77: IGAM | B77: Caratinga | C77: AREAL JACUTINGA LTDA ME | D77: Estadual | E77: Minas Gerais | F77: Minas Gerais | G77: DO5 | H77: DO5 | J77: 25090.56 | K77: Mineração | L77: 2330-3 - FABRICAÇÃO DE ARTEFATOS DE CONCRETO, CIMENTO, FIBROCIMENTO, GESSO E MATERIAIS SEMELHANTES | M77: 1.4 | N77: 1.4 | R77: 1 | S77: =M77*J77*$A$30 -> 737.662464 | T77: =N77*$A$30*J77 -> 737.662464 | U77: 526.90176 | V77: 737.662464 | W77: 737.662464
A78: ANA | B78: Caratinga | C78: Areal Naque LTDA - ME | D78: Federal | E78: Minas Gerais | F78: Federal | G78: DO5 | H78: DO5 | J78: 355200 | K78: Extração de Areia | L78: 0810-0 - EXTRAÇÃO DE PEDRA, AREIA E ARGILA | M78: 1.23 | N78: 1.38 | R78: 1 | S78: =M78*J78*$A$30 -> 9174.816 | T78: =N78*$A$30*J78 -> 10293.696 | U78: 7459.2 | V78: 9174.816 | W78: 10293.696
A79: ANA | B79: Caratinga | C79: Empresa Fornecedora de Materiais Ltda - ME | D79: Federal | E79: Minas Gerais | F79: Federal | G79: DO5 | H79: DO5 | J79: 223560 | K79: Extração de Areia | L79: 0899-1 - EXTRAÇÃO DE MINERAIS NÃO-METÁLICOS NÃO ESPECIFICADOS ANTERIORMENTE | M79: 0.84 | N79: 0.84 | R79: 1 | S79: =M79*J79*$A$30 -> 3943.5984 | T79: =N79*$A$30*J79 -> 3943.5984 | U79: 4694.76 | V79: 3943.5984 | W79: 3943.5984
A80: ANA | B80: Caratinga | C80: MARETEX EXTRAÇÃO E COMÉRCIO DE AREIA LTDA | D80: Federal | E80: Minas Gerais | F80: Federal | G80: DO5 | H80: DO5 | J80: 172800 | K80: Extração de Areia | L80: 0810-0 - EXTRAÇÃO DE PEDRA, AREIA E ARGILA | M80: 1.23 | N80: 1.38 | R80: 1 | S80: =M80*J80*$A$30 -> 4463.424 | T80: =N80*$A$30*J80 -> 5007.744 | U80: 3628.8 | V80: 4463.424 | W80: 5007.744
A81: ANA | B81: Colatina | C81: ZACCHE & CIA LTDA. | D81: Federal | E81: Espírito Santo | F81: Federal | G81: São José | H81: DO-ES | J81: 55296 | K81: Extração de Areia | L81: 0810-0 - EXTRAÇÃO DE PEDRA, AREIA E ARGILA | M81: 1.23 | N81: 1.38 | R81: 1 | S81: =M81*$A$30*J81 -> 1428.29568 | T81: =$A$30*N81*J81 -> 1602.47808 | U81: 1161.216 | V81: 1428.29568 | W81: 1602.47808
A82: ANA | B82: Colatina | C82: A C DAL COL ME | D82: Federal | E82: Espírito Santo | F82: Federal | G82: São José | H82: DO-ES | J82: 161280 | K82: Extração de Areia | R82: 1 | U82: 3386.88 | V82: 3386.88 | W82: 3386.88
A83: ANA | B83: Colatina | C83: Frisa Frigorífico Rio Doce S.A | D83: Federal | E83: Espírito Santo | F83: Federal | G83: São José | H83: DO-ES | J83: 184320 | K83: Indústria | L83: 1011-2 - ABATE DE RESES, EXCETO SUÍNOS | M83: 0.79 | N83: 0.79 | R83: 1 | S83: =M83*$A$30*J83 -> 3057.8688 | T83: =$A$30*N83*J83 -> 3057.8688 | U83: 3870.72 | V83: 3057.8688 | W83: 3057.8688
A84: ANA | B84: Colatina | C84: Latícinios Colatina Ltda | D84: Federal | E84: Espírito Santo | F84: Federal | G84: São José | H84: DO-ES | J84: 30390 | K84: Indústria | L84: 1051-1 - PREPARAÇÃO DO LEITE | M84: 0.7 | N84: 0.7 | R84: 1 | S84: =M84*$A$30*J84 -> 446.733 | T84: =$A$30*N84*J84 -> 446.733 | U84: 638.19 | V84: 446.733 | W84: 446.733
A85: ANA | B85: Colatina | C85: Confecções Merpa São Paulo Ltda | D85: Federal | E85: Espírito Santo | F85: Federal | G85: São José | H85: DO-ES | J85: 69300 | K85: Indústria | L85: 1412-6 - CONFECÇÃO DE PEÇAS DE VESTUÁRIO, EXCETO ROUPAS ÍNTIMAS | M85: 0.83 | N85: 0.83 | R85: 1 | S85: =M85*$A$30*J85 -> 1207.899 | T85: =$A$30*N85*J85 -> 1207.899 | U85: 1455.3 | V85: 1207.899 | W85: 1207.899
A86: ANA | B86: Colatina | C86: Larou´s Ind. e Comércio de Confecções Ltda | D86: Federal | E86: Espírito Santo | F86: Federal | G86: São José | H86: DO-ES | J86: 28512 | K86: Indústria | L86: 1412-6 - CONFECÇÃO DE PEÇAS DE VESTUÁRIO, EXCETO ROUPAS ÍNTIMAS | M86: 0.83 | N86: 0.83 | R86: 1 | S86: =M86*$A$30*J86 -> 496.96416 | T86: =$A$30*N86*J86 -> 496.96416 | U86: 598.752 | V86: 496.96416 | W86: 496.96416
A87: ANA | B87: Colatina | C87: Irmãos Gomes da Costa Ltda | D87: Federal | E87: Espírito Santo | F87: Federal | G87: São José | H87: DO-ES | J87: 30240 | K87: Extração de Areia | R87: 1 | U87: 635.04 | V87: 635.04 | W87: 635.04
A88: ANA | B88: Colatina | C88: ARETEC - Extração e Comércio de Areia LTDA - ME | D88: Federal | E88: Espírito Santo | F88: Federal | G88: São José | H88: DO-ES | J88: 103680 | K88: Extração de Areia | L88: 0810-0 - EXTRAÇÃO DE PEDRA, AREIA E ARGILA | M88: 1.23 | N88: 1.38 | R88: 1 | S88: =M88*$A$30*J88 -> 2678.0544 | T88: =$A$30*N88*J88 -> 3004.6464 | U88: 2177.28 | V88: 2678.0544 | W88: 3004.6464
A89: ANA | B89: Colatina | C89: PW BRASIL EXPORT S/A | D89: Federal | E89: Espírito Santo | F89: Federal | G89: São José | H89: DO-ES | J89: 43780 | K89: Indústria | L89: 1412-6 - CONFECÇÃO DE PEÇAS DE VESTUÁRIO, EXCETO ROUPAS ÍNTIMAS | M89: 0.83 | N89: 0.83 | R89: 1 | S89: =M89*$A$30*J89 -> 763.0854 | T89: =$A$30*N89*J89 -> 763.0854 | U89: 919.38 | V89: 763.0854 | W89: 763.0854
A90: ANA | B90: Colatina | C90: Irmãos Nardi Ltda | D90: Federal | E90: Espírito Santo | F90: Federal | G90: São José | H90: DO-ES | J90: 150336 | K90: Extração de Areia | L90: 0810-0 - EXTRAÇÃO DE PEDRA, AREIA E ARGILA | M90: 1.23 | N90: 1.38 | R90: 1 | S90: =M90*$A$30*J90 -> 3883.17888 | T90: =$A$30*N90*J90 -> 4356.73728 | U90: 3157.056 | V90: 3883.17888 | W90: 4356.73728
A91: ANA | B91: Colatina | C91: DOIS IRMÃOS BENEFICIAMENTO DE AREIA LTDA. | D91: Federal | E91: Espírito Santo | F91: Federal | G91: São José | H91: DO-ES | J91: 45000 | K91: Extração de Areia | R91: 1 | U91: 945 | V91: 945 | W91: 945
A92: ANA | B92: Colatina | C92: MINERACAO RIO DOCE LTDA | D92: Federal | E92: Espírito Santo | F92: Federal | G92: São José | H92: DO-ES | J92: 26880 | K92: Extração de Areia | L92: 0810-0 - EXTRAÇÃO DE PEDRA, AREIA E ARGILA | M92: 1.23 | N92: 1.38 | R92: 1 | S92: =M92*$A$30*J92 -> 694.3104 | T92: =$A$30*N92*J92 -> 778.9824 | U92: 564.48 | V92: 694.3104 | W92: 778.9824
A93: ANA | B93: Colatina | C93: M & M INDUSTRIAL LTDA | D93: Federal | E93: Espírito Santo | F93: Federal | G93: São José | H93: DO-ES | J93: 0 | K93: Indústria | L93: 1412-6 - CONFECÇÃO DE PEÇAS DE VESTUÁRIO, EXCETO ROUPAS ÍNTIMAS | M93: 0.83 | N93: 0.83 | R93: 1 | U93: 0 | V93: 0 | W93: 0
A94: ANA | B94: Colatina | C94: FAFUS CONFECÇÕES LTDA | D94: Federal | E94: Espírito Santo | F94: Federal | G94: São José | H94: DO-ES | J94: 0 | K94: Indústria | L94: 1412-6 - CONFECÇÃO DE PEÇAS DE VESTUÁRIO, EXCETO ROUPAS ÍNTIMAS | M94: 0.83 | N94: 0.83 | R94: 1 | U94: 0 | V94: 0 | W94: 0
A95: ANA | B95: Colatina | C95: DIAN CONFECÇÕES LTDA | D95: Federal | E95: Espírito Santo | F95: Federal | G95: São José | H95: DO-ES | J95: 0 | K95: Indústria | L95: 1412-6 - CONFECÇÃO DE PEÇAS DE VESTUÁRIO, EXCETO ROUPAS ÍNTIMAS | M95: 0.83 | N95: 0.83 | R95: 1 | U95: 0 | V95: 0 | W95: 0
A96: ANA | B96: Colatina | C96: C & C Mineração Ltda Me | D96: Federal | E96: Espírito Santo | F96: =IF(D96="estadual",E96,D96) -> Federal | G96: São José | H96: DO-ES | J96: 35735.04 | K96: Extração de Areia | R96: 1 | U96: =J96*A$30 -> 750.43584 | V96: 750.43584 | W96: 750.43584
A97: ANA | B97: Colatina | C97: Ana Mercedes Broetto Giacomin-Me | D97: Federal | E97: Espírito Santo | F97: Federal | G97: São José | H97: DO-ES | J97: 126720 | K97: Extração de Areia | L97: 0810-0 - EXTRAÇÃO DE PEDRA, AREIA E ARGILA | M97: 1.23 | N97: 1.38 | R97: 1 | S97: =M97*$A$30*J97 -> 3273.1776 | T97: =$A$30*N97*J97 -> 3672.3456 | U97: 2661.12 | V97: =R97*IF(ISBLANK(S97),U97,S97) -> 3273.1776 | W97: =R97*IF(ISBLANK(T97),U97,T97) -> 3672.3456
A98: ANA | B98: Colatina | C98: Confecções Mimo S.A. | D98: Federal | E98: Espírito Santo | F98: Federal | G98: São José | H98: DO-ES | J98: 67910.4 | K98: Indústria | L98: 1412-6 - CONFECÇÃO DE PEÇAS DE VESTUÁRIO, EXCETO ROUPAS ÍNTIMAS | M98: 0.83 | N98: 0.83 | R98: 1 | S98: =M98*$A$30*J98 -> 1183.678272 | T98: =$A$30*N98*J98 -> 1183.678272 | U98: 1426.1184 | V98: 1183.678272 | W98: 1183.678272
A99: ANA | B99: Colatina | C99: Togo Confecções Ltda - ME | D99: Federal | E99: Espírito Santo | F99: Federal | G99: São José | H99: DO-ES | J99: 76032 | K99: Indústria | L99: 1412-6 - CONFECÇÃO DE PEÇAS DE VESTUÁRIO, EXCETO ROUPAS ÍNTIMAS | M99: 0.83 | N99: 0.83 | R99: 1 | S99: =M99*$A$30*J99 -> 1325.23776 | T99: =$A$30*N99*J99 -> 1325.23776 | U99: 1596.672 | V99: 1325.23776 | W99: 1325.23776
A100: IEMA | B100: COLATINA | C100: K V MACHADO CONFECÃıES - ME | D100: Estadual | E100: Espírito Santo | F100: Espírito Santo | G100: São José | H100: DO-ES | J100: 611798.4 | K100: Indústria | L100: 1412-6 - CONFECÇÃO DE PEÇAS DE VESTUÁRIO, EXCETO ROUPAS ÍNTIMAS | M100: 0.83 | N100: 0.83 | R100: 1 | S100: =M100*$A$30*J100 -> 10663.64611 | T100: =$A$30*N100*J100 -> 10663.64611 | U100: 12847.7664 | V100: 10663.64611 | W100: 10663.64611
A101: ANA | B101: Conceição de Ipanema | C101: PAPIRE´S MODAS LTDA | D101: Federal | E101: Minas Gerais | F101: Federal | G101: DO6 | H101: DO6 | J101: 9968.64 | K101: Extração de Areia | R101: 1 | U101: 209.34144 | V101: 209.34144 | W101: 209.34144
A102: IGAM | B102: Conceição do Mato Dentro | C102: ANGLO FERROUS MINAS RIO MINERAÇÃO S/A | D102: Estadual | E102: Minas Gerais | F102: Minas Gerais | G102: DO3 | H102: DO3 | J102: 34593924.72 | K102: Mineração | L102: 0710-3 - EXTRAÇÃO DE MINÉRIO DE FERRO | M102: 0.82 | N102: 1.37 | O102: 80 - 90 | P102: 0.3 | Q102: 0 | R102: 0.79 | S102: =$A$30*J102*M102 -> 595707.3837 | T102: =$A$30*N102*J102 -> 995267.2142 | U102: 726472.4191 | V102: 470608.8331 | W102: 786261.0992
A103: IGAM | B103: Conceição do Mato Dentro | C103: NOVA ERA SILICON S/A | D103: Estadual | E103: Minas Gerais | F103: Minas Gerais | G103: DO3 | H103: DO3 | J103: 64355.568 | K103: indústria | L103: 2412-1 - PRODUÇÃO DE FERROLIGAS | M103: 0.84 | N103: 0.84 | R103: 1 | S103: =$A$30*J103*M103 -> 1135.23222 | T103: =$A$30*N103*J103 -> 1135.23222 | U103: 1351.466928 | V103: 1135.23222 | W103: 1135.23222
A104: IGAM | B104: Conceição do Mato Dentro | C104: ODILON SIMÕES FILHO - ME | D104: Estadual | E104: Minas Gerais | F104: Minas Gerais | G104: DO3 | H104: DO3 | J104: 14222.88 | K104: Mineração | R104: 1 | U104: 298.68048 | V104: 298.68048 | W104: 298.68048
A105: IGAM | B105: Conceição do Mato Dentro | C105: REYNALDO COSTA FERREIRA-ME | D105: Estadual | E105: Minas Gerais | F105: Minas Gerais | G105: DO3 | H105: DO3 | J105: 1555200 | K105: Mineração | R105: 1 | U105: 32659.2 | V105: 32659.2 | W105: 32659.2
A106: ANA | B106: Conselheiro Pena | C106: COOPERATIVA MISTA DOS PRODUTORES RURAIS DE CONSELHEIRO PENA - COOPMISTA | D106: Federal | E106: Minas Gerais | F106: Federal | G106: DO4 | H106: DO4 | J106: 153134.4 | K106: Indústria | L106: 1052-0 - FABRICAÇÃO DE LATICÍNIOS | M106: 0.7 | N106: 0.7 | R106: 1 | S106: =M106*$A$30*J106 -> 2251.07568 | T106: =N106*$A$30*J106 -> 2251.07568 | U106: 3215.8224 | V106: 2251.07568 | W106: 2251.07568
A107: IGAM | B107: Coronel Fabriciano | C107: MAGNESITA INSIDER REFRATÁRIOS LTDA | D107: Estadual | E107: Minas Gerais | F107: Minas Gerais | G107: DO2 | H107: DO2 | J107: 7246.8 | K107: Indústria | L107: 2341-9 - FABRICAÇÃO DE PRODUTOS CERÂMICOS REFRATÁRIOS | M107: 0.84 | N107: 0.84 | R107: 1 | S107: =$A$30*M107*J107 -> 127.833552 | T107: =$A$30*N107*J107 -> 127.833552 | U107: 152.1828 | V107: 127.833552 | W107: 127.833552
A108: IGAM | B108: Dores de Guanhães | C108: MONTE SANTO MINERADORA E EXPORTADORA S/A | D108: Estadual | E108: Minas Gerais | F108: Minas Gerais | G108: DO3 | H108: DO3 | J108: 45021.66 | K108: Mineração | L108: 0810-0 - EXTRAÇÃO DE PEDRA, AREIA E ARGILA | M108: 1.23 | N108: 1.38 | R108: 1 | S108: =$A$30*J108*M108 -> 1162.909478 | T108: =$A$30*N108*J108 -> 1304.727707 | U108: 945.45486 | V108: 1162.909478 | W108: 1304.727707
A109: ANA | B109: Galiléia | C109: ANA MARIA DA FONSECA SANTOS | D109: Federal | E109: Minas Gerais | F109: Federal | G109: DO4 | H109: DO4 | J109: 1705.56 | K109: Extração de Areia | R109: 1 | U109: 35.81676 | V109: 35.81676 | W109: 35.81676
A110: IGAM | B110: Governador Valadares | C110: BARBOSA & MARQUES S.A | D110: Estadual | E110: Minas Gerais | F110: Minas Gerais | G110: DO4 | H110: DO4 | J110: 0 | K110: Indústria | L110: 1052-0 - FABRICAÇÃO DE LATICÍNIOS | M110: 0.7 | N110: 0.7 | R110: 1 | S110: =M110*$A$30*J110 -> 0 | T110: =N110*$A$30*J110 -> 0 | U110: 0 | V110: 0 | W110: 0
A111: IGAM | B111: Governador Valadares | C111: Mafrial Matadouro e Frigorífico Ltda. | D111: Estadual | E111: Minas Gerais | F111: Minas Gerais | G111: DO4 | H111: DO4 | J111: 0 | K111: Indústria | L111: 1011-2 - ABATE DE RESES, EXCETO SUÍNOS | M111: 0.79 | N111: 0.79 | R111: 1 | S111: =M111*$A$30*J111 -> 0 | T111: 0 | U111: 0 | V111: 0 | W111: 0
A112: IGAM | B112: Governador Valadares | C112: LATICINIO BELA VISTA LTDA | D112: Estadual | E112: Minas Gerais | F112: Minas Gerais | G112: DO4 | H112: DO4 | J112: 0 | K112: Indústria | L112: 1052-0 - FABRICAÇÃO DE LATICÍNIOS | M112: 0.7 | N112: 0.7 | R112: 1 | S112: =M112*$A$30*J112 -> 0 | T112: 0 | U112: 0 | V112: 0 | W112: 0
A113: IGAM | B113: Governador Valadares | C113: COMPANHIA DE ALIMENTOS IBITURUNA S/A | D113: Estadual | E113: Minas Gerais | F113: Minas Gerais | G113: DO4 | H113: DO4 | J113: 377456.399 | K113: Indústria | L113: 1052-0 - FABRICAÇÃO DE LATICÍNIOS | M113: 0.7 | N113: 0.7 | R113: 1 | S113: =M113*$A$30*J113 -> 5548.609065 | T113: 5548.609065 | U113: 7926.584379 | V113: 5548.609065 | W113: 5548.609065
A114: IGAM | B114: Governador Valadares | C114: SANTHER - FÁBRICA DE PAPEL SANTA TEREZINHA S/A | D114: Estadual | E114: Minas Gerais | F114: Minas Gerais | G114: DO4 | H114: DO4 | J114: 1465098 | K114: Indústria | L114: 1742-7 - FABRICAÇÃO DE PRODUTOS DE PAPEL PARA USOS DOMÉSTICO E HIGIÊNICO-SANITÁRIO | M114: 0.92 | N114: 0.93 | R114: 1 | S114: =M114*$A$30*J114 -> 28305.69336 | T114: 28613.36394 | U114: 30767.058 | V114: 28305.69336 | W114: 28613.36394
A115: IGAM | B115: Governador Valadares | C115: INDUSTRIAS TUDOR Minas Gerais DE BATERIAS LTDA | D115: Estadual | E115: Minas Gerais | F115: Minas Gerais | G115: DO4 | H115: DO4 | J115: 25729.8 | K115: Indústria | L115: 2722-8 - FABRICAÇÃO DE BATERIAS E ACUMULADORES PARA VEÍCULOS AUTOMOTORES | M115: 0 | N115: 0 | R115: 1 | T115: 0 | U115: 540.3258 | V115: 540.3258 | W115: 0
A116: IGAM | B116: Governador Valadares | C116: MATADOURO SÃO GERALDO LTDA | D116: Estadual | E116: Minas Gerais | F116: Minas Gerais | G116: DO4 | H116: DO4 | J116: 20862 | K116: Indústria | L116: 1011-2 - ABATE DE RESES, EXCETO SUÍNOS | M116: 0.79 | N116: 0.79 | R116: 1 | S116: =M116*$A$30*J116 -> 346.10058 | T116: 346.10058 | U116: 438.102 | V116: 346.10058 | W116: 346.10058
A117: IGAM | B117: Governador Valadares | C117: MATADOURO SÃO GERALDO LTDA | D117: Estadual | E117: Minas Gerais | F117: Minas Gerais | G117: DO4 | H117: DO4 | J117: 0 | K117: Indústria | L117: 1011-2 - ABATE DE RESES, EXCETO SUÍNOS | M117: 0.79 | N117: 0.79 | R117: 1 | S117: 0 | T117: 0 | U117: 0 | V117: 0 | W117: 0
A118: ANA | B118: Governador Valadares | C118: PEDRO GLÓRIA - FIRMA INDIVIDUAL | D118: Federal | E118: Minas Gerais | F118: Federal | G118: DO4 | H118: DO4 | J118: 202752 | K118: Extração de Areia | L118: 0810-0 - EXTRAÇÃO DE PEDRA, AREIA E ARGILA | M118: 1.23 | N118: 1.38 | R118: 1 | S118: 5237.08416 | T118: 5875.75296 | U118: 4257.792 | V118: 5237.08416 | W118: 5875.75296
A119: ANA | B119: Governador Valadares | C119: Colodetti & Lopes Ltda | D119: Federal | E119: Minas Gerais | F119: Federal | G119: DO4 | H119: DO4 | J119: 36864 | K119: Extração de Areia | L119: 0810-0 - EXTRAÇÃO DE PEDRA, AREIA E ARGILA | M119: 1.23 | N119: 1.38 | R119: 1 | S119: 952.19712 | T119: 1068.31872 | U119: 774.144 | V119: 952.19712 | W119: 1068.31872
A120: ANA | B120: Governador Valadares | C120: Areal Mônica Ltda | D120: Federal | E120: Minas Gerais | F120: Federal | G120: DO4 | H120: DO4 | J120: 12672 | K120: Extração de Areia | L120: 0810-0 - EXTRAÇÃO DE PEDRA, AREIA E ARGILA | M120: 1.23 | N120: 1.38 | R120: 1 | S120: 327.31776 | T120: 367.23456 | U120: 266.112 | V120: 327.31776 | W120: 367.23456
A121: ANA | B121: Governador Valadares | C121: Areal Rio Doce LTDA | D121: Federal | E121: Minas Gerais | F121: Federal | G121: DO4 | H121: DO4 | J121: 74880 | K121: Extração de Areia | L121: 0810-0 - EXTRAÇÃO DE PEDRA, AREIA E ARGILA | M121: 1.23 | N121: 1.38 | R121: 1 | S121: 1934.1504 | T121: 2170.0224 | U121: 1572.48 | V121: 1934.1504 | W121: 2170.0224
A122: ANA | B122: Governador Valadares | C122: BARBOSA & MARQUES S.A | D122: Federal | E122: Minas Gerais | F122: Federal | G122: DO4 | H122: DO4 | J122: 292800 | K122: Indústria | L122: 1052-0 - FABRICAÇÃO DE LATICÍNIOS | M122: 0.7 | N122: 0.7 | R122: 1 | S122: 4304.16 | T122: 4304.16 | U122: 6148.8 | V122: 4304.16 | W122: 4304.16
A123: ANA | B123: Governador Valadares | C123: Samuel Santos - ME | D123: Federal | E123: Minas Gerais | F123: Federal | G123: DO4 | H123: DO4 | J123: 64800 | K123: Extração de Areia | L123: 0810-0 - EXTRAÇÃO DE PEDRA, AREIA E ARGILA | M123: 1.23 | N123: 1.38 | R123: 1 | S123: 1673.784 | T123: 1877.904 | U123: 1360.8 | V123: 1673.784 | W123: 1877.904
A124: ANA | B124: Governador Valadares | C124: Areal Torres & Carvalho Ltda | D124: Federal | E124: Minas Gerais | F124: Federal | G124: DO4 | H124: DO4 | J124: 71280 | K124: Extração de Areia | L124: 0810-0 - EXTRAÇÃO DE PEDRA, AREIA E ARGILA | M124: 1.23 | N124: 1.38 | R124: 1 | S124: 1841.1624 | T124: 2065.6944 | U124: 1496.88 | V124: 1841.1624 | W124: 2065.6944
A125: ANA | B125: Governador Valadares | C125: Areal Bela Vista Ltda | D125: Federal | E125: Minas Gerais | F125: Federal | G125: DO4 | H125: DO4 | J125: 92160 | K125: Extração de Areia | L125: 0810-0 - EXTRAÇÃO DE PEDRA, AREIA E ARGILA | M125: 1.23 | N125: 1.38 | R125: 1 | S125: 2380.4928 | T125: 2670.7968 | U125: 1935.36 | V125: 2380.4928 | W125: 2670.7968
A126: ANA | B126: Governador Valadares | C126: ANDERSON EMERICK DE OLIVEIRA | D126: Federal | E126: Minas Gerais | F126: Federal | G126: DO4 | H126: DO4 | J126: 89812.8 | K126: Extração de Areia | L126: 0810-0 - EXTRAÇÃO DE PEDRA, AREIA E ARGILA | M126: 1.23 | N126: 1.38 | R126: 1 | S126: 2319.864624 | T126: 2602.774944 | U126: 1886.0688 | V126: 2319.864624 | W126: 2602.774944
A127: ANA | B127: Governador Valadares | C127: Areal e Material de Construção São Jorge Ltda | D127: Federal | E127: Minas Gerais | F127: Federal | G127: DO4 | H127: DO4 | J127: 202752 | K127: Extração de Areia | L127: 0810-0 - EXTRAÇÃO DE PEDRA, AREIA E ARGILA | M127: 1.23 | N127: 1.38 | R127: 1 | S127: 5237.08416 | T127: 5875.75296 | U127: 4257.792 | V127: 5237.08416 | W127: 5875.75296
A128: ANA | B128: Governador Valadares | C128: LATICINIO BELA VISTA LTDA | D128: Federal | E128: Minas Gerais | F128: Federal | G128: DO4 | H128: DO4 | J128: 221356.8 | K128: Indústria | L128: 1052-0 - FABRICAÇÃO DE LATICÍNIOS | M128: 0.7 | N128: 0.7 | R128: 1 | S128: 3253.94496 | T128: 3253.94496 | U128: 4648.4928 | V128: 3253.94496 | W128: 3253.94496
A129: ANA | B129: Governador Valadares | C129: Mafrial Matadouro e Frigorífico Ltda. | D129: Federal | E129: Minas Gerais | F129: Federal | G129: DO4 | H129: DO4 | J129: 906660 | K129: Indústria | L129: 1011-2 - ABATE DE RESES, EXCETO SUÍNOS | M129: 0.79 | N129: 0.79 | R129: 1 | S129: 15041.4894 | T129: 15041.4894 | U129: 19039.86 | V129: 15041.4894 | W129: 15041.4894
A130: IGAM | B130: Inhapim | C130: Areal Rocha Oliveira Ltda ME | D130: Estadual | E130: Minas Gerais | F130: Minas Gerais | G130: DO5 | H130: DO5 | J130: 1728 | K130: Mineração | R130: 1 | U130: 36.288 | V130: 36.288 | W130: 36.288
A131: ANA | B131: Ipaba | C131: PORTO DE AREIA MAX LTDA - ME | D131: Federal | E131: Minas Gerais | F131: Federal | G131: DO5 | H131: DO5 | J131: 192000 | K131: Extração de Areia | L131: 0810-0 - EXTRAÇÃO DE PEDRA, AREIA E ARGILA | M131: 1.23 | N131: 1.38 | R131: 1 | S131: =M131*J131*$A$30 -> 4959.36 | T131: =N131*$A$30*J131 -> 5564.16 | U131: 4032 | V131: 4959.36 | W131: 5564.16
A132: IGAM | B132: Ipanema | C132: Aterro e Desaterro Três Irmãos | D132: Estadual | E132: Minas Gerais | F132: Minas Gerais | G132: DO6 | H132: DO6 | J132: 0 | K132: Mineração | L132: 0810-0 - EXTRAÇÃO DE PEDRA, AREIA E ARGILA | M132: 1.23 | N132: 1.38 | R132: 1 | S132: =M132*J132*$A$30 -> 0 | T132: =J132*N132*$A$30 -> 0 | U132: 0 | V132: 0 | W132: 0
A133: ANA | B133: Ipanema | C133: Fernando Francisco de Oliveira | D133: Federal | E133: Minas Gerais | F133: Federal | G133: DO6 | H133: DO6 | J133: 17568 | K133: Extração de Areia | R133: 1 | U133: 368.928 | V133: 368.928 | W133: 368.928
A134: ANA | B134: Ipanema | C134: CLAROFILITO SANTA CLARA LTDA | D134: Federal | E134: Minas Gerais | F134: Federal | G134: DO6 | H134: DO6 | J134: 12481.92 | K134: Extração de Areia | L134: 2349-4 - FABRICAÇÃO DE PRODUTOS CERÂMICOS NÃO-REFRATÁRIOS NÃO ESPECIFICADOS ANTERIORMENTE | M134: 0.84 | N134: 0.84 | R134: 1 | S134: =M134*J134*$A$30 -> 220.1810688 | T134: =J134*N134*$A$30 -> 220.1810688 | U134: 262.12032 | V134: 220.1810688 | W134: 220.1810688
A135: ANA | B135: Ipanema | C135: GLEDSMAR ALVES DE CARVALHO | D135: Federal | E135: Minas Gerais | F135: Federal | G135: DO6 | H135: DO6 | J135: 12503.04 | K135: Extração de Areia | L135: 0810-0 - EXTRAÇÃO DE PEDRA, AREIA E ARGILA | M135: 1.23 | N135: 1.38 | R135: 1 | S135: =M135*J135*$A$30 -> 322.9535232 | T135: =J135*N135*$A$30 -> 362.3380992 | U135: 262.56384 | V135: 322.9535232 | W135: 362.3380992
A136: ANA | B136: Ipanema | C136: CARLOS ALVES CALDEIRA | D136: Federal | E136: Minas Gerais | F136: Federal | G136: DO6 | H136: DO6 | J136: 5005.44 | K136: Extração de Areia | R136: 1 | U136: 105.11424 | V136: 105.11424 | W136: 105.11424
A137: ANA | B137: Ipanema | C137: Aterro e Desaterro Três Irmãos | D137: Federal | E137: Minas Gerais | F137: Federal | G137: DO6 | H137: DO6 | J137: 59136 | K137: Extração de Areia | R137: 1 | U137: 1241.856 | V137: 1241.856 | W137: 1241.856
A138: IGAM | B138: Ipatinga | C138: CENTRALBETON LTDA | D138: Estadual | E138: Minas Gerais | F138: Minas Gerais | G138: DO2 | H138: DO2 | J138: 4646.4 | K138: Indústria | R138: 1 | U138: 97.5744 | V138: 97.5744 | W138: 97.5744
A139: IGAM | B139: Ipatinga | C139: CIPALAM INDÚSTRIA E COMÉRCIO DE LAMINADOS LTDA | D139: Estadual | E139: Minas Gerais | F139: Minas Gerais | G139: DO2 | H139: DO2 | J139: 28438.2 | K139: Indústria | L139: 2424-5 - PRODUÇÃO DE RELAMINADOS, TREFILADOS E PERFILADOS DE AÇO | M139: 0.88 | N139: 0.88 | R139: 1 | S139: =$A$30*M139*J139 -> 525.537936 | T139: =$A$30*N139*J139 -> 525.537936 | U139: 597.2022 | V139: 525.537936 | W139: 525.537936
A140: IGAM | B140: Ipatinga | C140: USINAS SIDERÚRGICAS DE MINAS GERAIS S/A | D140: Estadual | E140: Minas Gerais | F140: Minas Gerais | G140: DO2 | H140: DO2 | J140: 95011392 | K140: Indústria | L140: 2422-9 - PRODUÇÃO DE LAMINADOS PLANOS DE AÇO | M140: 0.88 | N140: 0.88 | O140: 93 | P140: 0.3 | Q140: 0 | R140: 0.79 | S140: =$A$30*M140*J140 -> 1755810.524 | T140: 1755810.524 | U140: 1995239.232 | V140: 1387090.314 | W140: 1387090.314
A141: IGAM | B141: Itabira | C141: BELMONT MINERAÇÃO LTDA | D141: Estadual | E141: Minas Gerais | F141: Minas Gerais | G141: DO3 | H141: DO3 | J141: 501566.4 | K141: Mineração | L141: 0893-2 - EXTRAÇÃO DE GEMAS (PEDRAS PRECIOSAS E SEMIPRECIOSAS) | M141: 0.84 | N141: 0.84 | R141: 1 | S141: =$A$30*J141*M141 -> 8847.631296 | T141: 8847.631296 | U141: 10532.8944 | V141: 8847.631296 | W141: 8847.631296
A142: IGAM | B142: Itabira | C142: FRIGORÍFICO MILLENIUM INDÚSTRIA E COMÉRCIO LTDA - EPP | D142: Estadual | E142: Minas Gerais | F142: Minas Gerais | G142: DO3 | H142: DO3 | J142: 19491.839 | K142: Indústria | L142: 1011-2 - ABATE DE RESES, EXCETO SUÍNOS | M142: 0.79 | N142: 0.79 | R142: 1 | S142: =$A$30*J142*M142 -> 323.369609 | T142: 323.369609 | U142: 409.328619 | V142: 323.369609 | W142: 323.369609
A143: IGAM | B143: Itabira | C143: VALE S/A | D143: Estadual | E143: Minas Gerais | F143: Minas Gerais | G143: DO3 | H143: DO3 | J143: 29323444.2 | K143: Mineração | L143: 0710-3 - EXTRAÇÃO DE MINÉRIO DE FERRO | M143: 0.82 | N143: 1.37 | O143: 78 - 80 | P143: 0.3 | Q143: 0 | R143: 0.79 | S143: =$A$30*J143*M143 -> 504949.7091 | T143: 843635.4896 | U143: 615792.3282 | V143: 398910.2702 | W143: 666472.0368
A144: IGAM | B144: Itabira | C144: VALE S/A | D144: Estadual | E144: Minas Gerais | F144: Minas Gerais | G144: DO3 | H144: DO3 | J144: 13660584 | K144: Mineração | L144: 0710-3 - EXTRAÇÃO DE MINÉRIO DE FERRO | M144: 0.82 | N144: 1.37 | O144: 79 - 80 | P144: 0.3 | Q144: 0 | R144: 0.79 | S144: =$A$30*J144*M144 -> 235235.2565 | T144: 393015.0017 | U144: 286872.264 | V144: 185835.8526 | W144: 310481.8513
A145: IGAM | B145: Itabirito/Santa Barbara | C145: MINERAÇÃO SERRAS DO OESTE | D145: Estadual | E145: Minas Gerais | F145: Minas Gerais | G145: DO2 | H145: DO2 | J145: 800149.2 | K145: Mineração | L145: 0724-3 - EXTRAÇÃO DE MINÉRIO DE METAIS PRECIOSOS | M145: 0.95 | N145: 1.36 | R145: 1 | S145: =$A$30*M145*J145 -> 15962.97654 | T145: 22852.26115 | U145: 16803.1332 | V145: 15962.97654 | W145: 22852.26115
A146: IEMA | B146: ITAGUAÇÚ | C146: ZILDA ANTONIA SARNAGLIA | D146: Estadual | E146: Espírito Santo | F146: Espírito Santo | G146: DO-ES | H146: DO-ES | J146: 113529.6 | K146: Indústria | R146: 1 | U146: 2384.1216 | V146: 2384.1216 | W146: 2384.1216
A147: IEMA | B147: ITARANA | C147: JERRY ADRIANY DELBONI | D147: Estadual | E147: Espírito Santo | F147: Espírito Santo | G147: DO-ES | H147: DO-ES | J147: 9460.8 | K147: Indústria | R147: 1 | U147: 198.6768 | V147: 198.6768 | W147: 198.6768
A148: IGAM | B148: Jaguaraçu | C148: MATADOURO E FRIGORÍFICO PALADAR LTDA | D148: Estadual | E148: Minas Gerais | F148: Minas Gerais | G148: DO2 | H148: DO2 | J148: 0 | K148: Indústria | L148: 1013-9 - FABRICAÇÃO DE PRODUTOS DE CARNE | M148: 0.79 | N148: 0.79 | R148: 1 | S148: =$A$30*M148*J148 -> 0 | T148: =$A$30*N148*J148 -> 0 | U148: 0 | V148: 0 | W148: 0
A149: IEMA | B149: JAGUARÉ | C149: ARACRUZ CELULOSE SA | D149: Estadual | E149: Espírito Santo | F149: Espírito Santo | G149: São José | H149: DO-ES | J149: 0 | K149: Indústria | R149: 1 | U149: 0 | V149: 0 | W149: 0
A150: IEMA | B150: JAGUARÉ | C150: CALIXTO DAGOSTINI | D150: Estadual | E150: Espírito Santo | F150: Espírito Santo | G150: São José | H150: DO-ES | J150: 0 | K150: Indústria | R150: 1 | U150: 0 | V150: 0 | W150: 0
A151: IGAM | B151: João Monlevade | C151: ARCELOR MITTAL BRASIL S/A | D151: Estadual | E151: Minas Gerais | F151: Minas Gerais | G151: DO2 | H151: DO2 | J151: 28143936 | K151: Indústria | L151: 2423-7 - PRODUÇÃO DE LAMINADOS LONGOS DE AÇO | M151: 0.88 | N151: 0.88 | O151: 93 - 98 | P151: 0 | Q151: 0 | R151: 0.79 | S151: =$A$30*M151*J151 -> 520099.9373 | T151: =$A$30*N151*J151 -> 520099.9373 | U151: 591022.656 | V151: 410878.9505 | W151: 410878.9505
A152: IEMA | B152: LARANJA DA TERRA | C152: CERAMICA MODELO LTDA - ME | D152: Estadual | E152: Espírito Santo | F152: Espírito Santo | G152: Guandu | H152: DO-ES | J152: 59287.68 | K152: Indústria | L152: 2342-7 - FABRICAÇÃO DE PRODUTOS CERÂMICOS NÃO-REFRATÁRIOS PARA USO ESTRUTURAL NA CONSTRUÇÃO | M152: 0.84 | N152: 0.84 | R152: 1 | S152: =M152*$A$30*J152 -> 1045.834675 | T152: =$A$30*N152*J152 -> 1045.834675 | U152: 1245.04128 | V152: 1045.834675 | W152: 1045.834675
A153: ANA | B153: Linhares | C153: Arebrita Santa Luzia Ltda | D153: Federal | E153: Espírito Santo | F153: Federal | G153: São José | H153: DO-ES | J153: 120960 | K153: Extração de Areia | L153: 0810-0 - EXTRAÇÃO DE PEDRA, AREIA E ARGILA | M153: 1.23 | N153: 1.38 | R153: 1 | S153: =M153*$A$30*J153 -> 3124.3968 | T153: =$A$30*N153*J153 -> 3505.4208 | U153: 2540.16 | V153: 3124.3968 | W153: 3505.4208
A154: ANA | B154: Linhares | C154: Laticínios Limilk LTDA EPP | D154: Federal | E154: Espírito Santo | F154: Federal | G154: São José | H154: DO-ES | J154: 0 | K154: Indústria | L154: 1052-0 - FABRICAÇÃO DE LATICÍNIOS | M154: 0.7 | N154: 0.7 | R154: 1 | S154: =M154*$A$30*J154 -> 0 | T154: =$A$30*N154*J154 -> 0 | U154: 0 | V154: 0 | W154: 0
A155: IEMA | B155: LINHARES | C155: ARACRUZ CELULOSE SA | D155: Estadual | E155: Espírito Santo | F155: Espírito Santo | G155: São José | H155: DO-ES | I155: 173448000 | J155: 0 | K155: Indústria | R155: 1 | S155: =$I$155*SIMULADOR!$D$4 -> 4683096 | T155: =$I$155*SIMULADOR!$D$4 -> 4683096 | U155: =$I$155*SIMULADOR!$D$4 -> 4683096 | V155: =R155*IF(ISBLANK(S155),#REF!,S155) -> 4683096 | W155: =R155*IF(ISBLANK(U155),#REF!,U155) -> 4683096
A156: IEMA | B156: LINHARES | C156: LASA LINHARES AGROINDUSTRIAL S/A | D156: Estadual | E156: Espírito Santo | F156: Espírito Santo | G156: São José | H156: DO-ES | J156: 5257051.2 | K156: Indústria | L156: 1931-4 - FABRICAÇÃO DE ALCOOL | M156: 1.4 | N156: 1.4 | R156: 1 | S156: =M156*$A$30*J156 -> 154557.3053 | T156: =$A$30*N156*J156 -> 154557.3053 | U156: 110398.0752 | V156: 154557.3053 | W156: 154557.3053
A157: IGAM | B157: Manhuaçu | C157: FERTILIZANTES HERINGER LTDA | D157: Estadual | E157: Minas Gerais | F157: =IF(D157="estadual",E157,D157) -> Minas Gerais | G157: DO6 | H157: DO6 | J157: 8783.999 | K157: Indústria | L157: 2013-4 - FABRICAÇÃO DE ADUBOS E FERTILIZANTES | M157: 0.88 | N157: 1.17 | R157: 1 | S157: =M157*J157*$A$30 -> 162.3283015 | T157: =J157*N157*$A$30 -> 215.8228554 | U157: 184.463979 | V157: 162.3283015 | W157: 215.8228554
A158: IGAM | B158: Manhuaçu | C158: CENTRALBETON LTDA | D158: Estadual | E158: Minas Gerais | F158: Minas Gerais | G158: DO6 | H158: DO6 | J158: 5616 | K158: Indústria | R158: 1 | U158: 117.936 | V158: =R158*IF(ISBLANK(S158),U158,S158) -> 117.936 | W158: =R158*IF(ISBLANK(T158),U158,T158) -> 117.936
A159: IGAM | B159: Mariana | C159: VALE S/A | D159: Estadual | E159: Minas Gerais | F159: Minas Gerais | G159: DO1 | H159: DO1 | J159: 18384912 | K159: Mineração | L159: 0710-3 - EXTRAÇÃO DE MINÉRIO DE FERRO | M159: 0.82 | N159: 1.37 | O159: 71 - 80 | P159: 0.3 | Q159: 0 | R159: 0.79 | S159: =M159*$A$30*J159 -> 316588.1846 | T159: =$A$30*N159*J159 -> 528933.9182 | U159: 386083.152 | V159: 250104.6659 | W159: 417857.7954
A160: IGAM | B160: Mariana | C160: VALE S/A | D160: Estadual | E160: Minas Gerais | F160: Minas Gerais | G160: DO1 | H160: DO1 | J160: 6756740.638 | K160: Indústria | L160: 0710-3 - EXTRAÇÃO DE MINÉRIO DE FERRO | M160: 0.82 | N160: 1.37 | O160: 74 - 80 | P160: 0.3 | Q160: 0 | R160: 0.79 | S160: =M160*$A$30*J160 -> 116351.0738 | T160: =$A$30*N160*J160 -> 194391.4282 | U160: =J160*A$30 -> 141891.5534 | V160: 91917.34829 | W160: 153569.2282
A161: IGAM | B161: Mariana | C161: VALE S/A | D161: Estadual | E161: Minas Gerais | F161: Minas Gerais | G161: DO1 | H161: DO1 | J161: 320616 | K161: Mineração | L161: 0710-3 - EXTRAÇÃO DE MINÉRIO DE FERRO | M161: 0.82 | N161: 1.37 | O161: 75 - 80 | P161: 0.3 | Q161: 0 | R161: 0.79 | S161: =M161*$A$30*J161 -> 5521.00752 | T161: =$A$30*N161*J161 -> 9224.12232 | U161: 6732.936 | V161: 4361.595941 | W161: 7287.056633
A162: IGAM | B162: Mariana | C162: SAMARCO MINERAÇÃO S/A | D162: Estadual | E162: Minas Gerais | F162: Minas Gerais | G162: DO1 | H162: DO1 | J162: 24579842.64 | K162: Mineração | L162: 0710-3 - EXTRAÇÃO DE MINÉRIO DE FERRO | M162: 0.82 | N162: 1.37 | O162: 90 | P162: 0.3 | Q162: 0 | R162: 0.79 | S162: =M162*$A$30*J162 -> 423264.8903 | T162: =$A$30*N162*J162 -> 707162.0728 | U162: 516176.6954 | V162: 334379.2633 | W162: 558658.0375
A163: IGAM | B163: Martins Soares | C163: DALTON DIAS HERINGER | D163: Estadual | E163: Minas Gerais | F163: Minas Gerais | G163: DO6 | H163: DO6 | J163: 35100 | K163: Indústria | L163: 2013-4 - FABRICAÇÃO DE ADUBOS E FERTILIZANTES | M163: 0.88 | N163: 1.17 | R163: 1 | S163: =M163*J163*$A$30 -> 648.648 | T163: =J163*N163*$A$30 -> 862.407 | U163: 737.1 | V163: 648.648 | W163: 862.407
A164: IGAM | B164: Mutum | C164: LATICINIOS PORTO ALEGRE INDÚSTRIA E COMÉRCIO LTDA | D164: Estadual | E164: Minas Gerais | F164: Minas Gerais | G164: DO6 | H164: DO6 | J164: 180072 | K164: Indústria | L164: 1051-1 - PREPARAÇÃO DO LEITE | M164: 0.7 | N164: 0.7 | R164: 1 | S164: =M164*J164*$A$30 -> 2647.0584 | T164: =J164*N164*$A$30 -> 2647.0584 | U164: 3781.512 | V164: 2647.0584 | W164: 2647.0584
A165: IGAM | B165: Mutum | C165: TRANSPORTADORA CARMO LTDA ME | D165: Estadual | E165: Minas Gerais | F165: Minas Gerais | G165: DO6 | H165: DO6 | J165: 10454.4 | K165: Mineração | L165: 0810-0 - EXTRAÇÃO DE PEDRA, AREIA E ARGILA | M165: 1.23 | N165: 1.38 | R165: 1 | S165: =M165*J165*$A$30 -> 270.037152 | T165: =J165*N165*$A$30 -> 302.968512 | U165: 219.5424 | V165: 270.037152 | W165: 302.968512
A166: IGAM | B166: Mutum | C166: CARLOS LUIZ CHARPINEL DE SOUZA | D166: Estadual | E166: Minas Gerais | F166: Minas Gerais | G166: DO6 | H166: DO6 | J166: 6888.96 | K166: Indústria | R166: 1 | U166: 144.66816 | V166: 144.66816 | W166: 144.66816
A167: IGAM | B167: Mutum | C167: AGRODEMELLO LATICÍNIOS LTDA | D167: Estadual | E167: Minas Gerais | F167: Minas Gerais | G167: DO6 | H167: DO6 | J167: 10101.6 | K167: Indústria | L167: 1052-0 - FABRICAÇÃO DE LATICÍNIOS | M167: 0.7 | N167: 0.7 | R167: 1 | S167: =M167*J167*$A$30 -> 148.49352 | T167: =J167*N167*$A$30 -> 148.49352 | U167: 212.1336 | V167: 148.49352 | W167: 148.49352
A168: IGAM | B168: Mutum | C168: ICE MINERAÇÃO LTDA | D168: Estadual | E168: Espírito Santo | F168: Espírito Santo | G168: DO6 | H168: DO6 | J168: 4942.08 | K168: Mineração | L168: 0810-0 - EXTRAÇÃO DE PEDRA, AREIA E ARGILA | M168: 1.23 | N168: 1.38 | R168: 1 | S168: =M168*J168*$A$30 -> 127.6539264 | T168: =J168*N168*$A$30 -> 143.2214784 | U168: 103.78368 | V168: 127.6539264 | W168: 143.2214784
A169: IGAM | B169: Ouro Preto | C169: TOPÁZIO IMPERIAL MINERAÇÃO COMÉRCIO E INDÚSTRIA LTDA | D169: Estadual | E169: Minas Gerais | F169: Minas Gerais | G169: DO1 | H169: DO1 | J169: 507276 | K169: Indústria | L169: 0899-1 - EXTRAÇÃO DE MINERAIS NÃO-METÁLICOS NÃO ESPECIFICADOS ANTERIORMENTE | M169: 0.84 | N169: 0.84 | R169: 1 | S169: =M169*$A$30*J169 -> 8948.34864 | T169: =$A$30*N169*J169 -> 8948.34864 | U169: 10652.796 | V169: 8948.34864 | W169: 8948.34864
A170: IGAM | B170: Ouro Preto | C170: VALE MANGANÊS S/A | D170: Estadual | E170: Minas Gerais | F170: Minas Gerais | G170: DO1 | H170: DO1 | J170: 276556.918 | K170: Indústria | L170: 2412-1 - PRODUÇÃO DE FERROLIGAS | M170: 0.84 | N170: 0.84 | O170: 70 - 80 | P170: 0.3 | Q170: 0 | R170: 0.79 | S170: =M170*$A$30*J170 -> 4878.464034 | T170: =$A$30*N170*J170 -> 4878.464034 | U170: 5807.695278 | V170: 3853.986586 | W170: 3853.986586
A171: IGAM | B171: Ouro Preto | C171: VALE S/A | D171: Estadual | E171: Minas Gerais | F171: Minas Gerais | G171: DO1 | H171: DO1 | J171: 13140864 | K171: Mineração | L171: 0710-3 - EXTRAÇÃO DE MINÉRIO DE FERRO | M171: 0.82 | N171: 1.37 | O171: 72 - 80 | P171: 0.3 | Q171: 0 | R171: 0.79 | S171: =M171*$A$30*J171 -> 226285.6781 | T171: =$A$30*N171*J171 -> 378062.6573 | U171: 275958.144 | V171: 178765.6857 | W171: 298669.4993
A172: IGAM | B172: Ouro Preto | C172: BEMIL - Beneficiamento de Minérios Ltda | D172: Estadual | E172: Minas Gerais | F172: Minas Gerais | G172: DO1 | H172: DO1 | J172: 189734.399 | K172: Indústria | L172: 0899-1 - EXTRAÇÃO DE MINERAIS NÃO-METÁLICOS NÃO ESPECIFICADOS ANTERIORMENTE | M172: 0.84 | N172: 0.84 | R172: 1 | S172: =M172*$A$30*J172 -> 3346.914798 | T172: =$A$30*N172*J172 -> 3346.914798 | U172: 3984.422379 | V172: 3346.914798 | W172: 3346.914798
A173: IEMA | B173: PANCAS | C173: JULIO CESAR BALMANT E ITALO GILBERTO LOOSE | D173: Estadual | E173: Espírito Santo | F173: Espírito Santo | G173: São José | H173: DO-ES | J173: 104068.8 | K173: Indústria | R173: 1 | U173: 2185.4448 | V173: 2185.4448 | W173: 2185.4448
A174: ANA | B174: Pocrane | C174: NILTON MARQUES DE LIMA | D174: Federal | E174: Minas Gerais | F174: Federal | G174: DO6 | H174: DO6 | J174: 12503.04 | K174: Extração de Areia | L174: 0810-0 - EXTRAÇÃO DE PEDRA, AREIA E ARGILA | M174: 1.23 | N174: 1.38 | R174: 1 | S174: =M174*J174*$A$30 -> 322.9535232 | T174: =J174*N174*$A$30 -> 362.3380992 | U174: 262.56384 | V174: 322.9535232 | W174: 362.3380992
A175: IGAM | B175: Ponte Nova | C175: FRIGORÍFICO INDUSTRIAL VALE DO PIRANGA | D175: Estadual | E175: Minas Gerais | F175: Minas Gerais | G175: DO1 | H175: DO1 | J175: 442603.2 | K175: Indústria | L175: 1012-1 - ABATE DE SUÍNOS, AVES E OUTROS PEQUENOS ANIMAIS | M175: 0.79 | N175: 0.79 | R175: 1 | S175: =M175*$A$30*J175 -> 7342.787088 | T175: =$A$30*N175*J175 -> 7342.787088 | U175: 9294.6672 | V175: 7342.787088 | W175: 7342.787088
A176: IGAM | B176: Reduto | C176: PEDREIRA BOM JARDIM INDÚSTRIA E COMÉRCIO LTDA | D176: Estadual | E176: Minas Gerais | F176: Minas Gerais | G176: DO6 | H176: DO6 | J176: 6332.039 | K176: Mineração | L176: 0810-0 - EXTRAÇÃO DE PEDRA, AREIA E ARGILA | M176: 1.23 | N176: 1.38 | R176: 1 | S176: =M176*J176*$A$30 -> 163.5565674 | T176: =J176*N176*$A$30 -> 183.5024902 | U176: 132.972819 | V176: 163.5565674 | W176: 183.5024902
A177: ANA | B177: Resplendor | C177: Gonçalo Alves Filho - ME | D177: Federal | E177: Minas Gerais | F177: Federal | G177: DO4 | H177: DO4 | J177: 74880 | K177: Extração de Areia | L177: 0810-0 - EXTRAÇÃO DE PEDRA, AREIA E ARGILA | M177: 1.23 | N177: 1.38 | R177: 1 | S177: =M177*$A$30*J177 -> 1934.1504 | T177: =N177*$A$30*J177 -> 2170.0224 | U177: 1572.48 | V177: 1934.1504 | W177: 2170.0224
A178: ANA | B178: Resplendor | C178: Cooperativa Agropecuária de Resplendor Ltda | D178: Federal | E178: Minas Gerais | F178: Federal | G178: DO4 | H178: DO4 | J178: 246391.2 | K178: Indústria | L178: 1052-0 - FABRICAÇÃO DE LATICÍNIOS | M178: 0.7 | N178: 0.7 | R178: 1 | S178: =M178*$A$30*J178 -> 3621.95064 | T178: =N178*$A$30*J178 -> 3621.95064 | U178: 5174.2152 | V178: 3621.95064 | W178: 3621.95064
A179: IEMA | B179: RIO BANANAL | C179: ARACRUZ CELULOSE SA | D179: Estadual | E179: Espírito Santo | F179: Espírito Santo | G179: São José | H179: DO-ES | J179: 0 | K179: Indústria | R179: 1 | U179: 0 | V179: 0 | W179: 0
A180: IGAM | B180: Rio Casca | C180: SOCIEDADE BRASILEIRA DE FERRO LIGAS LTDA | D180: Estadual | E180: Minas Gerais | F180: Minas Gerais | G180: DO1 | H180: DO1 | J180: 13267.5 | K180: indústria | L180: 2412-1 - PRODUÇÃO DE FERROLIGAS | M180: 0.84 | N180: 0.84 | R180: 1 | S180: =M180*$A$30*J180 -> 234.0387 | T180: =$A$30*N180*J180 -> 234.0387 | U180: 278.6175 | V180: 234.0387 | W180: 234.0387
A181: ANA | B181: Rio Doce | C181: AREIAL CANDONGA LTDA | D181: Federal | E181: Minas Gerais | F181: Federal | G181: DO1 | H181: DO1 | J181: 12000 | K181: Extração de Areia | L181: 0810-0 - EXTRAÇÃO DE PEDRA, AREIA E ARGILA | M181: 1.23 | N181: 1.38 | R181: 1 | S181: =M181*$A$30*J181 -> 309.96 | T181: 347.76 | U181: 252 | V181: 309.96 | W181: 347.76
A182: IGAM | B182: Rio Piracicaba | C182: VALE S/A | D182: Estadual | E182: Minas Gerais | F182: Minas Gerais | G182: DO2 | H182: DO2 | J182: 7655548.8 | K182: Mineração | L182: 0710-3 - EXTRAÇÃO DE MINÉRIO DE FERRO | M182: 0.82 | N182: 1.37 | O182: 76 - 80 | P182: 0.3 | Q182: 0 | R182: 0.79 | S182: =$A$30*M182*J182 -> 131828.5503 | T182: 220250.139 | U182: 160766.5248 | V182: 104144.5548 | W182: 173997.6098
A183: IGAM | B183: Santa Bárbara | C183: ANGLOGOLD ASHANTI CÓRREGO DO SÍTIO MINERAÇÃO S/A | D183: Estadual | E183: Minas Gerais | F183: Minas Gerais | G183: DO2 | H183: DO2 | J183: 2043158.398 | K183: Mineração | L183: 0724-3 - EXTRAÇÃO DE MINÉRIO DE METAIS PRECIOSOS | M183: 0.95 | N183: 0.95 | R183: 1 | S183: =$A$30*M183*J183 -> 40761.01004 | T183: 40761.01004 | U183: 42906.32636 | V183: 40761.01004 | W183: 40761.01004
A184: IGAM | B184: Santa Bárbara | C184: ANGLOGOLD ASHANTI CÓRREGO DO SÍTIO MINERAÇÃO S/A | D184: Estadual | E184: Minas Gerais | F184: Minas Gerais | G184: DO2 | H184: DO2 | J184: 962726.399 | K184: Mineração | L184: 0724-3 - EXTRAÇÃO DE MINÉRIO DE METAIS PRECIOSOS | M184: 0.95 | N184: 0.95 | R184: 1 | S184: =$A$30*M184*J184 -> 19206.39166 | T184: 19206.39166 | U184: 20217.25438 | V184: 19206.39166 | W184: 19206.39166
A185: IGAM | B185: Santa Bárbara | C185: MINERAÇÃO SERRAS DO OESTE LTDA | D185: Estadual | E185: Minas Gerais | F185: Minas Gerais | G185: DO2 | H185: DO2 | J185: 1753110.72 | K185: Mineração | L185: 0724-3 - EXTRAÇÃO DE MINÉRIO DE METAIS PRECIOSOS | M185: 0.95 | N185: 0.95 | R185: 1 | S185: =$A$30*M185*J185 -> 34974.55886 | T185: 34974.55886 | U185: 36815.32512 | V185: 34974.55886 | W185: 34974.55886
A186: IGAM | B186: Santa Bárbara | C186: SAMARCO MINERAÇÃO S/A | D186: Estadual | E186: Minas Gerais | F186: Minas Gerais | G186: DO2 | H186: DO2 | J186: 20978300.16 | K186: Mineração | L186: 0710-3 - EXTRAÇÃO DE MINÉRIO DE FERRO | M186: 0.82 | N186: 1.37 | O186: 90 | P186: 0.3 | Q186: 0 | R186: 0.79 | S186: =$A$30*M186*J186 -> 361246.3287 | T186: 603545.6956 | U186: 440544.3033 | V186: 285384.5997 | W186: 476801.0995
A187: ANA | B187: Santa Cruz do Escalvado | C187: José Geraldo Lima Lana-ME | D187: Federal | E187: Minas Gerais | F187: Federal | G187: DO1 | H187: DO1 | J187: 40320 | K187: Extração de Areia | L187: 0810-0 - EXTRAÇÃO DE PEDRA, AREIA E ARGILA | M187: 1.23 | N187: 1.38 | R187: 1 | S187: =M187*$A$30*J187 -> 1041.4656 | T187: 1168.4736 | U187: 846.72 | V187: 1041.4656 | W187: 1168.4736
A188: ANA | B188: Santa Cruz do Escalvado | C188: Alex Rodrigues Soares | D188: Federal | E188: Minas Gerais | F188: Federal | G188: DO1 | H188: DO1 | J188: 8960 | K188: Extração de Areia | L188: 0810-0 - EXTRAÇÃO DE PEDRA, AREIA E ARGILA | M188: 1.23 | N188: 1.38 | R188: 1 | S188: =M188*$A$30*J188 -> 231.4368 | T188: 259.6608 | U188: 188.16 | V188: 231.4368 | W188: 259.6608
A189: IEMA | B189: SANTA TERESA | C189: ROSANY ZANOTTI ROLDI | D189: Estadual | E189: Espírito Santo | F189: Espírito Santo | G189: DO-ES | H189: DO-ES | J189: 113529.6 | K189: Indústria | R189: 1 | U189: 2384.1216 | V189: 2384.1216 | W189: 2384.1216
A190: IGAM | B190: Santana do Paraíso | C190: MATADOURO RIO DOCE LTDA | D190: Estadual | E190: Minas Gerais | F190: Minas Gerais | G190: DO3 | H190: DO3 | J190: 89304 | K190: Indústria | L190: 1011-2 - ABATE DE RESES, EXCETO SUÍNOS | M190: 0.79 | N190: 0.79 | R190: 1 | S190: =$A$30*J190*M190 -> 1481.55336 | T190: =$A$30*N190*J190 -> 1481.55336 | U190: 1875.384 | V190: 1481.55336 | W190: 1481.55336
A191: IGAM | B191: Santana do Paraíso | C191: LUMAR METALURGICA LIDA | D191: Estadual | E191: Minas Gerais | F191: Minas Gerais | G191: DO3 | H191: DO3 | J191: 11206.92 | K191: Indústria | L191: 2452-1 - FUNDIÇÃO DE METAIS NÃO-FERROSOS E SUAS LIGAS | M191: 0.84 | N191: 0.84 | R191: 1 | S191: =$A$30*J191*M191 -> 197.6900688 | T191: 197.6900688 | U191: 235.34532 | V191: 197.6900688 | W191: 197.6900688
A192: IGAM | B192: Santana do Paraíso | C192: FRIGORÍFICO PARAÍSO LTDA | D192: Estadual | E192: Minas Gerais | F192: Minas Gerais | G192: DO3 | H192: DO3 | J192: 42602.399 | K192: Indústria | L192: 1011-2 - ABATE DE RESES, EXCETO SUÍNOS | M192: 0.79 | N192: 0.79 | R192: 1 | S192: =$A$30*J192*M192 -> 706.7737994 | T192: 706.7737994 | U192: 894.650379 | V192: 706.7737994 | W192: 706.7737994
A193: IGAM | B193: Santana do Paraíso | C193: ORTHOFLEX INDÚSTRIA E COMÉRCIO DE COLCHÕES LTDA | D193: Estadual | E193: Minas Gerais | F193: Minas Gerais | G193: DO3 | H193: DO3 | J193: 10980 | K193: Indústria | L193: 3104-7 - FABRICAÇÃO DE COLCHÕES | M193: 0 | N193: 0 | R193: 1 | T193: 0 | U193: 230.58 | V193: 230.58 | W193: 0
A194: IGAM | B194: Santana do Paraíso | C194: PRESERVAR MADEIRA REFLORESTADA LTDA | D194: Estadual | E194: Minas Gerais | F194: Minas Gerais | G194: DO3 | H194: DO3 | J194: 17568 | K194: Indústria | L194: 1610-2 - DESDOBRAMENTO DE MADEIRA | M194: 0 | N194: 0 | R194: 1 | T194: 0 | U194: 368.928 | V194: 368.928 | W194: 0
A195: IGAM | B195: Santana do Paraíso | C195: USINAS SIDERÚRGICAS DE MINAS GERAIS S/A USIMINAS | D195: Estadual | E195: Minas Gerais | F195: Minas Gerais | G195: DO3 | H195: DO3 | J195: 9150 | K195: Indústria | L195: 3031-8 - FABRICAÇÃO DE LOCOMOTIVAS, VAGÕES E OUTROS MATERIAIS RODANTES | M195: 0 | N195: 0 | O195: 93 | P195: 0.3 | Q195: 0 | R195: 0.79 | T195: 0 | U195: 192.15 | V195: 151.7985 | W195: 0
A196: IGAM | B196: Santana do Paraíso | C196: USIMINAS MECÂNICA S/A | D196: Estadual | E196: Minas Gerais | F196: Minas Gerais | G196: DO3 | H196: DO3 | J196: 1098 | K196: Indústria | L196: 3031-8 - FABRICAÇÃO DE LOCOMOTIVAS, VAGÕES E OUTROS MATERIAIS RODANTES | M196: 0 | N196: 0 | O196: 93 | P196: 0.3 | Q196: 0 | R196: 0.79 | T196: 0 | U196: 23.058 | V196: 18.21582 | W196: 0
A197: IGAM | B197: Santana do Paraíso | C197: LAMINAÇÃO PARAÍSO LTDA | D197: Estadual | E197: Minas Gerais | F197: Minas Gerais | G197: DO3 | H197: DO3 | J197: 38287.26 | K197: Indústria | R197: 1 | U197: 804.03246 | V197: 804.03246 | W197: 804.03246
A198: ANA | B198: Santana do Paraíso | C198: MATADOURO RIO DOCE LTDA | D198: Federal | E198: Minas Gerais | F198: Federal | G198: DO3 | H198: DO3 | J198: 3660 | K198: Indústria | L198: 1011-2 - ABATE DE RESES, EXCETO SUÍNOS | M198: 0.79 | N198: 0.79 | R198: 1 | S198: =$A$30*J198*M198 -> 60.7194 | T198: =$A$30*N198*J198 -> 60.7194 | U198: 76.86 | V198: 60.7194 | W198: 60.7194
A199: ANA | B199: Santana do Paraíso | C199: INTERCEMENT BRASIL S/A | D199: Federal | E199: Minas Gerais | F199: Federal | G199: DO3 | H199: DO3 | J199: 73200 | K199: Indústria | R199: 1 | S199: =$A$30*J199*M199 -> 0 | T199: =$A$30*N199*J199 -> 0 | U199: 1537.2 | V199: 0 | W199: 0
A200: IGAM | B200: Santo Antônio do Grama | C200: ANGLO FERROUS MINAS RIO MINERAÇÃO S/A | D200: Estadual | E200: Minas Gerais | F200: Minas Gerais | G200: DO1 | H200: DO1 | J200: 257371.197 | K200: Mineração | L200: 0710-3 - EXTRAÇÃO DE MINÉRIO DE FERRO | M200: 0.82 | N200: 1.37 | O200: 80 - 90 | P200: 0.3 | Q200: 0 | R200: 0.79 | S200: =M200*$A$30*J200 -> 4431.932012 | T200: =$A$30*N200*J200 -> 7404.569338 | U200: 5404.795137 | V200: 3501.22629 | W200: 5849.609777
A201: IEMA | B201: SÃO DOMINGOS DO NORTE | C201: AVELINO LEOPOLDINO | D201: Estadual | E201: Espírito Santo | F201: Espírito Santo | G201: São José | H201: DO-ES | J201: 173448 | K201: Indústria | R201: 1 | U201: 3642.408 | V201: 3642.408 | W201: 3642.408
A202: IEMA | B202: SÃO DOMINGOS DO NORTE | C202: G3 LAVANDERIA LTDA | D202: Estadual | E202: Espírito Santo | F202: Espírito Santo | G202: São José | H202: DO-ES | J202: 189216 | K202: Indústria | R202: 1 | U202: 3973.536 | V202: 3973.536 | W202: 3973.536
A203: IEMA | B203: SÃO DOMINGOS DO NORTE | C203: INDUSTRIA DE CACHAÃA BOA SORTE - ME | D203: Estadual | E203: Espírito Santo | F203: Espírito Santo | G203: São José | H203: DO-ES | J203: 34689.6 | K203: Indústria | L203: 1111-9 - FABRICAÇÃO DE AGUARDENTES E OUTRAS BEBIDAS DESTILADAS | M203: 0.97 | N203: 0.97 | R203: 1 | S203: =M203*$A$30*J203 -> 706.627152 | T203: =$A$30*N203*J203 -> 706.627152 | U203: 728.4816 | V203: 706.627152 | W203: 706.627152
A204: IGAM | B204: São Domingos do Prata | C204: FAZENDA SEARA | D204: Estadual | E204: Minas Gerais | F204: Minas Gerais | G204: DO2 | H204: DO2 | J204: 480 | K204: Mineração | R204: 1 | U204: 10.08 | V204: 10.08 | W204: 10.08
A205: ANA | B205: São Domingos do Prata | C205: Transgraças Ltda | D205: Federal | E205: Minas Gerais | F205: Federal | G205: DO2 | H205: DO2 | J205: 22500 | K205: Extração de Areia | R205: 1 | U205: 472.5 | V205: 472.5 | W205: 472.5
A206: ANA | B206: São Domingos do Prata | C206: Paulo Cezar Lopes Correa & Cia Ltda | D206: Federal | E206: Minas Gerais | F206: Federal | G206: DO2 | H206: DO2 | J206: 69120 | K206: Extração de Areia | L206: 0810-0 - EXTRAÇÃO DE PEDRA, AREIA E ARGILA | M206: 1.23 | N206: 1.38 | R206: 1 | S206: =$A$30*M206*J206 -> 1785.3696 | T206: =$A$30*N206*J206 -> 2003.0976 | U206: 1451.52 | V206: 1785.3696 | W206: 2003.0976
... 27 more rows

Sheet Base de dados Irrigação
B1: OS VALORES DE ARRECADAÇÃO DESTA PLANILHA DEPENDEM DO PPu DE CAPTAÇÃO INFORMADO NA PLANILHA SIMULADOR
B5: Coeficiente multiplicador | C5: UPGRH | D5: Arrecadação Total com Fator Multiplicador | F5: Rótulos de Linha | G5: Soma de Arrecadação Total com Fator Multiplicador
B6: 1.4 | C6: DO1 | D6: =(H19+J19)*B$6 -> 38538.04928 | F6: DO1 | G6: 38538.04928
C7: DO2 | D7: =(H20+J20)*B$6 -> 25179.07091 | F7: DO2 | G7: 25179.07091
C8: DO3 | D8: =(H21+J21)*B$6 -> 4032.497212 | F8: DO3 | G8: 4032.497212
C9: DO4 | D9: =(H22+J22)*B$6 -> 14353.65638 | F9: DO4 | G9: 14353.65638
C10: DO5 | D10: =(H23+J23)*B$6 -> 33394.40401 | F10: DO5 | G10: 33394.40401
C11: DO6 | D11: =(H24+J24)*B$6 -> 64932.00786 | F11: DO6 | G11: 64932.00786
C12: DO-ES | D12: =(H25+J25+H26+J26+H27+J27)*B$6 -> 898985.6921 | F12: DO-ES | G12: 898985.6921
F13: Total geral | G13: 1079415.378
A18: PPU | B18: Kt | D18: Nsi | E18: Área Perm | F18: Área Temp | G18: Área Total | H18: Perm Super | I18: Perm sub | J18: Temp Super | K18: Temp sub | L18: Arrec. Doce Superficial | M18: Arrec. Doce Subterrânea
A19: =SIMULADOR!$B$4*IF(ISBLANK(SIMULADOR!$E$4),1,IF(SIMULADOR!$E$4=0,1,1-SIMULADOR!$E$4)) -> 0.021 | B19: DO1 | C19: 0.015 | D19: 2052000 | E19: 25 | F19: 10282 | H19: =SUM(P40*D19*P40/B34,Q40*D19*Q40/C34,R40*D19*R40/D34,S40*D19*S40/E34,T40*D19*T40/F34,U40*D19*U40/G34,V40*D19*V40/H34,W40*D19*W40/I34,X40*D19*X40/J34,Y40*D19*Y40/K34,Z40*D19*Z40/L34,AA40*D19*AA40/M34)*(A19*C19*E19)/1000 -> 42.31769063 | I19: =SUM(P40*D19*P40/B44,Q40*D19*Q40/C44,R40*D19*R40/D44,S40*D19*S40/E44,T40*D19*T40/F44,U40*D19*U40/G44,V40*D19*V40/H44,W40*D19*W40/I44,X40*D19*X40/J44,Y40*D19*Y40/K44,Z40*D19*Z40/L44,AA40*D19*AA40/M44)*(A19*C19*E19)/1000 -> 48.80976975 | J19: =SUM(P61*D19*P61/B55,Q61*D19*Q61/C55,R61*D19*R61/D55,S61*D19*S61/E55,T61*D19*T61/F55,U61*D19*U61/G55,V61*D19*V61/H55,W61*D19*W61/I55,X61*D19*X61/J55,Y61*D19*Y61/K55,Z61*D19*Z61/L55,AA61*D19*AA61/M55)*(A19*C19*F19)/1000 -> 27484.86037 | K19: =SUM(P61*D19*P61/B65,Q61*D19*Q61/C65,R61*D19*R61/D65,S61*D19*S61/E65,T61*D19*T61/F65,U61*D19*U61/G65,V61*D19*V61/H65,W61*D19*W61/I65,X61*D19*X61/J65,Y61*D19*Y61/K65,Z61*D19*Z61/L65,AA61*D19*AA61/M65)*(A19*C19*F19)/1000 -> 28299.00506 | L19: =SUM(H29,J29) -> 771010.9841 | M19: =SUM(I29,K29) -> 800558.5201
A20: =SIMULADOR!$B$4*IF(ISBLANK(SIMULADOR!$E$4),1,IF(SIMULADOR!$E$4=0,1,1-SIMULADOR!$E$4)) -> 0.021 | B20: DO2 | C20: 0.029 | D20: 2052000 | E20: 1 | F20: 3483 | G20: =E20+F20 -> 3484 | H20: 3.398159709 | I20: 3.785244372 | J20: 17981.65249 | K20: 18674.80303
A21: =SIMULADOR!$B$4*IF(ISBLANK(SIMULADOR!$E$4),1,IF(SIMULADOR!$E$4=0,1,1-SIMULADOR!$E$4)) -> 0.021 | B21: DO3 | C21: 0.013 | D21: 2052000 | E21: 321 | F21: 971 | G21: 1292 | H21: 523.5544199 | I21: 581.1876645 | J21: 2356.800732 | K21: 2431.729888
A22: =SIMULADOR!$B$4*IF(ISBLANK(SIMULADOR!$E$4),1,IF(SIMULADOR!$E$4=0,1,1-SIMULADOR!$E$4)) -> 0.021 | B22: DO4 | C22: 0.014 | D22: 2052000 | E22: 60 | F22: 3336 | G22: 3396 | H22: 124.8625174 | I22: 132.1381706 | J22: 10127.74918 | K22: 10353.66003
A23: =SIMULADOR!$B$4*IF(ISBLANK(SIMULADOR!$E$4),1,IF(SIMULADOR!$E$4=0,1,1-SIMULADOR!$E$4)) -> 0.021 | B23: DO5 | C23: 0.014 | D23: 2052000 | E23: 191 | F23: 7654 | G23: 7845 | H23: 403.989396 | I23: 425.3065775 | J23: 23449.15633 | K23: 24032.12408
A24: =SIMULADOR!$B$4*IF(ISBLANK(SIMULADOR!$E$4),1,IF(SIMULADOR!$E$4=0,1,1-SIMULADOR!$E$4)) -> 0.021 | B24: DO6 | C24: 0.033 | D24: 2052000 | E24: 1344 | F24: 5552 | G24: 6896 | H24: 6602.296999 | I24: 6947.271556 | J24: 39777.70861 | K24: 40869.21225
A25: =SIMULADOR!$B$4*IF(ISBLANK(SIMULADOR!$E$4),1,IF(SIMULADOR!$E$4=0,1,1-SIMULADOR!$E$4)) -> 0.021 | B25: Guandu | C25: 0.027 | D25: 2052000 | E25: 29187 | F25: 75407 | G25: 104594 | H25: =SUM($P$46*D25*$P$46/$B$40,$Q$46*D25*$Q$46/$C$40,$R$46*D25*$R$46/$D$40,$S$46*D25*$S$46/$E$40,$T$46*D25*$T$46/$F$40,$U$46*D25*$U$46/$G$40,$V$46*D25*$V$46/$H$40,$W$46*D25*$W$46/$I$40,$X$46*D25*$X$46/$J$40,$Y$46*D25*$Y$46/$K$40,$Z$46*D25*$Z$46/$L$40,$AA$46*D25*$AA$46/$M$40)*(A25*C25*E25)/1000 -> 119738.0501 | I25: =SUM($P$46*D25*$P$46/$B$50,$Q$46*D25*$Q$46/$C$50,$R$46*D25*$R$46/$D$50,$S$46*D25*$S$46/$E$50,$T$46*D25*$T$46/$F$50,$U$46*D25*$U$46/$G$50,$V$46*D25*$V$46/$H$50,$W$46*D25*$W$46/$I$50,$X$46*D25*$X$46/$J$50,$Y$46*D25*$Y$46/$K$50,$Z$46*D25*$Z$46/$L$50,$AA$46*D25*$AA$46/$M$50)*(A25*C25*E25)/1000 -> 129467.1911 | J25: =SUM($P$67*D25*$P$67/$B$61,$Q$67*D25*$Q$67/$C$61,$R$67*D25*$R$67/$D$61,$S$67*D25*$S$67/$E$61,$T$67*D25*$T$67/$F$61,$U$67*D25*$U$67/$G$61,$V$67*D25*$V$67/$H$61,$W$67*D25*$W$67/$I$61,$X$67*D25*$X$67/$J$61,$Y$67*D25*$Y$67/$K$61,$Z$67*D25*$Z$67/$L$61,$AA$67*D25*$AA$67/$M$61)*(A25*C25*F25)/1000 -> 465937.7908 | K25: =SUM($P$67*D25*$P$67/$B$71,$Q$67*D25*$Q$67/$C$71,$R$67*D25*$R$67/$D$71,$S$67*D25*$S$67/$E$71,$T$67*D25*$T$67/$F$71,$U$67*D25*$U$67/$G$71,$V$67*D25*$V$67/$H$71,$W$67*D25*$W$67/$I$71,$X$67*D25*$X$67/$J$71,$Y$67*D25*$Y$67/$K$71,$Z$67*D25*$Z$67/$L$71,$AA$67*D25*$AA$67/$M$71)*(A25*C25*F25)/1000 -> 479646.3593
A26: =SIMULADOR!$B$4*IF(ISBLANK(SIMULADOR!$E$4),1,IF(SIMULADOR!$E$4=0,1,1-SIMULADOR!$E$4)) -> 0.021 | B26: Sta Maria do Doce | C26: 0.012 | D26: 2052000 | E26: 1418 | F26: 9189 | G26: 10607 | H26: =SUM($P$46*D26*$P$46/$B$40,$Q$46*D26*$Q$46/$C$40,$R$46*D26*$R$46/$D$40,$S$46*D26*$S$46/$E$40,$T$46*D26*$T$46/$F$40,$U$46*D26*$U$46/$G$40,$V$46*D26*$V$46/$H$40,$W$46*D26*$W$46/$I$40,$X$46*D26*$X$46/$J$40,$Y$46*D26*$Y$46/$K$40,$Z$46*D26*$Z$46/$L$40,$AA$46*D26*$AA$46/$M$40)*(A26*C26*E26)/1000 -> 2585.451742 | I26: =SUM($P$46*D26*$P$46/$B$50,$Q$46*D26*$Q$46/$C$50,$R$46*D26*$R$46/$D$50,$S$46*D26*$S$46/$E$50,$T$46*D26*$T$46/$F$50,$U$46*D26*$U$46/$G$50,$V$46*D26*$V$46/$H$50,$W$46*D26*$W$46/$I$50,$X$46*D26*$X$46/$J$50,$Y$46*D26*$Y$46/$K$50,$Z$46*D26*$Z$46/$L$50,$AA$46*D26*$AA$46/$M$50)*(A26*C26*E26)/1000 -> 2795.528862 | J26: =SUM($P$67*D26*$P$67/$B$61,$Q$67*D26*$Q$67/$C$61,$R$67*D26*$R$67/$D$61,$S$67*D26*$S$67/$E$61,$T$67*D26*$T$67/$F$61,$U$67*D26*$U$67/$G$61,$V$67*D26*$V$67/$H$61,$W$67*D26*$W$67/$I$61,$X$67*D26*$X$67/$J$61,$Y$67*D26*$Y$67/$K$61,$Z$67*D26*$Z$67/$L$61,$AA$67*D26*$AA$67/$M$61)*(A26*C26*F26)/1000 -> 25234.92431 | K26: =SUM($P$67*D26*$P$67/$B$71,$Q$67*D26*$Q$67/$C$71,$R$67*D26*$R$67/$D$71,$S$67*D26*$S$67/$E$71,$T$67*D26*$T$67/$F$71,$U$67*D26*$U$67/$G$71,$V$67*D26*$V$67/$H$71,$W$67*D26*$W$67/$I$71,$X$67*D26*$X$67/$J$71,$Y$67*D26*$Y$67/$K$71,$Z$67*D26*$Z$67/$L$71,$AA$67*D26*$AA$67/$M$71)*(A26*C26*F26)/1000 -> 25977.37254
A27: =SIMULADOR!$B$4*IF(ISBLANK(SIMULADOR!$E$4),1,IF(SIMULADOR!$E$4=0,1,1-SIMULADOR!$E$4)) -> 0.021 | B27: São José | C27: 0.012 | D27: 2052000 | E27: 4170 | F27: 7659 | G27: 11829 | H27: =SUM($P$46*D27*$P$46/$B$40,$Q$46*D27*$Q$46/$C$40,$R$46*D27*$R$46/$D$40,$S$46*D27*$S$46/$E$40,$T$46*D27*$T$46/$F$40,$U$46*D27*$U$46/$G$40,$V$46*D27*$V$46/$H$40,$W$46*D27*$W$46/$I$40,$X$46*D27*$X$46/$J$40,$Y$46*D27*$Y$46/$K$40,$Z$46*D27*$Z$46/$L$40,$AA$46*D27*$AA$46/$M$40)*(A27*C27*E27)/1000 -> 7603.197296 | I27: =SUM($P$46*D27*$P$46/$B$50,$Q$46*D27*$Q$46/$C$50,$R$46*D27*$R$46/$D$50,$S$46*D27*$S$46/$E$50,$T$46*D27*$T$46/$F$50,$U$46*D27*$U$46/$G$50,$V$46*D27*$V$46/$H$50,$W$46*D27*$W$46/$I$50,$X$46*D27*$X$46/$J$50,$Y$46*D27*$Y$46/$K$50,$Z$46*D27*$Z$46/$L$50,$AA$46*D27*$AA$46/$M$50)*(A27*C27*E27)/1000 -> 8220.98403 | J27: =SUM($P$67*D27*$P$67/$B$61,$Q$67*D27*$Q$67/$C$61,$R$67*D27*$R$67/$D$61,$S$67*D27*$S$67/$E$61,$T$67*D27*$T$67/$F$61,$U$67*D27*$U$67/$G$61,$V$67*D27*$V$67/$H$61,$W$67*D27*$W$67/$I$61,$X$67*D27*$X$67/$J$61,$Y$67*D27*$Y$67/$K$61,$Z$67*D27*$Z$67/$L$61,$AA$67*D27*$AA$67/$M$61)*(A27*C27*F27)/1000 -> 21033.22291 | K27: =SUM($P$67*D27*$P$67/$B$71,$Q$67*D27*$Q$67/$C$71,$R$67*D27*$R$67/$D$71,$S$67*D27*$S$67/$E$71,$T$67*D27*$T$67/$F$71,$U$67*D27*$U$67/$G$71,$V$67*D27*$V$67/$H$71,$W$67*D27*$W$67/$I$71,$X$67*D27*$X$67/$J$71,$Y$67*D27*$Y$67/$K$71,$Z$67*D27*$Z$67/$L$71,$AA$67*D27*$AA$67/$M$71)*(A27*C27*F27)/1000 -> 21652.05096
E28: =SUM(E19:E27) -> 36717 | F28: =SUM(F19:F27) -> 123533
H29: =SUM(H19:H27) -> 137627.1183 | I29: =SUM(I19:I27) -> 148622.203 | J29: =SUM(J19:J27) -> 633383.8658 | K29: =SUM(K19:K27) -> 651936.3171
A31: Culturas Permanentes
A32: Equação - Café (L s-1 ha-1) * Captação Superficial (0,4)
A33: 1.1 | B33: jan | C33: fev | D33: mar | E33: abr | F33: mai | G33: jun | H33: jul | I33: ago | J33: set | K33: out | L33: nov | M33: dez
A34: DO1 | B34: 0.4 | C34: 0.4 | D34: 0.4 | E34: 0.4 | F34: 0.4 | G34: 0.4 | H34: 0.4 | I34: 0.48 | J34: 0.4 | K34: 0.4 | L34: 0.4 | M34: 0.4
A35: DO2 | B35: 0.4 | C35: 0.4 | D35: 0.4 | E35: 0.4 | F35: 0.4 | G35: 0.4 | H35: 0.4 | I35: 0.49 | J35: 0.44 | K35: 0.4 | L35: 0.4 | M35: 0.4
A36: DO3 | B36: 0.4 | C36: 0.4 | D36: 0.4 | E36: 0.4 | F36: 0.4 | G36: 0.4 | H36: 0.42 | I36: 0.52 | J36: 0.49 | K36: 0.4 | L36: 0.4 | M36: 0.4
A37: DO4 | B37: 0.4 | C37: 0.4 | D37: 0.4 | E37: 0.42 | F37: 0.4 | G37: 0.4 | H37: 0.41 | I37: 0.51 | J37: 0.5 | K37: 0.4 | L37: 0.4 | M37: 0.4 | O37: Culturas Permanentes - q outorgada
A38: DO5 | B38: 0.4 | C38: 0.4 | D38: 0.4 | E38: 0.41 | F38: 0.4 | G38: 0.4 | H38: 0.41 | I38: 0.5 | J38: 0.49 | K38: 0.4 | L38: 0.4 | M38: 0.4 | O38: Equação - Café (L s-1 ha-1)
A39: DO6 | B39: 0.4 | C39: 0.41 | D39: 0.4 | E39: 0.4 | F39: 0.4 | G39: 0.4 | H39: 0.41 | I39: 0.49 | J39: 0.48 | K39: 0.4 | L39: 0.4 | M39: 0.4 | O39: 1.1 | P39: jan | Q39: fev | R39: mar | S39: abr | T39: mai | U39: jun | V39: jul | W39: ago | X39: set | Y39: out | Z39: nov | AA39: dez
A40: DO-ES | B40: 0.4 | C40: 0.47 | D40: 0.4 | E40: 0.42 | F40: 0.4 | G40: 0.4 | H40: 0.4 | I40: 0.46 | J40: 0.46 | K40: 0.4 | L40: 0.4 | M40: 0.4 | O40: DO1 | P40: 0 | Q40: 0.22 | R40: 0.19 | S40: 0.36 | T40: 0.34 | U40: 0.36 | V40: 0.39 | W40: 0.48 | X40: 0.4 | Y40: 0.29 | Z40: 0 | AA40: 0
O41: DO2 | P41: 0 | Q41: 0.17 | R41: 0.17 | S41: 0.36 | T41: 0.35 | U41: 0.37 | V41: 0.4 | W41: 0.49 | X41: 0.44 | Y41: 0.33 | Z41: 0 | AA41: 0
A42: Equação - Café (L s-1 ha-1) * Captação Subterrânea (0,2) | O42: DO3 | P42: 0 | Q42: 0.2 | R42: 0.18 | S42: 0.34 | T42: 0.37 | U42: 0.39 | V42: 0.42 | W42: 0.52 | X42: 0.49 | Y42: 0.34 | Z42: 0 | AA42: 0
A43: 1.1 | B43: jan | C43: fev | D43: mar | E43: abr | F43: mai | G43: jun | H43: jul | I43: ago | J43: set | K43: out | L43: nov | M43: dez | O43: DO4 | P43: 0.09 | Q43: 0.36 | R43: 0.28 | S43: 0.42 | T43: 0.4 | U43: 0.39 | V43: 0.41 | W43: 0.51 | X43: 0.5 | Y43: 0.34 | Z43: 0 | AA43: 0
A44: DO1 | B44: 0.2 | C44: 0.22 | D44: 0.2 | E44: 0.36 | F44: 0.34 | G44: 0.36 | H44: 0.39 | I44: 0.48 | J44: 0.4 | K44: 0.29 | L44: 0.2 | M44: 0.2 | O44: DO5 | P44: 0.11 | Q44: 0.38 | R44: 0.31 | S44: 0.41 | T44: 0.38 | U44: 0.37 | V44: 0.41 | W44: 0.5 | X44: 0.49 | Y44: 0.38 | Z44: 0.01 | AA44: 0
A45: DO2 | B45: 0.2 | C45: 0.2 | D45: 0.2 | E45: 0.36 | F45: 0.35 | G45: 0.37 | H45: 0.4 | I45: 0.49 | J45: 0.44 | K45: 0.33 | L45: 0.2 | M45: 0.2 | O45: DO6 | P45: 0.09 | Q45: 0.41 | R45: 0.28 | S45: 0.4 | T45: 0.38 | U45: 0.38 | V45: 0.41 | W45: 0.49 | X45: 0.48 | Y45: 0.36 | Z45: 0.03 | AA45: 0
A46: DO3 | B46: 0.2 | C46: 0.2 | D46: 0.2 | E46: 0.34 | F46: 0.37 | G46: 0.39 | H46: 0.42 | I46: 0.52 | J46: 0.49 | K46: 0.34 | L46: 0.2 | M46: 0.2 | O46: DO-ES | P46: 0.2 | Q46: 0.47 | R46: 0.32 | S46: 0.42 | T46: 0.39 | U46: 0.37 | V46: 0.37 | W46: 0.46 | X46: 0.46 | Y46: 0.34 | Z46: 0.05 | AA46: 0
A47: DO4 | B47: 0.2 | C47: 0.36 | D47: 0.28 | E47: 0.42 | F47: 0.4 | G47: 0.39 | H47: 0.41 | I47: 0.51 | J47: 0.5 | K47: 0.34 | L47: 0.2 | M47: 0.2
A48: DO5 | B48: 0.2 | C48: 0.38 | D48: 0.31 | E48: 0.41 | F48: 0.38 | G48: 0.37 | H48: 0.41 | I48: 0.5 | J48: 0.49 | K48: 0.38 | L48: 0.2 | M48: 0.2
A49: DO6 | B49: 0.2 | C49: 0.41 | D49: 0.28 | E49: 0.4 | F49: 0.38 | G49: 0.38 | H49: 0.41 | I49: 0.49 | J49: 0.48 | K49: 0.36 | L49: 0.2 | M49: 0.2
A50: DO-ES | B50: 0.2 | C50: 0.47 | D50: 0.32 | E50: 0.42 | F50: 0.39 | G50: 0.37 | H50: 0.37 | I50: 0.46 | J50: 0.46 | K50: 0.34 | L50: 0.2 | M50: 0.2
A52: Culturas Temporárias
A53: Equação - Cana (L s-1 ha-1) * Captação Superficial (0,4)
A54: 1.25 | B54: jan | C54: fev | D54: mar | E54: abr | F54: mai | G54: jun | H54: jul | I54: ago | J54: set | K54: out | L54: nov | M54: dez
A55: DO1 | B55: 0.4 | C55: 0.4 | D55: 0.4 | E55: 0.5 | F55: 0.46 | G55: 0.48 | H55: 0.52 | I55: 0.64 | J55: 0.55 | K55: 0.43 | L55: 0.4 | M55: 0.4
A56: DO2 | B56: 0.4 | C56: 0.4 | D56: 0.4 | E56: 0.5 | F56: 0.47 | G56: 0.49 | H56: 0.53 | I56: 0.65 | J56: 0.6 | K56: 0.47 | L56: 0.4 | M56: 0.4
A57: DO3 | B57: 0.4 | C57: 0.4 | D57: 0.4 | E57: 0.47 | F57: 0.5 | G57: 0.51 | H57: 0.55 | I57: 0.68 | J57: 0.66 | K57: 0.48 | L57: 0.4 | M57: 0.4
A58: DO4 | B58: 0.4 | C58: 0.52 | D58: 0.42 | E58: 0.57 | F58: 0.53 | G58: 0.52 | H58: 0.54 | I58: 0.67 | J58: 0.67 | K58: 0.48 | L58: 0.4 | M58: 0.4 | O58: Culturas Temporarias - q outorgada
A59: DO5 | B59: 0.4 | C59: 0.54 | D59: 0.45 | E59: 0.56 | F59: 0.51 | G59: 0.49 | H59: 0.54 | I59: 0.65 | J59: 0.66 | K59: 0.53 | L59: 0.4 | M59: 0.4 | O59: Equação - Cana (L s-1 ha-1)
A60: DO6 | B60: 0.4 | C60: 0.58 | D60: 0.42 | E60: 0.55 | F60: 0.51 | G60: 0.5 | H60: 0.54 | I60: 0.65 | J60: 0.65 | K60: 0.5 | L60: 0.4 | M60: 0.4 | O60: 1.25 | P60: jan | Q60: fev | R60: mar | S60: abr | T60: mai | U60: jun | V60: jul | W60: ago | X60: set | Y60: out | Z60: nov | AA60: dez
A61: DO-ES | B61: 0.4 | C61: 0.66 | D61: 0.47 | E61: 0.58 | F61: 0.53 | G61: 0.5 | H61: 0.49 | I61: 0.61 | J61: 0.62 | K61: 0.48 | L61: 0.4 | M61: 0.4 | O61: DO1 | P61: 0 | Q61: 0.35 | R61: 0.31 | S61: 0.5 | T61: 0.46 | U61: 0.48 | V61: 0.52 | W61: 0.64 | X61: 0.55 | Y61: 0.43 | Z61: 0.06 | AA61: 0
O62: DO2 | P62: 0 | Q62: 0.3 | R62: 0.28 | S62: 0.5 | T62: 0.47 | U62: 0.49 | V62: 0.53 | W62: 0.65 | X62: 0.6 | Y62: 0.47 | Z62: 0.01 | AA62: 0
A63: Equação - Cana (L s-1 ha-1) * Captação Subterrânea (0,2) | O63: DO3 | P63: 0.01 | Q63: 0.33 | R63: 0.29 | S63: 0.47 | T63: 0.5 | U63: 0.51 | V63: 0.55 | W63: 0.68 | X63: 0.66 | Y63: 0.48 | Z63: 0 | AA63: 0
A64: 1.25 | B64: jan | C64: fev | D64: mar | E64: abr | F64: mai | G64: jun | H64: jul | I64: ago | J64: set | K64: out | L64: nov | M64: dez | O64: DO4 | P64: 0.2 | Q64: 0.52 | R64: 0.42 | S64: 0.57 | T64: 0.53 | U64: 0.52 | V64: 0.54 | W64: 0.67 | X64: 0.67 | Y64: 0.48 | Z64: 0.07 | AA64: 0
A65: DO1 | B65: 0.2 | C65: 0.35 | D65: 0.31 | E65: 0.5 | F65: 0.46 | G65: 0.48 | H65: 0.52 | I65: 0.64 | J65: 0.55 | K65: 0.43 | L65: 0.2 | M65: 0.2 | O65: DO5 | P65: 0.22 | Q65: 0.54 | R65: 0.45 | S65: 0.56 | T65: 0.51 | U65: 0.49 | V65: 0.54 | W65: 0.65 | X65: 0.66 | Y65: 0.53 | Z65: 0.1 | AA65: 0.03
A66: DO2 | B66: 0.2 | C66: 0.3 | D66: 0.28 | E66: 0.5 | F66: 0.47 | G66: 0.49 | H66: 0.53 | I66: 0.65 | J66: 0.6 | K66: 0.47 | L66: 0.2 | M66: 0.2 | O66: DO6 | P66: 0.2 | Q66: 0.58 | R66: 0.42 | S66: 0.55 | T66: 0.51 | U66: 0.5 | V66: 0.54 | W66: 0.65 | X66: 0.65 | Y66: 0.5 | Z66: 0.12 | AA66: 0.03
A67: DO3 | B67: 0.2 | C67: 0.33 | D67: 0.29 | E67: 0.47 | F67: 0.5 | G67: 0.51 | H67: 0.55 | I67: 0.68 | J67: 0.66 | K67: 0.48 | L67: 0.2 | M67: 0.2 | O67: DO-ES | P67: 0.33 | Q67: 0.66 | R67: 0.47 | S67: 0.58 | T67: 0.53 | U67: 0.5 | V67: 0.49 | W67: 0.61 | X67: 0.62 | Y67: 0.48 | Z67: 0.15 | AA67: 0.13
A68: DO4 | B68: 0.2 | C68: 0.52 | D68: 0.42 | E68: 0.57 | F68: 0.53 | G68: 0.52 | H68: 0.54 | I68: 0.67 | J68: 0.67 | K68: 0.48 | L68: 0.2 | M68: 0.2
A69: DO5 | B69: 0.22 | C69: 0.54 | D69: 0.45 | E69: 0.56 | F69: 0.51 | G69: 0.49 | H69: 0.54 | I69: 0.65 | J69: 0.66 | K69: 0.53 | L69: 0.2 | M69: 0.2
A70: DO6 | B70: 0.2 | C70: 0.58 | D70: 0.42 | E70: 0.55 | F70: 0.51 | G70: 0.5 | H70: 0.54 | I70: 0.65 | J70: 0.65 | K70: 0.5 | L70: 0.2 | M70: 0.2
A71: DO-ES | B71: 0.33 | C71: 0.66 | D71: 0.47 | E71: 0.58 | F71: 0.53 | G71: 0.5 | H71: 0.49 | I71: 0.61 | J71: 0.62 | K71: 0.48 | L71: 0.2 | M71: 0.2

Sheet Base de Dados Saneamento
B2: Rótulos de Coluna
B3: Soma de CAPTAÇÃO DE ÁGUA 1.0 (R$) | D3: Soma de LANÇAMENTO ESGOTO 1.0 (R$) | F3: Total Soma de CAPTAÇÃO DE ÁGUA 1.0 (R$) | G3: Total Soma de LANÇAMENTO ESGOTO 1.0 (R$)
A4: Rótulos de Linha | B4: Estadual | C4: Federal | D4: Estadual | E4: Federal
A5: DO1 | B5: 959612.7746 | D5: 1078254.335 | F5: 959612.7746 | G5: 1078254.335
A6: DO2 | B6: 1159670.688 | C6: 964434.361 | D6: 1180263.345 | E6: 982061.104 | F6: 2124105.049 | G6: 2162324.449
A7: DO3 | B7: 340511.8109 | D7: 360040.5699 | F7: 340511.8109 | G7: 360040.5699
A8: DO4 | B8: 367066.7997 | C8: 661358.7792 | D8: 299894.1284 | E8: 652307.3 | F8: 1028425.579 | G8: 952201.4284
A9: DO5 | B9: 221744.0576 | D9: 124586.9976 | F9: 221744.0576 | G9: 124586.9976
A10: DO6 | B10: 185742.7323 | D10: 113326.0945 | F10: 185742.7323 | G10: 113326.0945
A11: ES | B11: 41583.90975 | C11: 272036.9293 | D11: 60979.69 | E11: 306964.544 | F11: 313620.8391 | G11: 367944.234
A12: Total geral | B12: 3275932.773 | C12: 1897830.07 | D12: 3217345.16 | E12: 1941332.948 | F12: 5173762.843 | G12: 5158678.108
A17: Ppu Captação | B17: Ppu Lançamento
A18: =SIMULADOR!B4*IF(ISBLANK(SIMULADOR!$E$4),1,IF(SIMULADOR!$E$4=0,1,1-SIMULADOR!$E$4)) -> 0.021 | B18: =SIMULADOR!C4*IF(ISBLANK(SIMULADOR!$E$4),1,IF(SIMULADOR!$E$4=0,1,1-SIMULADOR!$E$4)) -> 1.825
J19: ORIGINAL (Multiplicado por 0,021) | K19: ORIGINAL (Multiplicado por 1,825)
A20: MUNICÍPIO | B20: Código Cidades | C20: Domiialidade | D20: UPGRH | E20: CONCESSIONÁRIA | F20: CNPJ | G20: POPULAÇÃO (IBGE, 2011) | H20: % ATENDIDA (SNIS, 2012) | I20: IARAQUANT | J20: CAPTAÇÃO DE ÁGUA (R$) | K20: LANÇAMENTO ESGOTO (R$) | L20: CAPTAÇÃO DE ÁGUA 1.0 (R$) | M20: LANÇAMENTO ESGOTO 1.0 (R$) | N20: =SUM(J21:J172) -> 5173762.843 | O20: =SUM(K21:K172) -> 5158678.108
A21: ABRE CAMPO | B21: 310030 | C21: Estadual | D21: DO1 | E21: SERVIÇO AUTÔNOMO DE ÁGUA E ESGOTO DE ABRE CAMPO | F21: 20.516.886/0001-38 | G21: 13311 | H21: 54.7 | I21: E | J21: 26562.816 | K21: 28881.792 | L21: =(J21/0.021)*$A$18 -> 26562.816 | M21: =(K21/1.825)*$B$18 -> 28881.792 | N21: =J21/N$20 -> 0.005134138693 | O21: =K21/O$20 -> 0.005598680785
A22: AIMORÉS | B22: 310110 | C22: Estadual | D22: DO6 | E22: SERVIÇO AUTÔNOMO DE AGUA E ESGOTO - SAAEAIM / AIMORÉS | G22: 24959 | H22: 72.8 | I22: D | J22: 42249.21183 | K22: 32405.27 | L22: =(J22/0.021)*$A$18 -> 42249.21183 | M22: 32405.27 | N22: =J22/N$20 -> 0.008166051115 | O22: =K22/O$20 -> 0.006281700335
A23: BAIXO GUANDU | B23: 320080 | C23: Estadual | D23: ES | E23: SERVIÇO AUTÔNOMO DE ÁGUA E ESGOTO - BAIXO GUANDU-ES | G23: 29081 | H23: 94 | I23: B | J23: 41583.90975 | K23: 60979.69 | L23: 41583.90975 | M23: 60979.69 | N23: 0.008037459584 | O23: 0.01182079764
A24: BARÃO DE COCAIS | B24: 310540 | C24: Estadual | D24: DO2 | E24: COMPANHIA DE SANEAMENTO DE MINAS GERAIS COPASA MG | F24: 17.281.106/0001-03 | G24: 28442 | H24: 90.7 | I24: D | J24: 60812.24688 | K24: 7039.9368 | L24: 60812.24688 | M24: 7039.9368 | N24: 0.01175396877 | O24: 0.001364678441
A25: CARATINGA | B25: 311340 | C25: Estadual | D25: DO2 | E25: COMPANHIA DE SANEAMENTO DE MINAS GERAIS COPASA MG | F25: 17.281.106/0001-03 | G25: 85239 | H25: 82.7 | I25: C | J25: 149614.0005 | K25: 213147.625 | L25: 149614.0005 | M25: 213147.625 | N25: 0.02891783118 | O25: 0.04131826419
A26: CARMÉSIA | B26: 311380 | C26: Estadual | D26: DO3 | E26: PREFEITURA MUNICIPAL DE CARMÉSIA | F26: 18.303.172/0001-08 | G26: 2446 | H26: 57 | I26: B | J26: 1904.221872 | K26: 3670.3944 | L26: 1904.221872 | M26: 3670.3944 | N26: 0.0003680535676 | O26: 0.0007114990164
A27: COLATINA | B27: 320150 | C27: Federal | D27: ES | E27: SERVIÇO COLATINENSE DE MEIO AMBIENTE E SANEAMENTO AMBIENTAL SANEAR | G27: 111788 | H27: 91.4 | I27: B | J27: 124579.2842 | K27: 208060.2176 | L27: 124579.2842 | M27: 208060.2176 | N27: 0.02407904808 | O27: 0.0403320799
A28: CONCEIÇÃO DO MATO DENTRO | B28: 311750 | C28: Estadual | D28: DO3 | E28: COMPANHIA DE SANEAMENTO DE MINAS GERAIS COPASA MG | F28: 17.281.106/0001-03 | G28: 17908 | H28: 67.5 | I28: D | J28: 28270.88082 | K28: 31192.33536 | L28: 28270.88082 | M28: 31192.33536 | N28: 0.005464278452 | O28: 0.006046575248
A29: CONSELHEIRO PENA | B29: 311840 | C29: Estadual | D29: DO4 | E29: SERVIÇO AUTÔNOMO DE ÁGUA E ESGOTO - SAAE | G29: 22242 | H29: 85.4 | I29: B | J29: 23767.0335 | K29: 46710.28152 | L29: 23767.0335 | M29: 46710.28152 | N29: 0.004593761682 | O29: 0.009054699778
A30: DESTERRO DO MELO | B30: 312150 | C30: Estadual | D30: DO1 | E30: COMPANHIA DE SANEAMENTO DE MINAS GERAIS COPASA MG DESTERRO DO MELO | F30: 17.281.106/0001-03 | G30: 3015 | H30: 46.1 | I30: E | J30: 6375.07584 | K30: 7851.249 | L30: 6375.07584 | M30: 7851.249 | N30: 0.001232193286 | O30: 0.001521949778
A31: GALILÉIA | B31: 312730 | C31: Estadual | D31: DO4 | E31: GALILÉIA SERVIÇO AUTÔNOMO DE ÁGUA E ESGOTO | G31: 6951 | H31: 100 | I31: B | J31: 9778.43664 | K31: 16456.6044 | L31: 9778.43664 | M31: 16456.6044 | N31: 0.001890004806 | O31: 0.003190081656
A32: GOVERNADOR VALADARES | B32: 312770 | C32: Federal | D32: DO4 | E32: SERVIÇO AUTÔNOMO DE ÁGUA E ESGÔTO - SAAE | F32: 20.607.735/0001-95 | G32: 263689 | H32: 99.4 | I32: D | J32: 661358.7792 | K32: 652307.3 | L32: 661358.7792 | M32: 652307.3 | N32: 0.1278293573 | O32: 0.1264485371
A33: GUANHÃES | B33: 312800 | C33: Estadual | D33: DO3 | E33: SERVIÇO AUTÔNOMO DE ÁGUA E ESGOTO DE GUANHÃES | F33: 21.250.048/0001-28 | G33: 31262 | H33: 71.3 | I33: B | J33: 31426.19953 | K33: 63016.45992 | L33: 31426.19953 | M33: 63016.45992 | N33: 0.006074147673 | O33: 0.01221562164
A34: GUARACIABA | B34: 312820 | C34: Estadual | D34: DO1 | E34: COMPANHIA DE SANEAMENTO DE MINAS GERAIS COPASA MG GUARACIABA | F34: 17.281.106/0001-03 | G34: 10223 | H34: 30.7 | I34: C | J34: 5656.35798 | K34: 8682.58872 | L34: 5656.35798 | M34: 8682.58872 | N34: 0.001093277398 | O34: 0.001683103411
A35: IPATINGA | B35: 313130 | C35: Federal | D35: DO2 | E35: COMPANHIA DE SANEAMENTO DE MINAS GERAIS COPASA MG IPATINGA / CORONEL FABRICIANO | F35: 17.281.106/0001-03 | G35: 239468 | H35: 99 | I35: E | J35: 964434.361 | K35: 982061.104 | L35: 964434.361 | M35: 982061.104 | N35: 0.1864086914 | O35: 0.1903706886
A36: ITABIRA | B36: 313170 | C36: Estadual | D36: DO2 | E36: SERVIÇO AUTÔNOMO DE AGUA E ESGOTO DE ITABIRA | F36: 20.959.219/0001-20 | G36: 109783 | H36: 100 | I36: B | J36: 155751.9228 | K36: 203161.0734 | L36: 155751.9228 | M36: 203161.0734 | N36: 0.03010418675 | O36: 0.03938239005
A37: JEQUERI | B37: 313550 | C37: Estadual | D37: DO1 | E37: DEPARTAMENTO MUNICIPAL DE ÁGUA E ESGOTO - DEMAE | F37: 26.151.886/0001-68 | G37: 12848 | H37: 40.2 | I37: E | J37: 22135.68 | K37: 6931.63008 | L37: 22135.68 | M37: 6931.63008 | N37: 0.004278448911 | O37: 0.001343683388
A38: JOÃO MONLEVADE | B38: 313620 | C38: Estadual | D38: DO2 | E38: DEPARTAMENTO MUNICIPAL DE ÁGUA E ESGOTO DE JOÃO MONLEVADE | G38: 73610 | H38: 99.6 | I38: D | J38: 185956.0248 | K38: 190479.0285 | L38: 185956.0248 | M38: 190479.0285 | N38: 0.03594212383 | O38: 0.03692399961
A39: LINHARES | B39: 320320 | C39: Federal | D39: ES | E39: SERVIÇO AUTÔNOMO DE ÁGUA E ESGOTO DE LINHARES | G39: 141306 | H39: 83.1 | I39: B | J39: 147457.6451 | K39: 98904.3264 | L39: 147457.6451 | M39: 98904.3264 | N39: 0.02850104452 | O39: 0.01917241672
A40: MALACACHETA | B40: 313920 | C40: Estadual | D40: DO4 | E40: COMPANHIA DE SANEAMENTO DE MINAS GERAIS COPASA MG | F40: 17.281.106/0001-03 | G40: 18776 | H40: 62.9 | I40: A | J40: 3098.9952 | K40: 17893.8315 | L40: 3098.9952 | M40: 17893.8315 | N40: 0.0005989828475 | O40: 0.003468685412
A41: MANHUAÇU | B41: 313940 | C41: Estadual | D41: DO1 | E41: SERVIÇO AUTÔNOMO DE ÁGUA E ESGOTO DE MANHUAÇU | F41: 22.050.561/0001-38 | G41: 79574 | H41: 81.5 | I41: D | J41: 176363.7397 | K41: 249639.7692 | L41: 176363.7397 | M41: 249639.7692 | N41: 0.03408809895 | O41: 0.04839219736
A42: MARIANA | B42: 314000 | C42: Estadual | D42: DO1 | E42: SERVIÇO AUTÔNOMO DE ÁGUA E ESGOTO DE MARIANA | F42: 07.711.512/0001-05 | G42: 54219 | H42: 95.8 | I42: B | J42: 88525.73087 | K42: 4846.72572 | L42: 88525.73087 | M42: 4846.72572 | N42: 0.01711051193 | O42: 0.0009395286192
A43: MARLIÉRIA | B43: 314030 | C43: Estadual | D43: DO2 | E43: SUB PREFEITURA MUNICIPAL DE MARLIÉRIA | F43: 16.796.872/0001-48 | G43: 4012 | H43: 100 | I43: A | J43: 2258.392752 | K43: 4208.91948 | L43: 2258.392752 | M43: 4208.91948 | N43: 0.0004365087501 | O43: 0.0008158910852
A44: MESQUITA | B44: 314170 | C44: Estadual | D44: DO2 | E44: SERVIÇO AUTÔNOMO DE ÁGUA E ESGOTO DE MESQUITA | F44: 05.109.788/0001-92 | G44: 6069 | H44: 82.6 | I44: E | J44: 13613.4432 | K44: 740.09592 | L44: 13613.4432 | M44: 740.09592 | N44: 0.00263124608 | O44: 0.0001434661951
A45: NOVA ERA | B45: 314470 | C45: Estadual | D45: DO2 | E45: PREFEITURA MUNICIPAL DE NOVA ERA | F45: 16.819.831/0001-20 | G45: 17528 | H45: 62 | I45: B | J45: 12351.70944 | K45: 13863.26016 | L45: 12351.70944 | M45: 13863.26016 | N45: 0.002387374492 | O45: 0.002687366777
A46: OURO PRETO | B46: 314610 | C46: Estadual | D46: DO2 | E46: SERVIÇO MUNICIPAL DE ÁGUA E ESGOTO DE OURO PRETO MG | F46: 07.758.228/0001-94 | G46: 70281 | H46: 89.2 | I46: C | J46: 133057.5687 | K46: 217184.6376 | L46: 133057.5687 | M46: 217184.6376 | N46: 0.02571775567 | O46: 0.04210083146
A47: PONTE NOVA | B47: 315210 | C47: Estadual | D47: DO1 | E47: DEPARTAMENTO MUNICIPAL DE ÁGUA, ESGOTO E SANEAMENTO DE PONTE NOVA - DMAES | F47: 23.802.507/0001-64 | G47: 57390 | H47: 98.2 | I47: C | J47: 113366.9505 | K47: 174620.5178 | L47: 113366.9505 | M47: 174620.5178 | N47: 0.02191189545 | O47: 0.0338498573
A48: RAUL SOARES | B48: 315400 | C48: Estadual | D48: DO1 | E48: SERVIÇO AUTÔNOMO DE ÁGUA E ESGOTO - SAAE | F48: 24.089.583/0001-37 | G48: 23818 | H48: 63.1 | I48: B | J48: 17127.13192 | K48: 28261.4658 | L48: 17127.13192 | M48: 28261.4658 | N48: 0.003310382103 | O48: 0.005478431724
A49: RESPLENDOR | B49: 315430 | C49: Estadual | D49: DO6 | E49: COMPANHIA DE SANEAMENTO DE MINAS GERAIS COPASA MG | F49: 17.281.106/0001-03 | G49: 17089 | H49: 75.1 | I49: E | J49: 58344.7536 | K49: 14634.67104 | L49: 58344.7536 | M49: 14634.67104 | N49: 0.01127704446 | O49: 0.002836903318
A50: RIO CASCA | B50: 315490 | C50: Estadual | D50: DO1 | E50: COMPANHIA DE SANEAMENTO DE MINAS GERAIS COPASA MG RIO CASCA | F50: 17.281.106/0001-03 | G50: 14201 | H50: 79.8 | I50: D | J50: 26120.70115 | K50: 36391.05792 | L50: 26120.70115 | M50: 36391.05792 | N50: 0.005048685443 | O50: 0.007054337789
A51: RIO DOCE | B51: 315500 | C51: Estadual | D51: DO1 | E51: PREFEITURA MUNICIPAL DE RIO DOCE | F51: 18.316.265/0001-69 | G51: 2465 | H51: 100 | I51: A | J51: 1025.250912 | K51: 1910.4102 | L51: 1025.250912 | M51: 1910.4102 | N51: 0.0001981634921 | O51: 0.0003703294061
A52: RIO PIRACICABA | B52: 315570 | C52: Estadual | D52: DO2 | E52: COMPANHIA DE SANEAMENTO DE MINAS GERAIS COPASA MG | F52: 17.281.106/0001-03 | G52: 14149 | H52: 79.7 | I52: E | J52: 38225.41632 | K52: 49874.58 | L52: 38225.41632 | M52: 49874.58 | N52: 0.007388320161 | O52: 0.009668093057
A53: SABINÓPOLIS | B53: 315680 | C53: Estadual | D53: DO3 | E53: SERVIÇO AUTÔNOMO DE ÁGUA E ESGOTO DE SABINÓPOLIS | F53: 21.072.657/0001-34 | G53: 15704 | H53: 64.5 | I53: B | J53: 13381.01856 | K53: 17329.0752 | L53: 13381.01856 | M53: =(K53/1.825)*$B$18 -> 17329.0752 | N53: 0.002586322367 | O53: 0.003359208471
A54: SANTA MARIA DO SUAÇUÍ | B54: 315820 | C54: Estadual | D54: DO4 | E54: COMPANHIA DE SANEAMENTO DE MINAS GERAIS COPASA MG | F54: 17.281.106/0001-03 | G54: 14395 | H54: 74.5 | I54: E | J54: 28776.384 | K54: 32636.42496 | L54: 28776.384 | M54: 32636.42496 | N54: 0.005561983584 | O54: 0.006326509287
A55: SANTANA DO PARAÍSO | B55: 315895 | C55: Estadual | D55: DO3 | E55: COMPANHIA DE SANEAMENTO DE MINAS GERAIS COPASA MG | F55: 17.281.106/0001-03 | G55: 27265 | H55: 92.6 | I55: E | J55: 78126.34032 | K55: 100580.8406 | L55: 78126.34032 | M55: 100580.8406 | N55: 0.01510048734 | O55: 0.01949740583
A56: SÃO JOÃO DO MANHUAÇU | B56: 316255 | C56: Estadual | D56: DO1 | E56: COMPANHIA DE SANEAMENTO DE MINAS GERAIS COPASA MG | F56: 17.281.106/0001-03 | G56: 10245 | H56: 42.7 | I56: D | J56: 9418.73184 | K56: 13285.62432 | L56: 9418.73184 | M56: 13285.62432 | N56: 0.001820480012 | O56: 0.002575393161
A57: SÃO JOSÉ DO JACURI | B57: 316350 | C57: Estadual | D57: DO4 | E57: COMPANHIA DE SANEAMENTO DE MINAS GERAIS COPASA MG | F57: 17.281.106/0001-03 | G57: 6553 | H57: 30.6 | I57: E | J57: 6336.3384 | K57: 5045.28804 | L57: 6336.3384 | M57: 5045.28804 | N57: 0.001224706001 | O57: 0.0009780195496
A58: SÃO SEBASTIÃO DO MARANHÃO | B58: 316450 | C58: Estadual | D58: DO4 | E58: COMPANHIA DE SANEAMENTO DE MINAS GERAIS COPASA MG | F58: 17.281.106/0001-03 | G58: 10647 | H58: 27.3 | I58: B | J58: 4117.23648 | K58: 6931.63008 | L58: 4117.23648 | M58: 6931.63008 | N58: 0.0007957914974 | O58: 0.001343683388
A59: SENADOR FIRMINO | B59: 316570 | C59: Estadual | D59: DO1 | E59: SERVIÇO AUTÔNOMO DE ÁGUA E ESGOTO DE SENADOR FIRMINO | G59: 7230 | H59: 64.8 | I59: C | J59: 7526.1312 | K59: 12274.7616 | L59: 7526.1312 | M59: 12274.7616 | N59: 0.00145467263 | O59: 0.002379439334
A60: SENHORA DO PORTO | B60: 316610 | C60: Estadual | D60: DO3 | E60: PREFEITURA MUNICIPAL DE SENHORA DO PORTO | F60: 18.307.504/0001-14 | G60: 3497 | H60: 36.8 | I60: E | J60: 6566.9184 | K60: 1510.27704 | L60: 6566.9184 | M60: 1510.27704 | N60: 0.001269273177 | O60: 0.0002927643494
A61: SERRA AZUL DE MINAS | B61: 316650 | C61: Estadual | D61: DO3 | E61: COMPANHIA DE SANEAMENTO DE MINAS GERAIS COPASA MG | F61: 17.281.106/0001-03 | G61: 4220 | H61: 40.5 | I61: B | J61: 2391.737544 | K61: 3249.2016 | L61: 2391.737544 | M61: 3249.2016 | N61: 0.0004622820212 | O61: 0.0006298515883
A62: SERRO | B62: 316710 | C62: Estadual | D62: DO3 | E62: COMPANHIA DE SANEAMENTO DE MINAS GERAIS COPASA MG | F62: 17.281.106/0001-03 | G62: 20835 | H62: 59.2 | I62: B | J62: 18527.56416 | K62: 18942.696 | L62: 18527.56416 | M62: 18942.696 | N62: 0.003581061738 | O62: 0.003672005813
A63: TAPARUBA | B63: 316805 | C63: Estadual | D63: DO6 | E63: SERVIÇO AUTÔNOMO DE ÁGUA E ESGOTO | G63: 3137 | H63: 45.2 | I63: E | J63: 5976.6336 | K63: 6498.4032 | L63: 5976.6336 | M63: 6498.4032 | N63: 0.001155181206 | O63: 0.001259703177
A64: VERMELHO NOVO | B64: 317115 | C64: Estadual | D64: DO1 | E64: PREFEITURA MUNICIPAL DE VERMELHO NOVO | F64: 01.620.744/0001-71 | G64: 4689 | H64: 39.5 | I64: E | J64: 6640.704 | K64: 4693.2912 | L64: 6640.704 | M64: 4693.2912 | N64: 0.001283534673 | O64: 0.0009097856276
A65: VIÇOSA | B65: 317130 | C65: Estadual | D65: DO1 | E65: SERVIÇO AUTÔNOMO DE ÁGUA E ESGOTO DE VIÇOSA | F65: 25.947.276/0001-02 | G65: 72220 | H65: 100 | I65: B | J65: 96533.8273 | K65: 180547.3022 | L65: 96533.8273 | M65: 180547.3022 | N65: 0.01865834021 | O65: 0.03499875326
A66: AÇUCENA | B66: 310050 | C66: Estadual | D66: DO3 | E66: COMPANHIA DE SANEAMENTO DE MINAS GERAIS COPASA MG AÇUCENA | F66: 17.281.106/0001-03 | G66: 10276 | H66: 58 | I66: A | J66: 4741.462656 | K66: =G66*(H66/100)*0.976*1.825 -> 10616.0945 | L66: 4741.462656 | M66: 10616.0945 | N66: 0.0009164437567 | O66: 0.002057909851
A67: ÁGUA BOA | B67: 310060 | C67: Estadual | D67: DO4 | E67: COMPANHIA DE SANEAMENTO DE MINAS GERAIS COPASA MG | F67: 17.281.106/0001-03 | G67: 15195 | H67: 39.5 | I67: E | J67: 17273.82384 | K67: 10690.80693 | L67: 17273.82384 | M67: 10690.80693 | N67: 0.003338735146 | O67: 0.002072392715
A68: ALTO JEQUITIBÁ | B68: 315350 | C68: Estadual | D68: DO6 | E68: COMPANHIA DE SANEAMENTO DE MINAS GERAIS COPASA MG | F68: 17.281.106/0001-03 | G68: 8318 | H68: 59 | I68: D | J68: 11056.77216 | K68: 8741.452744 | L68: 11056.77216 | M68: 8741.452744 | N68: 0.002137085231 | O68: 0.001694514091
A69: ALTO RIO DOCE | B69: 310210 | C69: Estadual | D69: DO1 | E69: COMPANHIA DE SANEAMENTO DE MINAS GERAIS COPASA MG | F69: 17.281.106/0001-03 | G69: 12159 | H69: 58 | I69: D | J69: 15612.5718 | K69: 12561.41426 | L69: 15612.5718 | M69: 12561.41426 | N69: 0.003017643497 | O69: 0.002435006411
A70: ALVARENGA | B70: 310220 | C70: Estadual | D70: DO5 | E70: COMPANHIA DE SANEAMENTO DE MINAS GERAIS COPASA MG | F70: 17.281.106/0001-03 | G70: 4444 | H70: 47.7 | I70: E | J70: 6640.704 | K70: 3775.766386 | L70: 6640.704 | M70: 3775.766386 | N70: 0.001283534673 | O70: 0.0007319251766
A71: ALVINÓPOLIS | B71: 310230 | C71: Estadual | D71: DO2 | E71: COMPANHIA DE SANEAMENTO DE MINAS GERAIS COPASA MG | F71: 17.281.106/0001-03 | G71: 15261 | H71: 69.9 | I71: A | J71: 9916.78464 | K71: 19000.84235 | L71: 9916.78464 | M71: 19000.84235 | N71: 0.001916745112 | O71: 0.003683277372
A72: AMPARO DO SERRA | B72: 310250 | C72: Estadual | D72: DO1 | E72: COMPANHIA DE SANEAMENTO DE MINAS GERAIS COPASA MG AMPARO DA SERRA | F72: 17.281.106/0001-03 | G72: 5053 | H72: 59 | I72: A | J72: 2169.29664 | K72: 5310.238124 | L72: 2169.29664 | M72: 5310.238124 | N72: 0.0004192879933 | O72: 0.001029379623
A73: ANTÔNIO DIAS | B73: 310300 | C73: Estadual | D73: DO3 | E73: COMPANHIA DE SANEAMENTO DE MINAS GERAIS COPASA MG ANTÔNIO DIAS | F73: 17.281.106/0001-03 | G73: 9565 | H73: 44.7 | I73: E | J73: 13281.408 | K73: 7615.618566 | L73: 13281.408 | M73: 7615.618566 | N73: 0.002567069347 | O73: 0.001476273263
A74: ARAPONGA | B74: 310370 | C74: Estadual | D74: DO1 | E74: COMPANHIA DE SANEAMENTO DE MINAS GERAIS COPASA MG ARAPONGA | F74: 17.281.106/0001-03 | G74: 8152 | H74: 100 | I74: A | J74: 5307.02928 | K74: 14520.3424 | L74: 5307.02928 | M74: 14520.3424 | N74: 0.001025758126 | O74: 0.002814740927
A75: BARRA LONGA | B75: 310570 | C75: Estadual | D75: DO2 | E75: COMPANHIA DE SANEAMENTO DE MINAS GERAIS COPASA MG | F75: 17.281.106/0001-03 | G75: 6143 | H75: 59 | I75: E | J75: 9961.056 | K75: 6455.727844 | L75: 9961.056 | M75: 6455.727844 | N75: 0.00192530201 | O75: 0.00125143064
A76: BELA VISTA DE MINAS | B76: 310600 | C76: Estadual | D76: DO2 | E76: COMPANHIA DE SANEAMENTO DE MINAS GERAIS COPASA MG | F76: 17.281.106/0001-03 | G76: 10004 | H76: 93.7 | I76: E | J76: 33203.52 | K76: 16696.51994 | L76: 33203.52 | M76: 16696.51994 | N76: 0.006417673366 | O76: 0.003236588829
A77: BOM JESUS DO AMPARO | B77: 310770 | C77: Estadual | D77: DO3 | E77: COMPANHIA DE SANEAMENTO DE MINAS GERAIS COPASA MG | F77: 17.281.106/0001-03 | G77: 5491 | H77: 45.8 | I77: D | J77: 5400.41418 | K77: 4479.500694 | L77: 5400.41418 | M77: 4479.500694 | N77: 0.001043807833 | O77: 0.000868342742
A78: BOM JESUS DO GALHO | B78: 310780 | C78: Estadual | D78: DO1 | E78: COMPANHIA DE SANEAMENTO DE MINAS GERAIS COPASA MG | F78: 17.281.106/0001-03 | G78: 15364 | H78: 63 | I78: E | J78: 31393.23642 | K78: 17240.80478 | L78: 31393.23642 | M78: 17240.80478 | N78: 0.006067776466 | O78: 0.003342097418
A79: BRAÚNAS | B79: 310880 | C79: Estadual | D79: DO3 | E79: COMPANHIA DE SANEAMENTO DE MINAS GERAIS COPASA MG | F79: 17.281.106/0001-03 | G79: 5030 | H79: 31.7 | I79: D | J79: 3357.982656 | K79: 2840.141212 | L79: 3357.982656 | M79: 2840.141212 | N79: 0.0006490406998 | O79: 0.0005505560053
A80: BUGRE | B80: 310925 | C80: Estadual | D80: DO3 | E80: COMPANHIA DE SANEAMENTO DE MINAS GERAIS COPASA MG | F80: 17.281.106/0001-03 | G80: 3992 | H80: 35.7 | I80: A | J80: 929.69856 | K80: 2538.466493 | L80: 929.69856 | M80: 2538.466493 | N80: 0.0001796948543 | O80: 0.0004920769313
A81: CAJURI | B81: 311020 | C81: Estadual | D81: DO1 | E81: COMPANHIA DE SANEAMENTO DE MINAS GERAIS COPASA MG CAJURI | F81: 17.281.106/0001-03 | G81: 4047 | H81: 51.8 | I81: D | J81: 4504.61088 | K81: 3734.011495 | L81: 4504.61088 | M81: 3734.011495 | N81: 0.0008706643534 | O81: 0.0007238310701
A82: CAMPANÁRIO | B82: 311080 | C82: Estadual | D82: DO4 | E82: COMPANHIA DE SANEAMENTO DE MINAS GERAIS COPASA MG CAMPANÁRIO | F82: 17.281.106/0001-03 | G82: 3564 | H82: 74.4 | I82: D | J82: 5374.8198 | K82: 4723.058419 | L82: 5374.8198 | M82: 4723.058419 | N82: 0.001038860876 | O82: 0.0009155559467
A83: CANAÃ | B83: 311170 | C83: Estadual | D83: DO1 | E83: COMPANHIA DE SANEAMENTO DE MINAS GERAIS COPASA MG CANAÃ | F83: 17.281.106/0001-03 | G83: 4628 | H83: 40.2 | I83: E | J83: 5147.77536 | K83: 3313.844227 | L83: 5147.77536 | M83: 3313.844227 | N83: 0.0009949770634 | O83: 0.0006423824394
A84: CANTAGALO | B84: 311205 | C84: Estadual | D84: DO4 | E84: COMPANHIA DE SANEAMENTO DE MINAS GERAIS | F84: 17.281.106/0001-03 | G84: 4195 | H84: 56 | I84: B | J84: 2894.9319 | K84: 4184.39504 | L84: 2894.9319 | M84: 4184.39504 | N84: 0.0005595408966 | O84: 0.0008111370689
A85: CAPELA NOVA | B85: 311220 | C85: Estadual | D85: DO1 | E85: COMPANHIA DE SANEAMENTO DE MINAS GERAIS COPASA MG CAPELA NOVA | F85: 17.281.106/0001-03 | G85: 4755 | H85: 44.8 | I85: B | J85: 2573.2728 | K85: 3794.383488 | L85: 2573.2728 | M85: =(K85/1.825)*$B$18 -> 3794.383488 | N85: 0.0004973696859 | O85: 0.0007355340668
A86: CAPUTIRA | B86: 311290 | C86: Estadual | D86: DO1 | E86: COMPANHIA DE SANEAMENTO DE MINAS GERAIS COPASA MG | F86: 17.281.106/0001-03 | G86: 9030 | H86: 41.8 | I86: B | J86: 5146.5456 | K86: 6723.210648 | L86: =(J86/0.021)*$A$18 -> 5146.5456 | M86: 6723.210648 | N86: =J86/N$20 -> 0.0009947393718 | O86: =K86/O$20 -> 0.001303281675
A87: CIPOTÂNEA | B87: 311630 | C87: Estadual | D87: DO1 | E87: COMPANHIA DE SANEAMENTO DE MINAS GERAIS COPASA MG | F87: 17.281.106/0001-03 | G87: 6547 | H87: 46 | I87: E | J87: 8854.272 | K87: 5364.297544 | L87: 8854.272 | M87: 5364.297544 | N87: 0.001711379564 | O87: 0.001039858939
A88: COIMBRA | B88: 311670 | C88: Estadual | D88: DO1 | E88: COMPANHIA DE SANEAMENTO DE MINAS GERAIS COPASA MG | F88: 17.281.106/0001-03 | G88: 7054 | H88: 73.1 | I88: B | J88: 6175.85472 | K88: 9184.711489 | L88: 6175.85472 | M88: 9184.711489 | N88: 0.001193687246 | O88: 0.001780438961
A89: COLUNA | B89: 311680 | C89: Estadual | D89: DO4 | E89: COMPANHIA DE SANEAMENTO DE MINAS GERAIS COPASA MG | F89: 17.281.106/0001-03 | G89: 9024 | H89: 42.3 | I89: E | J89: 14973.54545 | K89: 6799.111142 | L89: 14973.54545 | M89: 6799.111142 | N89: 0.002894130618 | O89: 0.001317994843
A90: CONGONHAS DO NORTE | B90: 311810 | C90: Estadual | D90: DO3 | E90: PREFEITURA MUNICIPAL DE CONGONHAS DO NORTE | F90: 18.303.180/0001-46 | G90: 4943 | H90: 69.7 | I90: A | J90: 215.208 | K90: 6136.716705 | L90: 215.208 | M90: 6136.716705 | N90: 4.159603108e-05 | O90: 0.001189590933
A91: COROACI | B91: 311920 | C91: Estadual | D91: DO4 | E91: COMPANHIA DE SANEAMENTO DE MINAS GERAIS COPASA MG COROACI | F91: 17.281.106/0001-03 | G91: 10270 | H91: 50.4 | I91: D | J91: 11302.47821 | K91: 9219.633696 | L91: 11302.47821 | M91: 9219.633696 | N91: 0.002184576014 | O91: 0.001787208564
A92: CÓRREGO NOVO | B92: 312000 | C92: Estadual | D92: DO1 | E92: COMPANHIA DE SANEAMENTO DE MINAS GERAIS COPASA MG CÓRREGO NOVO | F92: 17.281.106/0001-03 | G92: 3127 | H92: 65.2 | I92: D | J92: 4545.561888 | K92: 3631.517685 | L92: 4545.561888 | M92: 3631.517685 | N92: 0.0008785794839 | O92: 0.0007039628387
A93: CUPARAQUE | B93: 312083 | C93: Estadual | D93: DO4 | E93: COMPANHIA DE SANEAMENTO DE MINAS GERAIS COPASA MG | F93: 17.281.106/0001-03 | G93: 4680 | H93: 19.2 | I93: B | J93: 1157.97276 | K93: 1600.515072 | L93: 1157.97276 | M93: 1600.515072 | N93: 0.0002238163587 | O93: 0.0003102568213
A94: DIONÍSIO | B94: 312180 | C94: Estadual | D94: DO2 | E94: COMPANHIA DE SANEAMENTO DE MINAS GERAIS COPASA MG | F94: 17.281.106/0001-03 | G94: 8739 | H94: 70.5 | I94: B | J94: 8234.47296 | K94: 10973.96429 | L94: 8234.47296 | M94: 10973.96429 | N94: 0.001591582995 | O94: 0.002127282235
A95: DIVINÉSIA | B95: 312190 | C95: Estadual | D95: DO1 | E95: COMPANHIA DE SANEAMENTO DE MINAS GERAIS COPASA MG | F95: 17.281.106/0001-03 | G95: 3293 | H95: 66 | I95: C | J95: 3763.0656 | K95: 3871.224456 | L95: 3763.0656 | M95: 3871.224456 | N95: 0.0007273363149 | O95: 0.0007504295432
A96: DIVINO DAS LARANJEIRAS | B96: 312210 | C96: Estadual | D96: DO4 | E96: COMPANHIA DE SANEAMENTO DE MINAS GERAIS COPASA MG DIVINO DAS LARANJEIRAS | F96: 17.281.106/0001-03 | G96: 4937 | H96: 83.2 | I96: E | J96: 13591.30752 | K96: 7316.428621 | L96: 13591.30752 | M96: 7316.428621 | N96: 0.002626967631 | O96: 0.001418275858
A97: DOM CAVATI | B97: 312250 | C97: Estadual | D97: DO5 | E97: COMPANHIA DE SANEAMENTO DE MINAS GERAIS COPASA MG | F97: 17.281.106/0001-03 | G97: 5209 | H97: 88.4 | I97: E | J97: 19922.112 | K97: 8201.991387 | L97: 19922.112 | M97: 8201.991387 | N97: 0.00385060402 | O97: 0.001589940526
A98: DOM JOAQUIM | B98: 312260 | C98: Estadual | D98: DO3 | E98: COMPANHIA DE SANEAMENTO DE MINAS GERAIS COPASA MG | F98: 17.281.106/0001-03 | G98: 4535 | H98: 64.4 | I98: B | J98: 4117.23648 | K98: =G98*(H98/100)*0.976*1.825 -> 5202.065848 | L98: 4117.23648 | M98: 5202.065848 | N98: 0.0007957914974 | O98: 0.001008410631
A99: DOM SILVÉRIO | B99: 312270 | C99: Estadual | D99: DO2 | E99: COMPANHIA DE SANEAMENTO DE MINAS GERAIS COPASA MG | F99: 17.281.106/0001-03 | G99: 5196 | H99: 78.1 | I99: C | J99: 7079.26716 | K99: 7228.244971 | L99: 7079.26716 | M99: 7228.244971 | N99: 0.001368301442 | O99: 0.001401181624
A100: DORES DO TURVO | B100: 312330 | C100: Estadual | D100: DO1 | E100: COMPANHIA DE SANEAMENTO DE MINAS GERAIS COPASA MG | F100: 17.281.106/0001-03 | G100: 4462 | H100: 41.8 | I100: B | J100: 2648.32659 | K100: 3322.144619 | L100: 2648.32659 | M100: 3322.144619 | N100: 0.0005118763017 | O100: 0.0006439914547
A101: DURANDÉ | B101: 312352 | C101: Estadual | D101: DO6 | E101: COMPANHIA DE SANEAMENTO DE MINAS GERAIS COPASA MG | F101: 17.281.106/0001-03 | G101: 7423 | H101: 31.5 | I101: C | J101: 3763.0656 | K101: 4164.881994 | L101: 3763.0656 | M101: 4164.881994 | N101: 0.0007273363149 | O101: 0.0008073545018
A102: ENGENHEIRO CALDAS | B102: 312370 | C102: Estadual | D102: DO5 | E102: COMPANHIA DE SANEAMENTO DE MINAS GERAIS COPASA MG | F102: 17.281.106/0001-03 | G102: 10280 | H102: 78.9 | I102: D | J102: 18669.79205 | K102: 14447.1707 | L102: 18669.79205 | M102: 14447.1707 | N102: 0.003608551961 | O102: 0.002800556732
A103: ENTRE FOLHAS | B103: 312385 | C103: Estadual | D103: DO1 | E103: COMPANHIA DE SANEAMENTO DE MINAS GERAIS COPASA MG | F103: 17.281.106/0001-03 | G103: 5175 | H103: 75.1 | I103: E | J103: 9961.056 | K103: 6922.50021 | L103: 9961.056 | M103: 6922.50021 | N103: 0.00192530201 | O103: 0.00134191358
A104: ERVÁLIA | B104: 312400 | C104: Estadual | D104: DO1 | E104: COMPANHIA DE SANEAMENTO DE MINAS GERAIS COPASA MG | F104: 17.281.106/0001-03 | G104: 17946 | H104: 52.8 | I104: B | J104: 12727.21666 | K104: 16877.73923 | L104: 12727.21666 | M104: 16877.73923 | N104: 0.002459953624 | O104: 0.003271717845
A105: FERNANDES TOURINHO | B105: 312580 | C105: Estadual | D105: DO4 | E105: COMPANHIA DE SANEAMENTO DE MINAS GERAIS COPASA MG | F105: 17.281.106/0001-03 | G105: 3030 | H105: 65.6 | I105: E | J105: 5091.2064 | K105: 3540.455616 | L105: 5091.2064 | M105: 3540.455616 | N105: 0.0009840432495 | O105: 0.0006863106288
A106: FERROS | B106: 312590 | C106: Estadual | D106: DO3 | E106: COMPANHIA DE SANEAMENTO DE MINAS GERAIS COPASA MG | F106: 17.281.106/0001-03 | G106: 10837 | H106: 34.4 | I106: C | J106: 6020.90496 | K106: 6640.185354 | L106: 6020.90496 | M106: 6640.185354 | N106: 0.001163738104 | O106: 0.001287187379
A107: FRANCISCÓPOLIS | B107: 312675 | C107: Estadual | D107: DO4 | E107: COMPANHIA DE SANEAMENTO DE MINAS GERAIS COPASA MG | F107: 17.281.106/0001-03 | G107: 5800 | H107: 37.5 | I107: C | J107: 3556.096992 | K107: 3874.11 | L107: 3556.096992 | M107: 3874.11 | N107: 0.0006873328175 | O107: 0.0007509889004
A108: FREI INOCÊNCIO | B108: 312690 | C108: Estadual | D108: DO4 | E108: COMPANHIA DE SANEAMENTO DE MINAS GERAIS COPASA MG - FREI INOCÊNCIO / MATHIAS LOBATO | F108: 17.281.106/0001-03 | G108: 8920 | H108: 75.8 | I108: E | J108: 66407.04 | K108: 12043.33443 | L108: 66407.04 | M108: 12043.33443 | N108: 0.01283534673 | O108: 0.002334577615
A109: IAPU | B109: 312930 | C109: Estadual | D109: DO3 | E109: COMPANHIA DE SANEAMENTO DE MINAS GERAIS COPASA MG | F109: 17.281.106/0001-03 | G109: 10315 | H109: 69.5 | I109: E | J109: 27979.49952 | K109: 12769.28921 | L109: 27979.49952 | M109: 12769.28921 | N109: 0.005407959423 | O109: 0.002475302576
A110: IMBÉ DE MINAS | B110: 313055 | C110: Estadual | D110: DO5 | E110: COMPANHIA DE SANEAMENTO DE MINAS GERAIS COPASA MG | F110: 17.281.106/0001-03 | G110: 6424 | H110: 29.2 | I110: D | J110: 3849.394752 | K110: 3341.18921 | L110: 3849.394752 | M110: 3341.18921 | N110: 0.0007440222656 | O110: 0.0006476832125
A111: INHAPIM | B111: 313090 | C111: Estadual | D111: DO5 | E111: COMPANHIA DE SANEAMENTO DE MINAS GERAIS COPASA MG | F111: 17.281.106/0001-03 | G111: 24294 | H111: 51.6 | I111: D | J111: 27641.9304 | K111: 22328.59596 | L111: 27641.9304 | M111: 22328.59596 | N111: 0.005342713077 | O111: 0.004328356121
A112: IPABA | B112: 313115 | C112: Estadual | D112: DO3 | E112: COMPANHIA DE SANEAMENTO DE MINAS GERAIS COPASA MG | F112: 17.281.106/0001-03 | G112: 16708 | H112: 89.9 | I112: D | J112: 33170.31648 | K112: 26754.50035 | L112: 33170.31648 | M112: 26754.50035 | N112: 0.006411255693 | O112: 0.00518630932
A113: ITANHOMI | B113: 313320 | C113: Estadual | D113: DO5 | E113: COMPANHIA DE SANEAMENTO DE MINAS GERAIS COPASA MG | F113: 17.281.106/0001-03 | G113: 11856 | H113: 72.3 | I113: E | J113: 41836.4352 | K113: 15268.24691 | L113: 41836.4352 | M113: 15268.24691 | N113: 0.008086268442 | O113: 0.002959720802
A114: ITAVERAVA | B114: 313390 | C114: Estadual | D114: DO1 | E114: COMPANHIA DE SANEAMENTO DE MINAS GERAIS COPASA MG | F114: 17.281.106/0001-03 | G114: 5799 | H114: 59 | I114: B | J114: 3450.09168 | K114: 6094.215492 | L114: 3450.09168 | M114: 6094.215492 | N114: 0.0006668438011 | O114: 0.001181352153
A115: ITUETA | B115: 313410 | C115: Estadual | D115: DO4 | E115: COMPANHIA DE SANEAMENTO DE MINAS GERAIS COPASA MG | F115: 17.281.106/0001-03 | G115: 5830 | H115: 56.6 | I115: E | J115: 10907.35632 | K115: 5877.568136 | L115: 10907.35632 | M115: 5877.568136 | N115: 0.002108205701 | O115: 0.001139355473
A116: JAGUARAÇU | B116: 313500 | C116: Estadual | D116: DO2 | E116: PREFEITURA MUNICIPAL DE JAGUARAÇÚ | F116: 16.816.522/0001-04 | G116: 2990 | H116: 57 | I116: A | J116: 26.901 | K116: 3035.69916 | L116: 26.901 | M116: 3035.69916 | N116: 5.199503885e-06 | O116: 0.0005884645439
A117: JOSÉ RAYDAN | B117: 313655 | C117: Estadual | D117: DO4 | E117: COMPANHIA DE SANEAMENTO DE MINAS GERAIS COPASA MG | F117: 17.281.106/0001-03 | G117: 4376 | H117: 57 | I117: A | J117: 1952.19481 | K117: 4442.882784 | L117: 1952.19481 | M117: =(K117/1.825)*$B$18 -> 4442.882784 | N117: 0.0003773259171 | O117: 0.0008612444294
A118: MARILAC | B118: 314010 | C118: Estadual | D118: DO4 | E118: COMPANHIA DE SANEAMENTO DE MINAS GERAIS COPASA MG | F118: 17.281.106/0001-03 | G118: 4219 | H118: 57 | I118: E | J118: 9961.056 | K118: 4283.483196 | L118: 9961.056 | M118: 4283.483196 | N118: 0.00192530201 | O118: 0.0008303451206
A119: MARTINS SOARES | B119: 314053 | C119: Estadual | D119: DO6 | E119: COMPANHIA DE SANEAMENTO DE MINAS GERAIS COPASA MG | F119: 17.281.106/0001-03 | G119: 7173 | H119: 36.8 | I119: B | J119: 3448.185552 | K119: 4701.769517 | L119: 3448.185552 | M119: 4701.769517 | N119: 0.0006664753791 | O119: 0.0009114291332
A120: MATERLÂNDIA | B120: 314060 | C120: Estadual | D120: DO3 | E120: COMPANHIA DE SANEAMENTO DE MINAS GERAIS COPASA MG | F120: 17.281.106/0001-03 | G120: 4595 | H120: 43.8 | I120: C | J120: 3386.75904 | K120: 3584.860932 | L120: 3386.75904 | M120: 3584.860932 | N120: 0.0006546026834 | O120: 0.0006949185153
A121: MATIPÓ | B121: 314090 | C121: Estadual | D121: DO1 | E121: COMPANHIA DE SANEAMENTO DE MINAS GERAIS COPASA MG | F121: 17.281.106/0001-03 | G121: 17639 | H121: 78.4 | I121: C | J121: 26830.65773 | K121: 24632.17205 | L121: 26830.65773 | M121: 24632.17205 | N121: 0.005185907925 | O121: 0.004774899991
A122: MUTUM | B122: 314400 | C122: Estadual | D122: DO6 | E122: COMPANHIA DE SANEAMENTO DE MINAS GERAIS COPASA MG | F122: 17.281.106/0001-03 | G122: 26661 | H122: 51.7 | I122: D | J122: 32351.29632 | K122: 24551.59234 | L122: 32351.29632 | M122: 24551.59234 | N122: 0.006252953083 | O122: 0.004759279767
A123: NACIP RAYDAN | B123: 314420 | C123: Estadual | D123: DO4 | E123: COMPANHIA DE SANEAMENTO DE MINAS GERAIS COPASA MG | F123: 17.281.106/0001-03 | G123: 3154 | H123: 57 | I123: E | J123: 9739.576224 | K123: 3202.205736 | L123: 9739.576224 | M123: 3202.205736 | N123: 0.001882493752 | O123: 0.0006207415289
A124: NAQUE | B124: 314435 | C124: Estadual | D124: DO3 | E124: COMPANHIA DE SANEAMENTO DE MINAS GERAIS COPASA MG NAQUE | F124: 17.281.106/0001-03 | G124: 6341 | H124: 94 | I124: E | J124: 26562.816 | K124: 10616.91385 | L124: 26562.816 | M124: 10616.91385 | N124: 0.005134138693 | O124: 0.002058068681
A125: PAULA CÂNDIDO | B125: 314830 | C125: Estadual | D125: DO1 | E125: COMPANHIA DE SANEAMENTO DE MINAS GERAIS COPASA MG | F125: 17.281.106/0001-03 | G125: 9271 | H125: 53.2 | I125: E | J125: 12263.16672 | K125: 8785.184766 | L125: 12263.16672 | M125: 8785.184766 | N125: 0.002370260697 | O125: 0.001702991461
A126: PAULISTAS | B126: 314840 | C126: Estadual | D126: DO4 | E126: COMPANHIA DE SANEAMENTO DE MINAS GERAIS COPASA MG | F126: 17.281.106/0001-03 | G126: 4918 | H126: 57 | I126: A | J126: 2324.2464 | K126: 4993.166712 | L126: 2324.2464 | M126: 4993.166712 | N126: 0.0004492371356 | O126: 0.0009679159287
A127: PEÇANHA | B127: 314860 | C127: Estadual | D127: DO4 | E127: COMPANHIA DE SANEAMENTO DE MINAS GERAIS COPASA MG | F127: 17.281.106/0001-03 | G127: 17260 | H127: 62 | I127: E | J127: 41670.27925 | K127: 19060.97744 | L127: 41670.27925 | M127: 19060.97744 | N127: 0.008054153334 | O127: 0.003694934446
A128: PEDRA DO ANTA | B128: 314880 | C128: Estadual | D128: DO1 | E128: COMPANHIA DE SANEAMENTO DE MINAS GERAIS COPASA MG | F128: 17.281.106/0001-03 | G128: 3365 | H128: 65.1 | I128: A | J128: 1626.97248 | K128: 3901.923438 | L128: 1626.97248 | M128: 3901.923438 | N128: 0.000314465995 | O128: 0.0007563804828
A129: PERIQUITO | B129: 314995 | C129: Estadual | D129: DO3 | E129: COMPANHIA DE SANEAMENTO DE MINAS GERAIS COPASA MG | F129: 17.281.106/0001-03 | G129: 7036 | H129: 75.2 | I129: E | J129: 25151.6664 | K129: 9424.457446 | L129: 25151.6664 | M129: 9424.457446 | N129: 0.004861387575 | O129: 0.001826913261
A130: PIEDADE DE CARATINGA | B130: 315015 | C130: Estadual | D130: DO5 | E130: COMPANHIA DE SANEAMENTO DE MINAS GERAIS COPASA MG | F130: 17.281.106/0001-03 | G130: 7110 | H130: 59.9 | I130: B | J130: 6072.923808 | K130: =G130*(H130/100)*0.976*1.825 -> 7585.934868 | L130: 6072.923808 | M130: 7585.934868 | N130: 0.001173792459 | O130: 0.001470519135
A131: PIEDADE DE PONTE NOVA | B131: 315020 | C131: Estadual | D131: DO1 | E131: COMPANHIA DE SANEAMENTO DE MINAS GERAIS COPASA MG | F131: 17.281.106/0001-03 | G131: 4062 | H131: 78.2 | I131: E | J131: 8854.087536 | K131: 5657.953301 | L131: 8854.087536 | M131: 5657.953301 | N131: 0.001711343911 | O131: 0.001096783552
A132: PINGO D'ÁGUA | B132: 315053 | C132: Estadual | D132: DO1 | E132: COMPANHIA DE SANEAMENTO DE MINAS GERAIS COPASA MG | F132: 17.281.106/0001-03 | G132: 4420 | H132: 57 | I132: E | J132: 6640.704 | K132: 4487.55528 | L132: 6640.704 | M132: 4487.55528 | N132: 0.001283534673 | O132: 0.0008699041084
A133: PIRANGA | B133: 315080 | C133: Estadual | D133: DO1 | E133: COMPANHIA DE SANEAMENTO DE MINAS GERAIS | F133: 17.281.106/0001-03 | G133: 17232 | H133: 33.6 | I133: E | J133: 19922.112 | K133: 10313.0625 | L133: 19922.112 | M133: 10313.0625 | N133: 0.00385060402 | O133: 0.001999167672
A134: PORTO FIRME | B134: 315230 | C134: Estadual | D134: DO1 | E134: COMPANHIA DE SANEAMENTO DE MINAS GERAIS COPASA MG | F134: 17.281.106/0001-03 | G134: 10417 | H134: 46.4 | I134: B | J134: 6233.03856 | K134: 8609.408826 | L134: 6233.03856 | M134: 8609.408826 | N134: 0.001204739906 | O134: 0.001668917627
A135: REDUTO | B135: 315415 | C135: Estadual | D135: DO6 | E135: SERVIÇO AUTÔNOMO DE ÁGUA E ESGOTO DE REDUTO | G135: 6569 | H135: 65.5 | I135: E | J135: 12241.03104 | K135: 7663.960334 | L135: 12241.03104 | M135: 7663.960334 | N135: 0.002365982248 | O135: 0.001485644224
A136: RIO ESPERA | B136: 315520 | C136: Estadual | D136: DO1 | E136: COMPANHIA DE SANEAMENTO DE MINAS GERAIS COPASA MG | F136: 17.281.106/0001-03 | G136: 6070 | H136: 59 | I136: B | J136: 4374.56376 | K136: 6379.01156 | L136: 4374.56376 | M136: 6379.01156 | N136: 0.000845528466 | O136: 0.001236559333
A137: RIO VERMELHO | B137: 315600 | C137: Estadual | D137: DO3 | E137: COMPANHIA DE SANEAMENTO DE MINAS GERAIS COPASA MG | F137: 17.281.106/0001-03 | G137: 13645 | H137: 40.2 | I137: A | J137: 4648.4928 | K137: 9770.398548 | L137: 4648.4928 | M137: 9770.398548 | N137: 0.0008984742713 | O137: 0.00189397329
A138: SANTA BÁRBARA | B138: 315720 | C138: Estadual | D138: DO2 | E138: COMPANHIA DE SANEAMENTO DE MINAS GERAIS COPASA MG | F138: 17.281.106/0001-03 | G138: 27876 | H138: 88.9 | I138: B | J138: 27791.34624 | K138: 44141.27804 | L138: 27791.34624 | M138: 44141.27804 | N138: 0.005371592608 | O138: 0.008556703309
A139: SANTA BÁRBARA DO LESTE | B139: 315725 | C139: Estadual | D139: DO1 | E139: COMPANHIA DE SANEAMENTO DE MINAS GERAIS COPASA MG | F139: 17.281.106/0001-03 | G139: 7682 | H139: 49.4 | I139: B | J139: 5146.5456 | K139: 6759.49013 | L139: 5146.5456 | M139: 6759.49013 | N139: 0.0009947393718 | O139: 0.001310314384
A140: SANTA CRUZ DO ESCALVADO | B140: 315740 | C140: Estadual | D140: DO1 | E140: COMPANHIA DE SANEAMENTO DE MINAS GERAIS COPASA MG | F140: 17.281.106/0001-03 | G140: 4992 | H140: 28.4 | I140: E | J140: 6591.5136 | K140: 2525.257114 | L140: 6591.5136 | M140: 2525.257114 | N140: 0.001274027009 | O140: 0.0004895163181
A141: SANTA EFIGÊNIA DE MINAS | B141: 315750 | C141: Estadual | D141: DO4 | E141: COMPANHIA DE SANEAMENTO DE MINAS GERAIS COPASA MG | F141: 17.281.106/0001-03 | G141: 4600 | H141: 66.4 | I141: B | J141: 3206.583828 | K141: 5440.49728 | L141: 3206.583828 | M141: 5440.49728 | N141: 0.0006197778919 | O141: 0.001054630114
A142: SANTA MARGARIDA | B142: 315790 | C142: Estadual | D142: DO1 | E142: COMPANHIA DE SANEAMENTO DE MINAS GERAIS COPASA MG | F142: 17.281.106/0001-03 | G142: 15011 | H142: 50.8 | I142: C | J142: 13490.43338 | K142: 13582.69735 | L142: 13490.43338 | M142: 13582.69735 | N142: 0.002607470383 | O142: 0.002632980206
A143: SANTA MARIA DE ITABIRA | B143: 315800 | C143: Estadual | D143: DO2 | E143: COMPANHIA DE SANEAMENTO DE MINAS GERAIS COPASA MG | F143: 17.281.106/0001-03 | G143: 10552 | H143: 60 | I143: E | J143: 20397.4848 | K143: 11277.13344 | L143: 20397.4848 | M143: 11277.13344 | N143: 0.003942485464 | O143: 0.002186051001
A144: SANTA RITA DE MINAS | B144: 315935 | C144: Estadual | D144: DO1 | E144: COMPANHIA DE SANEAMENTO DE MINAS GERAIS - COPASA MG | F144: 17.281.106/0001-03 | G144: 6547 | H144: 59 | I144: E | J144: 16291.86048 | K144: 6880.294676 | L144: 16291.86048 | M144: 6880.294676 | N144: 0.003148938398 | O144: 0.001333732117
A145: SANTA RITA DO ITUETO | B145: 315950 | C145: Estadual | D145: DO5 | E145: COMPANHIA DE SANEAMENTO DE MINAS GERAIS COPASA MG | F145: 17.281.106/0001-03 | G145: 5697 | H145: 33.6 | I145: A | J145: 929.69856 | K145: 3409.55879 | L145: 929.69856 | M145: 3409.55879 | N145: 0.0001796948543 | O145: 0.0006609365265
A146: SANTANA DO MANHUAÇU | B146: 315890 | C146: Estadual | D146: DO6 | E146: COMPANHIA DE SANEAMENTO DE MINAS GERAIS COPASA MG | F146: 17.281.106/0001-03 | G146: 8582 | H146: 48.3 | I146: E | J146: 13281.408 | K146: 7383.262807 | L146: 13281.408 | M146: 7383.262807 | N146: 0.002567069347 | O146: 0.001431231539
A147: SANTO ANTÔNIO DO GRAMA | B147: 316010 | C147: Estadual | D147: DO1 | E147: COMPANHIA DE SANEAMENTO DE MINAS GERAIS COPASA MG SANTO ANTONIO DO GRAMA | F147: 17.281.106/0001-03 | G147: 4085 | H147: 82.4 | I147: C | J147: 5644.5984 | K147: 5995.590448 | L147: 5644.5984 | M147: 5995.590448 | N147: 0.001091004472 | O147: 0.001162233875
A148: SÃO DOMINGOS DAS DORES | B148: 316095 | C148: Estadual | D148: DO5 | E148: COMPANHIA DE SANEAMENTO DE MINAS GERAIS COPASA MG | F148: 17.281.106/0001-03 | G148: 5408 | H148: 36.3 | I148: E | J148: 7481.85984 | K148: 3496.680845 | L148: 7481.85984 | M148: 3496.680845 | N148: 0.001446115732 | O148: 0.0006778249721
A149: SÃO DOMINGOS DO PRATA | B149: 316100 | C149: Estadual | D149: DO2 | E149: COMPANHIA DE SANEAMENTO DE MINAS GERAIS COPASA MG SÃO DOMINGOS DO PRATA | F149: 17.281.106/0001-03 | G149: 17357 | H149: 55.6 | I149: E | J149: 26589.5784 | K149: 17189.45635 | L149: 26589.5784 | M149: =(K149/1.825)*$B$18 -> 17189.45635 | N149: 0.005139311408 | O149: 0.003332143621
A150: SÃO JOÃO DO ORIENTE | B150: 316260 | C150: Estadual | D150: DO5 | E150: COMPANHIA DE SANEAMENTO DE MINAS GERAIS COPASA MG | F150: 17.281.106/0001-03 | G150: 7874 | H150: 80.3 | I150: E | J150: 23242.464 | K150: 11262.21055 | L150: =(J150/0.021)*$A$18 -> 23242.464 | M150: 11262.21055 | N150: =J150/N$20 -> 0.004492371356 | O150: =K150/O$20 -> 0.002183158226
A151: SÃO JOÃO EVANGELISTA | B151: 316280 | C151: Estadual | D151: DO4 | E151: COMPANHIA DE SANEAMENTO DE MINAS GERAIS COPASA MG | F151: 17.281.106/0001-03 | G151: 15553 | H151: 65 | I151: E | J151: 27226.8864 | K151: 18006.95234 | L151: 27226.8864 | M151: 18006.95234 | N151: 0.00526249216 | O151: 0.003490613673
A152: SÃO JOSÉ DA SAFIRA | B152: 316300 | C152: Estadual | D152: DO4 | E152: COMPANHIA DE SANEAMENTO DE MINAS GERAIS COPASA MG | F152: 17.281.106/0001-03 | G152: 4075 | H152: 72.3 | I152: A | J152: 464.84928 | K152: 5247.81597 | L152: 464.84928 | M152: 5247.81597 | N152: 8.984742713e-05 | O152: 0.001017279206
A153: SÃO JOSÉ DO GOIABAL | B153: 316340 | C153: Estadual | D153: DO1 | E153: COMPANHIA DE SANEAMENTO DE MINAS GERAIS COPASA MG SÃO JOSÉ DO GOIABAL | F153: 17.281.106/0001-03 | G153: 5636 | H153: 65.5 | I153: E | J153: 9739.6992 | K153: 6575.442296 | L153: 9739.6992 | M153: 6575.442296 | N153: 0.001882517521 | O153: 0.00127463706
A154: SÃO JOSÉ DO MANTIMENTO | B154: 316360 | C154: Estadual | D154: DO6 | E154: COMPANHIA DE SANEAMENTO DE MINAS GERAIS COPASA MG | F154: 17.281.106/0001-03 | G154: 2592 | H154: 55.9 | I154: D | J154: 3030.374592 | K154: 2580.830554 | L154: 3030.374592 | M154: 2580.830554 | N154: 0.0005857196559 | O154: 0.0005002891244
A155: SÃO MIGUEL DO ANTA | B155: 316380 | C155: Estadual | D155: DO1 | E155: COMPANHIA DE SANEAMENTO DE MINAS GERAIS COPASA MG | F155: 17.281.106/0001-03 | G155: 6760 | H155: 59 | I155: C | J155: 7337.97792 | K155: 7104.13808 | L155: 7337.97792 | M155: 7104.13808 | N155: 0.001418305814 | O155: 0.001377123738
A156: SÃO PEDRO DO SUAÇUÍ | B156: 316410 | C156: Estadual | D156: DO4 | E156: COMPANHIA DE SANEAMENTO DE MINAS GERAIS COPASA MG | F156: 17.281.106/0001-03 | G156: 5570 | H156: 41.3 | I156: E | J156: 7055.563536 | K156: 4097.490292 | L156: 7055.563536 | M156: 4097.490292 | N156: 0.001363719937 | O156: 0.0007942907478
A157: SÃO PEDRO DOS FERROS | B157: 316400 | C157: Estadual | D157: DO1 | E157: COMPANHIA DE SANEAMENTO DE MINAS GERAIS COPASA MG SÃO PEDRO DOS FERROS | F157: 17.281.106/0001-03 | G157: 8356 | H157: 81.2 | I157: B | J157: 7081.26552 | K157: 12085.57025 | L157: 7081.26552 | M157: 12085.57025 | N157: 0.001368687691 | O157: 0.002342764947
A158: SÃO SEBASTIÃO DO ANTA | B158: 316447 | C158: Estadual | D158: DO5 | E158: COMPANHIA DE SANEAMENTO DE MINAS GERAIS COPASA MG | F158: 17.281.106/0001-03 | G158: 5739 | H158: 62.4 | I158: B | J158: 4803.44256 | K158: 6378.719443 | L158: 4803.44256 | M158: 6378.719443 | N158: 0.0009284234137 | O158: 0.001236502707
A159: SÃO SEBASTIÃO DO RIO PRETO | B159: 316480 | C159: Estadual | D159: DO3 | E159: PREFEITURA MUNICIPAL DE SÃO SEBASTIÃO DO RIO PRETO | G159: 1613 | H159: 54.3 | I159: B | J159: 953.064 | K159: 1560.080051 | L159: 953.064 | M159: 1560.080051 | N159: 0.0001842109948 | O159: 0.0003024185689
A160: SARDOÁ | B160: 316550 | C160: Estadual | D160: DO4 | E160: COMPANHIA DE SANEAMENTO DE MINAS GERAIS COPASA MG | F160: 17.281.106/0001-03 | G160: 5594 | H160: 35.7 | I160: B | J160: 2230.16976 | K160: 3557.15971 | L160: 2230.16976 | M160: 3557.15971 | N160: 0.0004310537278 | O160: 0.0006895486857
A161: SERICITA | B161: 316630 | C161: Estadual | D161: DO1 | E161: COMPANHIA DE SANEAMENTO DE MINAS GERAIS COPASA MG | F161: 17.281.106/0001-03 | G161: 7128 | H161: 49.4 | I161: E | J161: 9961.056 | K161: 6272.018438 | L161: 9961.056 | M161: 6272.018438 | N161: 0.00192530201 | O161: 0.001215818919
A162: SIMONÉSIA | B162: 316760 | C162: Estadual | D162: DO1 | E162: COMPANHIA DE SANEAMENTO DE MINAS GERAIS COPASA MG | F162: 17.281.106/0001-03 | G162: 18298 | H162: 62 | I162: B | J162: 12866.364 | K162: =G162*(H162/100)*0.976*1.825 -> 20207.28651 | L162: 12866.364 | M162: 20207.28651 | N162: 0.002486848429 | O162: 0.003917144293
A163: SOBRÁLIA | B163: 316770 | C163: Estadual | D163: DO4 | E163: COMPANHIA DE SANEAMENTO DE MINAS GERAIS COPASA MG | F163: 17.281.106/0001-03 | G163: 5830 | H163: 69.4 | I163: B | J163: 5146.5456 | K163: 7206.770824 | L163: 5146.5456 | M163: 7206.770824 | N163: 0.0009947393718 | O163: 0.001397018902
A164: TARUMIRIM | B164: 316840 | C164: Estadual | D164: DO5 | E164: COMPANHIA DE SANEAMENTO DE MINAS GERAIS COPASA MG | F164: 17.281.106/0001-03 | G164: 14293 | H164: 56.1 | I164: E | J164: 40598.37432 | K164: 14282.32599 | L164: 40598.37432 | M164: 14282.32599 | N164: 0.007846972417 | O164: 0.002768601895
A165: TEIXEIRAS | B165: 316850 | C165: Estadual | D165: DO1 | E165: COMPANHIA DE SANEAMENTO DE MINAS GERAIS COPASA MG | F165: 17.281.106/0001-03 | G165: 11355 | H165: 67.1 | I165: E | J165: 25234.6752 | K165: 13571.32795 | L165: 25234.6752 | M165: 13571.32795 | N165: 0.004877431758 | O165: 0.002630776269
A166: TIMÓTEO | B166: 316870 | C166: Estadual | D166: DO2 | E166: COMPANHIA DE SANEAMENTO DE MINAS GERAIS COPASA MG | F166: 17.281.106/0001-03 | G166: 81243 | H166: 99.9 | I166: E | J166: 264829.5518 | K166: 144565.3216 | L166: 264829.5518 | M166: 144565.3216 | N166: 0.05118702961 | O166: 0.02802371432
A167: TUMIRITINGA | B167: 316950 | C167: Estadual | D167: DO4 | E167: COMPANHIA DE SANEAMENTO DE MINAS GERAIS COPASA MG | F167: 17.281.106/0001-03 | G167: 6293 | H167: 68.7 | I167: E | J167: 16601.76 | K167: 7700.645929 | L167: 16601.76 | M167: 7700.645929 | N167: 0.003208836683 | O167: 0.001492755657
A168: UBAPORANGA | B168: 317005 | C168: Estadual | D168: DO5 | E168: COMPANHIA DE SANEAMENTO DE MINAS GERAIS COPASA MG | F168: 17.281.106/0001-03 | G168: 12040 | H168: 50.4 | I168: E | J168: 20054.92608 | K168: 10808.60659 | L168: 20054.92608 | M168: 10808.60659 | N168: 0.003876274713 | O168: 0.002095227957
A169: URUCÂNIA | B169: 317050 | C169: Estadual | D169: DO1 | E169: COMPANHIA DE SANEAMENTO DE MINAS GERAIS COPASA MG URUCANIA | F169: 17.281.106/0001-03 | G169: 10291 | H169: 77.2 | I169: B | J169: 9521.10936 | K169: 14151.01414 | L169: 9521.10936 | M169: 14151.01414 | N169: 0.001840267838 | O169: 0.002743147342
A170: VARGEM ALEGRE | B170: 317057 | C170: Estadual | D170: DO1 | E170: COMPANHIA DE SANEAMENTO DE MINAS GERAIS COPASA MG | F170: 17.281.106/0001-03 | G170: 6461 | H170: 73.8 | I170: E | J170: 16601.76 | K170: 8493.149902 | L170: 16601.76 | M170: 8493.149902 | N170: 0.003208836683 | O170: 0.001646381054
A171: VIRGINÓPOLIS | B171: 317180 | C171: Estadual | D171: DO4 | E171: COMPANHIA DE SANEAMENTO DE MINAS GERAIS COPASA MG - VIRGINÓPOLIS | F171: 17.281.106/0001-03 | G171: 10572 | H171: 58.7 | I171: B | J171: 6518.95776 | K171: 11053.70684 | L171: 6518.95776 | M171: 11053.70684 | N171: 0.001260003204 | O171: 0.002142740176
A172: VIRGOLÂNDIA | B172: 317190 | C172: Estadual | D172: DO4 | E172: COMPANHIA DE SANEAMENTO DE MINAS GERAIS COPASA MG VIRGOLÂNDIA | F172: 17.281.106/0001-03 | G172: 5658 | H172: 60.1 | I172: B | J172: 4563.127472 | K172: 6056.89579 | L172: 4563.127472 | M172: 6056.89579 | N172: 0.0008819746113 | O172: 0.0011741178

Sheet Receita e Custo. San.
A1: Arrecadação Total | B1: Despesas Totais com Serviço | C1: IGP-M Dez 2010 - Set 2013 | D1: Valores Corrigidos Inflação
D2: Arrecadação Total | E2: Despesas Totais com Serviço
A3: =SUM(E6:E149) -> 298386616.7 | B3: =SUM(F6:F149) -> 300230620.7 | C3: 1.175015841 | D3: =A3*$C$3 -> 350609001.4 | E3: =B3*$C$3 -> 352775735.4
A5: Código | B5: Município | C5: UPGRH | D5: Prestador | E5: Arrecadação Total | F5: Despesas Totais
A6: 310030 | B6: Abre Campo (MG) | C6: DO1 | D6: =VLOOKUP(A6,Dados,6,0) -> SAAE | E6: 918374.84 | F6: 857612.11
A7: 310040 | B7: Acaiaca (MG) | C7: DO1 | D7: PMA | E7: 14632 | F7: 163082.68
A8: 310050 | B8: Açucena (MG) | C8: DO3 | D8: COPASA | E8: 409243.67 | F8: 491370.73
A9: 320010 | B9: Afonso Claúdio (ES) | C9: ES | D9: CESAN | E9: 1748434.75 | F9: 1521160.58
A10: 310060 | B10: Água Boa (MG) | C10: DO4 | D10: COPASA | E10: 628346.04 | F10: 868016.62
A11: 320030 | B11: Águia Branca (ES) | C11: ES | D11: SAAE | E11: 651453.72 | F11: 552782.12
A12: 310110 | B12: Aimorés (MG) | C12: DO5 | D12: SAAE | E12: 3327749 | F12: 3066137
A13: 310180 | B13: Alpercata (MG) | C13: DO4 | D13: COPASA | E13: 651480.92 | F13: 846062.36
A14: 315350 | B14: Alto Jequitibá (MG) | C14: DO5 | D14: PMAJ | E14: 15000 | F14: 14250
A15: 310210 | B15: Alto Rio Doce (MG) | C15: DO1 | D15: PMARD | E15: 0 | F15: 89807.79
A16: 320050 | B16: Alto Rio Novo (ES) | C16: ES | D16: CESAN | E16: 570420.29 | F16: 449882.01
A17: 310220 | B17: Alvarenga (MG) | C17: DO5 | D17: COPASA | E17: 336380.2 | F17: 371660.74
A18: 310230 | B18: Alvinópolis (MG) | C18: DO1 | D18: COPASA | E18: 1095470.25 | F18: 1143731.83
A19: 310240 | B19: Alvorada de Minas (MG) | C19: DO3 | D19: COPASA | E19: 126850.73 | F19: 213317.94
A20: 310250 | B20: Amparo do Serra (MG) | C20: DO1 | D20: COPASA | E20: 312808.16 | F20: 395334.56
A21: 310300 | B21: Antônio Dias (MG) | C21: DO2 | D21: COPASA | E21: 507403.65 | F21: 582767.02
A22: 310370 | B22: Araponga (MG) | C22: DO1 | D22: COPASA | E22: 309290.19 | F22: 359851.05
A23: 320080 | B23: Baixo Guandu (ES) | C23: ES | D23: SAAE | E23: 3480764.7 | F23: 2839447.59
A24: 310540 | B24: Barão de Cocais (MG) | C24: DO2 | D24: COPASA | E24: 3493642.57 | F24: 3213073.9
A25: 310570 | B25: Barra Longa (MG) | C25: DO1 | D25: COPASA | E25: 304703.78 | F25: 448011
A26: 310600 | B26: Bela Vista de Minas (MG) | C26: DO2 | D26: COPASA | E26: 1074642.67 | F26: 1306616.45
A27: 310770 | B27: Bom Jesus do Amparo (MG) | C27: DO2 | D27: COPASA | E27: 434490.21 | F27: 447576.46
A28: 310780 | B28: Bom Jesus do Galho (MG) | C28: DO1 | D28: COPASA | E28: 1091999.89 | F28: 1412679.65
A29: 310870 | B29: Brás Pires (MG) | C29: DO1 | D29: PMBP | E29: 0 | F29: 284000
A30: 310880 | B30: Braúnas (MG) | C30: DO3 | D30: COPASA | E30: 221786.98 | F30: 232483.08
A31: 320115 | B31: Brejetuba (ES) | C31: ES | D31: CESAN | E31: 212598.69 | F31: 197641.52
A32: 310925 | B32: Bugre (MG) | C32: DO4 | D32: COPASA | E32: 135254.89 | F32: 139944.27
A33: 311020 | B33: Cajuri (MG) | C33: DO1 | D33: COPASA | E33: 251168.45 | F33: 273804.45
A34: 311080 | B34: Campanário (MG) | C34: DO4 | D34: COPASA | E34: 353232.89 | F34: 338887.63
A35: 311170 | B35: Canaã (MG) | C35: DO1 | D35: COPASA | E35: 197779.28 | F35: 238082.74
A36: 311205 | B36: Cantagalo (MG) | C36: DO4 | D36: COPASA | E36: 161253.32 | F36: 190773.6
A37: 311220 | B37: Capela Nova (MG) | C37: DO1 | D37: COPASA | E37: 282829.77 | F37: 314798.28
A38: 311265 | B38: Capitão Andrade (MG) | C38: DO4 | D38: =VLOOKUP(A38,Dados,6,0) -> PMCA | E38: 47396.18 | F38: 161100
A39: 311290 | B39: Caputira (MG) | C39: DO1 | D39: COPASA | E39: 450113.95 | F39: 532056.37
A40: 311320 | B40: Carandaí (MG) | C40: DO1 | D40: COPASA | E40: 2376879.23 | F40: 2860749.57
A41: 311340 | B41: Caratinga (MG) | C41: DO5 | D41: COPASA | E41: 12717741.31 | F41: 13477320.93
A42: 311535 | B42: Catas Altas (MG) | C42: DO2 | D42: PMCA | E42: 15724.72 | F42: 25579.8
A43: 311540 | B43: Catas Altas da Noruega (MG) | C43: DO1 | D43: PMCAN | E43: 0 | F43: 21200
A44: 311630 | B44: Cipotânea (MG) | C44: DO1 | D44: PMC | E44: 0 | F44: 48729.4
A45: 311670 | B45: Coimbra (MG) | C45: DO1 | D45: COPASA | E45: 535791.56 | F45: 649085.69
A46: 320150 | B46: Colatina (ES) | C46: ES | D46: SANEAR | E46: 16518845.3 | F46: 9646578.55
A47: 311680 | B47: Coluna (MG) | C47: DO4 | D47: COPASA | E47: 461043.15 | F47: 563803.89
A48: 311740 | B48: Conceição de Ipanema (MG) | C48: DO5 | D48: PMCI | E48: 2625 | F48: 96638.5
A49: 311750 | B49: Conceição do Mato Dentro (MG) | C49: DO3 | D49: COPASA | E49: 1858479.19 | F49: 2591435.13
A50: 311810 | B50: Congonhas do Norte (MG) | C50: DO3 | D50: PMCN | E50: 0 | F50: 50400
A51: 311840 | B51: Conselheiro Pena (MG) | C51: DO5 | D51: SAAE | E51: 2859851.18 | F51: 2709401.14
A52: 311920 | B52: Coroaci (MG) | C52: DO4 | D52: COPASA | E52: 511428.07 | F52: 626157.41
A53: 311940 | B53: Coronel Fabriciano (MG) | C53: DO2 | D53: COPASA | E53: 20086840.24 | F53: 21017045.45
A54: 312000 | B54: Córrego Novo (MG) | C54: DO1 | D54: COPASA | E54: 281154.96 | F54: 289443.01
A55: 312083 | B55: Cuparaque (MG) | C55: DO5 | D55: COPASA | E55: 113682.47 | F55: 130779.57
A56: 312150 | B56: Desterro do Melo (MG) | C56: DO1 | D56: COPASA | E56: 265267.91 | F56: 346487.93
A57: 312180 | B57: Dionísio (MG) | C57: DO1 | D57: COPASA | E57: 473689.39 | F57: 569586.54
A58: 312190 | B58: Divinésia (MG) | C58: DO1 | D58: COPASA | E58: 298326.59 | F58: 351188.01
A59: 312210 | B59: Divino das Laranjeiras (MG) | C59: DO4 | D59: COPASA | E59: 482865.04 | F59: 656621.67
A60: 312250 | B60: Dom Cavati (MG) | C60: DO5 | D60: COPASA | E60: 609625.71 | F60: 689266.68
A61: 312260 | B61: Dom Joaquim (MG) | C61: DO3 | D61: COPASA | E61: 411838.25 | F61: 369882.39
A62: 312270 | B62: Dom Silvério (MG) | C62: DO1 | D62: PMDS | E62: 8000 | F62: 49600
A63: 312310 | B63: Dores de Guanhães (MG) | C63: DO3 | D63: PMD | E63: 208255.94 | F63: 208850.83
A64: 312330 | B64: Dores do Turvo (MG) | C64: DO1 | D64: COPASA | E64: 198482.04 | F64: 237682.43
A65: 312352 | B65: Durandé (MG) | C65: DO5 | D65: COPASA | E65: 223036.21 | F65: 272912.7
A66: 312370 | B66: Engenheiro Caldas (MG) | C66: DO4 | D66: COPASA | E66: 830942.28 | F66: 930443.87
A67: 312385 | B67: Entre Folhas (MG) | C67: DO1 | D67: COPASA | E67: 504456.7 | F67: 536980.41
A68: 312400 | B68: Ervália (MG) | C68: DO1 | D68: COPASA | E68: 1272403.35 | F68: 1300539.99
A69: 312580 | B69: Fernandes Tourinho (MG) | C69: DO4 | D69: COPASA | E69: 213675.55 | F69: 314242.88
A70: 312590 | B70: Ferros (MG) | C70: DO3 | D70: =VLOOKUP(A70,Dados,6,0) -> COPASA | E70: 542661.74 | F70: 456566.29
A71: 312675 | B71: Franciscópolis (MG) | C71: DO4 | D71: COPASA | E71: 170627.28 | F71: 175679.2
A72: 312690 | B72: Frei Inocêncio (MG) | C72: DO4 | D72: COPASA | E72: 941950.24 | F72: 895949.09
A73: 312737 | B73: Goiabeira (MG) | C73: DO5 | D73: PMG | E73: 0 | F73: 222501.84
A74: 312750 | B74: Gonzaga (MG) | C74: DO4 | D74: PMG | E74: 208882 | F74: 171994
A75: 312770 | B75: Governador Valadares (MG) | C75: DO4 | D75: SAAE | E75: 33790439.14 | F75: 39939762.6
A76: 312800 | B76: Guanhães (MG) | C76: DO4 | D76: SAAE | E76: 3315135.09 | F76: 2523128.65
A77: 312820 | B77: Guaraciaba (MG) | C77: DO1 | D77: COPASA | E77: 408040.68 | F77: 579358.47
A78: 312930 | B78: Iapu (MG) | C78: DO4 | D78: COPASA | E78: 801185.61 | F78: 892660.69
A79: 320245 | B79: Ibatiba (ES) | C79: ES | D79: CESAN | E79: 982069.13 | F79: 1046220.7
A80: 313055 | B80: Imbé de Minas (MG) | C80: DO5 | D80: COPASA | E80: 182777.62 | F80: 177745.76
A81: 313090 | B81: Inhapim (MG) | C81: DO5 | D81: COPASA | E81: 1768907.01 | F81: 1577011.46
A82: 313115 | B82: Ipaba (MG) | C82: DO5 | D82: PMI | E82: 540 | F82: 77140.6
A83: 313120 | B83: Ipanema (MG) | C83: DO5 | D83: SAAE | E83: 1469460.49 | F83: 1227638.15
A84: 313130 | B84: Ipatinga (MG) | C84: DO2 | D84: COPASA | E84: 59418551.01 | F84: 56300821.2
A85: 313170 | B85: Itabira (MG) | C85: DO3 | D85: SAAE-Itabira | E85: 15882410.63 | F85: 16744088.47
A86: 320270 | B86: Itaguaçu (ES) | C86: ES | D86: SAAE | E86: 774687 | F86: 661156.04
A87: 313270 | B87: Itambacuri (MG) | C87: DO4 | D87: SAAE | E87: 1680787 | F87: 1311937.88
A88: 313320 | B88: Itanhomi (MG) | C88: DO5 | D88: COPASA | E88: 1352060.88 | F88: 1228420.79
A89: 313390 | B89: Itaverava (MG) | C89: DO1 | D89: COPASA | E89: 230989.39 | F89: 248024.73
A90: 313410 | B90: Itueta (MG) | C90: DO5 | D90: COPASA | E90: 472679.74 | F90: 517123.25
A91: 320305 | B91: Jaguaré (ES) | C91: ES | D91: SAAE | E91: 1375387.59 | F91: 1595477.86
A92: 313550 | B92: Jequeri (MG) | C92: DO1 | D92: DEMAE | E92: 559129.63 | F92: 508787.28
A93: 313610 | B93: Joanésia (MG) | C93: DO3 | D93: PM | E93: 0 | F93: 82665.24
A94: 313620 | B94: João Monlevade (MG) | C94: DO2 | D94: DAE | E94: 9609102.53 | F94: 7295505.87
A95: 320313 | B95: João Neiva (ES) | C95: ES | D95: SAAE | E95: 1552304 | F95: 1122166
A96: 313655 | B96: José Raydan (MG) | C96: DO4 | D96: COPASA | E96: 221254.92 | F96: 212058.55
A97: 313770 | B97: Lajinha (MG) | C97: DO5 | D97: SAAE | E97: 1110301.22 | F97: 740534.4
A98: 313790 | B98: Lamim (MG) | C98: DO1 | D98: PML | E98: 0 | F98: 98320
A99: 320316 | B99: Laranja da Terra (ES) | C99: ES | D99: CESAN | E99: 389161.8 | F99: 177696.21
A100: 320320 | B100: Linhares (ES) | C100: ES | D100: SAAE | E100: 10652670.74 | F100: 8484228
A101: 313920 | B101: Malacacheta (MG) | C101: DO4 | D101: COPASA | E101: 1796023.91 | F101: 1915231.98
A102: 313940 | B102: Manhuaçu (MG) | C102: DO5 | D102: =VLOOKUP(A102,Dados,6,0) -> SAAE | E102: 6672539.44 | F102: 5450937.35
A103: 313950 | B103: Manhumirim (MG) | C103: DO5 | D103: S A A E | E103: 692728.38 | F103: 764181.48
A104: 320330 | B104: Mantenópolis (ES) | C104: ES | D104: CESAN | E104: 1182037.04 | F104: 796410.76
A105: 314000 | B105: Mariana (MG) | C105: DO1 | D105: SAAE | E105: 0 | F105: 3486145.37
A106: 314010 | B106: Marilac (MG) | C106: DO4 | D106: COPASA | E106: 404924.36 | F106: 528135.76
A107: 320335 | B107: Marilândia (ES) | C107: ES | D107: SAAE | E107: 598415.88 | F107: 549664.49
A108: 314030 | B108: Marliéria (MG) | C108: DO2 | D108: PM | E108: 0 | F108: 207942
A109: 314053 | B109: Martins Soares (MG) | C109: DO5 | D109: COPASA | E109: 278507.86 | F109: 306126.57
A110: 314060 | B110: Materlândia (MG) | C110: DO4 | D110: COPASA | E110: 258452.14 | F110: 390409.59
A111: 317150 | B111: Mathias Lobato (MG) | C111: DO4 | D111: COPASA | E111: 328652.41 | F111: 303533.98
A112: 314090 | B112: Matipó (MG) | C112: DO1 | D112: COPASA | E112: 1531996.15 | F112: 1531360.85
A113: 314160 | B113: Mercês (MG) | C113: DO1 | D113: COPASA | E113: 881740.9 | F113: 739534.94
A114: 314400 | B114: Mutum (MG) | C114: DO5 | D114: COPASA | E114: 1744727.73 | F114: 1628291.47
A115: 314420 | B115: Nacip Raydan (MG) | C115: DO4 | D115: COPASA | E115: 239681.39 | F115: 298790.51
A116: 314435 | B116: Naque (MG) | C116: DO4 | D116: COPASA | E116: 744513.99 | F116: 728778.13
A117: 320390 | B117: Nova Venécia (ES) | C117: ES | D117: CESAN | E117: 3663150.64 | F117: 3333660.58
A118: 314590 | B118: Ouro Branco (MG) | C118: DO1 | D118: COPASA | E118: 8925086.44 | F118: 9065378.84
A119: 314610 | B119: Ouro Preto (MG) | C119: DO1 | D119: SEMAE-OP | E119: 872090.74 | F119: 5607536
A120: 320400 | B120: Pancas (ES) | C120: ES | D120: CESAN | E120: 922514.9 | F120: 757155.72
A121: 314830 | B121: Paula Cândido (MG) | C121: DO1 | D121: COPASA | E121: 499379.29 | F121: 538188.29
A122: 314840 | B122: Paulistas (MG) | C122: DO4 | D122: COPASA | E122: 262406.06 | F122: 454400.88
A123: 314860 | B123: Peçanha (MG) | C123: DO4 | D123: COPASA | E123: 1101558.51 | F123: 1158397.24
A124: 314875 | B124: Pedra Bonita (MG) | C124: DO1 | D124: PMPB | E124: 0 | F124: 51083.7
A125: 314880 | B125: Pedra do Anta (MG) | C125: DO1 | D125: COPASA | E125: 228995.1 | F125: 259338.82
A126: 314995 | B126: Periquito (MG) | C126: DO4 | D126: COPASA | E126: 798648.07 | F126: 986125.46
A127: 315015 | B127: Piedade de Caratinga (MG) | C127: DO5 | D127: COPASA | E127: 418758.57 | F127: 510369.32
A128: 315020 | B128: Piedade de Ponte Nova (MG) | C128: DO1 | D128: COPASA | E128: 373160.72 | F128: 391269.87
A129: 315053 | B129: Pingo d'Água (MG) | C129: DO1 | D129: COPASA | E129: 494583.52 | F129: 525191.23
A130: 315080 | B130: Piranga (MG) | C130: DO1 | D130: COPASA | E130: 735414.5 | F130: 790466.93
A131: 315190 | B131: Pocrane (MG) | C131: DO5 | D131: PMP | E131: 0 | F131: 174520
A132: 315210 | B132: Ponte Nova (MG) | C132: DO1 | D132: DMAES | E132: 7648378.86 | F132: 6101079.47
A133: 315230 | B133: Porto Firme (MG) | C133: DO1 | D133: COPASA | E133: 549873.83 | F133: 563752.06
A134: 315310 | B134: Presidente Bernardes (MG) | C134: DO1 | D134: =VLOOKUP(A134,Dados,6,0) -> PMPB | E134: 5000 | F134: 11642.55
A135: 315400 | B135: Raul Soares (MG) | C135: DO1 | D135: SAAE | E135: 2251052 | F135: 1839134
A136: 315415 | B136: Reduto (MG) | C136: DO5 | D136: PMR | E136: 39309.63 | F136: 42685.71
A137: 315430 | B137: Resplendor (MG) | C137: DO5 | D137: COPASA | E137: 2434727.74 | F137: 2373356.92
A138: 315440 | B138: Ressaquinha (MG) | C138: DO1 | D138: COPASA | E138: 292178.26 | F138: 405244.07
A139: 320435 | B139: Rio Bananal (ES) | C139: ES | D139: SAAE | E139: 948249.68 | F139: 848374.15
A140: 315490 | B140: Rio Casca (MG) | C140: DO1 | D140: COPASA | E140: 1945490.05 | F140: 2540433.68
A141: 315500 | B141: Rio Doce (MG) | C141: DO1 | D141: PMRD | E141: 9784.26 | F141: 102100.84
A142: 315520 | B142: Rio Espera (MG) | C142: DO1 | D142: COPASA | E142: 224763.67 | F142: 288396.03
A143: 315570 | B143: Rio Piracicaba (MG) | C143: DO2 | D143: COPASA | E143: 1772532.82 | F143: 1789843.54
A144: 315600 | B144: Rio Vermelho (MG) | C144: DO4 | D144: COPASA | E144: 542469.92 | F144: 641435.48
A145: 315680 | B145: Sabinópolis (MG) | C145: DO4 | D145: SAAE | E145: 1032400.78 | F145: 1150585.24
A146: 315720 | B146: Santa Bárbara (MG) | C146: DO2 | D146: COPASA | E146: 3161824.55 | F146: 2886304.77
A147: 315725 | B147: Santa Bárbara do Leste (MG) | C147: DO5 | D147: COPASA | E147: 375346.21 | F147: 383498.38
A148: 315740 | B148: Santa Cruz do Escalvado (MG) | C148: DO1 | D148: COPASA | E148: 191109.08 | F148: 192692.95
A149: 315750 | B149: Santa Efigênia de Minas (MG) | C149: DO4 | D149: COPASA | E149: 289334.6 | F149: 352695
A150: 315790 | B150: Santa Margarida (MG) | C150: DO1 | D150: COPASA | E150: 878865 | F150: 829910.22
A151: 315800 | B151: Santa Maria de Itabira (MG) | C151: DO3 | D151: COPASA | E151: 936892.54 | F151: 906958.6
A152: 315820 | B152: Santa Maria do Suaçuí (MG) | C152: DO4 | D152: COPASA | E152: 1152843.43 | F152: 1412644.25
A153: 315935 | B153: Santa Rita de Minas (MG) | C153: DO5 | D153: COPASA | E153: 510652.28 | F153: 541694.01
A154: 315950 | B154: Santa Rita do Itueto (MG) | C154: DO5 | D154: PMSRI | E154: 0 | F154: 65000
A155: 320460 | B155: Santa Teresa (ES) | C155: ES | D155: CESAN | E155: 1863602.01 | F155: 1345270.79
A156: 315890 | B156: Santana do Manhuaçu (MG) | C156: DO5 | D156: COPASA | E156: 401344.53 | F156: 481596.77
A157: 315895 | B157: Santana do Paraíso (MG) | C157: DO3 | D157: COPASA | E157: 3987327.06 | F157: 4300926.73
A158: 316010 | B158: Santo Antônio do Grama (MG) | C158: DO1 | D158: COPASA | E158: 407986.01 | F158: 441174.45
A159: 316095 | B159: São Domingos das Dores (MG) | C159: DO5 | D159: COPASA | E159: 184427.47 | F159: 207773.59
A160: 320465 | B160: São Domingos do Norte (ES) | C160: ES | D160: PMSDN | E160: 388039.03 | F160: 382998.72
A161: 316100 | B161: São Domingos do Prata (MG) | C161: DO2 | D161: PMSDP | E161: 0 | F161: 291534.07
A162: 320470 | B162: São Gabriel da Palha (ES) | C162: ES | D162: CESAN | E162: 2925387.12 | F162: 3029892.62
A163: 316150 | B163: São Geraldo (MG) | C163: DO1 | D163: COPASA | E163: 776425.61 | F163: 811438.77
A164: 316160 | B164: São Geraldo da Piedade (MG) | C164: DO4 | D164: PMSGP | E164: 0 | F164: 71424.4
A165: 316165 | B165: São Geraldo do Baixio (MG) | C165: DO5 | D165: PMSGB | E165: 96000 | F165: 141000
A166: 316255 | B166: São João do Manhuaçu (MG) | C166: DO5 | D166: =VLOOKUP(A166,Dados,6,0) -> COPASA | E166: 610874.39 | F166: 810542.53
A167: 316260 | B167: São João do Oriente (MG) | C167: DO4 | D167: COPASA | E167: 731667.64 | F167: 767967.4
A168: 316280 | B168: São João Evangelista (MG) | C168: DO4 | D168: PMSJE | E168: 0 | F168: 62000
A169: 316300 | B169: São José da Safira (MG) | C169: DO4 | D169: COPASA | E169: 271084.69 | F169: 396570.34
A170: 316340 | B170: São José do Goiabal (MG) | C170: DO1 | D170: COPASA | E170: 488200.87 | F170: 494344.8
A171: 316350 | B171: São José do Jacuri (MG) | C171: DO4 | D171: COPASA | E171: 354036.48 | F171: 616243.14
A172: 316360 | B172: São José do Mantimento (MG) | C172: DO5 | D172: COPASA | E172: 206801.26 | F172: 210188.85
A173: 320490 | B173: São Mateus (ES) | C173: ES | D173: SAAE | E173: 8671547 | F173: 8017414
A174: 316380 | B174: São Miguel do Anta (MG) | C174: DO1 | D174: COPASA | E174: 405359.65 | F174: 408612.97
A175: 316410 | B175: São Pedro do Suaçuí (MG) | C175: DO4 | D175: COPASA | E175: 358831.03 | F175: 449522.87
A176: 316400 | B176: São Pedro dos Ferros (MG) | C176: DO1 | D176: COPASA | E176: 789244.06 | F176: 884527.43
A177: 320495 | B177: São Roque do Canaã (ES) | C177: ES | D177: CESAN | E177: 569043.85 | F177: 564537.12
A178: 316447 | B178: São Sebastião do Anta (MG) | C178: DO5 | D178: COPASA | E178: 322326.9 | F178: 343364.84
A179: 316450 | B179: São Sebastião do Maranhão (MG) | C179: DO4 | D179: COPASA | E179: 424152.83 | F179: 576266.34
A180: 316480 | B180: São Sebastião do Rio Preto (MG) | C180: DO3 | D180: PMSSRP | E180: 19272 | F180: 51208.32
A181: 316550 | B181: Sardoá (MG) | C181: DO4 | D181: COPASA | E181: 278219.08 | F181: 251086.64
A182: 316570 | B182: Senador Firmino (MG) | C182: DO1 | D182: SAAE | E182: 604649 | F182: 464661
A183: 316600 | B183: Senhora de Oliveira (MG) | C183: DO1 | D183: SAAE | E183: 200854.65 | F183: 201638.25
A184: 316610 | B184: Senhora do Porto (MG) | C184: DO3 | D184: COPASA | E184: 147513.4 | F184: 202430.13
A185: 316620 | B185: Senhora dos Remédios (MG) | C185: DO1 | D185: PMSR | E185: 0 | F185: 270698.41
A186: 316630 | B186: Sericita (MG) | C186: DO1 | D186: COPASA | E186: 352688.51 | F186: 395984.17
A187: 316650 | B187: Serra Azul de Minas (MG) | C187: DO4 | D187: COPASA | E187: 281954.98 | F187: 346947.57
A188: 316710 | B188: Serro (MG) | C188: DO3 | D188: COPASA | E188: 1753030.82 | F188: 2184320.61
A189: 316760 | B189: Simonésia (MG) | C189: DO5 | D189: COPASA | E189: 730474.37 | F189: 782435.6
A190: 316770 | B190: Sobrália (MG) | C190: DO4 | D190: COPASA | E190: 474276.75 | F190: 526617.22
A191: 320501 | B191: Sooretama (ES) | C191: ES | D191: SAAE | E191: 973238.36 | F191: 913808.07
A192: 316805 | B192: Taparuba (MG) | C192: DO5 | D192: SAAE | E192: 133210.31 | F192: 110029.95
A193: 316840 | B193: Tarumirim (MG) | C193: DO5 | D193: COPASA | E193: 1110338.05 | F193: 1232069.45
A194: 316850 | B194: Teixeiras (MG) | C194: DO1 | D194: COPASA | E194: 958480.04 | F194: 1181539.03
A195: 316870 | B195: Timóteo (MG) | C195: DO2 | D195: COPASA | E195: 11513184.1 | F195: 11813458.75
A196: 316950 | B196: Tumiritinga (MG) | C196: DO5 | D196: COPASA | E196: 699852.17 | F196: 786577.93
A197: 316990 | B197: Ubá (MG) | C197: DO1 | D197: COPASA | E197: 13154921.18 | F197: 12483358.95
A198: 317005 | B198: Ubaporanga (MG) | C198: DO5 | D198: =VLOOKUP(A198,Dados,6,0) -> COPASA | E198: 636189.77 | F198: 729262.13
A199: 317050 | B199: Urucânia (MG) | C199: DO1 | D199: COPASA | E199: 810987.87 | F199: 1019749.35
A200: 317057 | B200: Vargem Alegre (MG) | C200: DO5 | D200: COPASA | E200: 709653.25 | F200: 667510.66
A201: 317115 | B201: Vermelho Novo (MG) | C201: DO1 | D201: SAAE | E201: 229613 | F201: 137314
... 4 more rows

Sheet Receita e Custo Ind.
B2: Receita Total | C2: Custo Total | D2: IGP-M dez 2009 - set 2013 | E2: Valores Corrigidos Inflação
E3: Receita Total | F3: Custo Total
B4: =SUM(D9:D33) -> 14086188720 | C4: =SUM(B8:B33) -> 14076504814 | D4: 1.308050874 | E4: =B4*$D$4 -> 1.842545147e+10 | F4: =C4*$D$4 -> 1.841278442e+10
B6: =SUM(B8:B33) -> 14076504814 | C6: =SUM(C8:C33) -> 15813048418 | D6: =SUM(D8:D33) -> 14861469018
B7: Custos e Despesas | C7: Valor Bruto da Produção Industrial | D7: Receita líquida de vendas
A8: Frabric. de estru. metálicas para edifícios, pontes, torres de transmissao, andaimes e outros fins | B8: 598831989 | C8: 781720043 | D8: 775280298
A9: Fabricação de móveis com predominância de madeira | B9: 700168127 | C9: 653916228 | D9: 651172157
A10: Abate de reses, preparação de produtos de carne | B10: 454394749 | C10: 478839854 | D10: 489615965
A11: Fab. Laticínios | B11: 295243631 | C11: 315088553 | D11: 250678015
A12: Fab. Gases Ind. | B12: 201149196 | C12: 301114235 | D12: 306952617
A13: Prod. Ferro Gusa | B13: 268555195 | C13: 269141049 | D13: 280430865
A14: serv. Usinagem | B14: 89053307 | C14: 267018878 | D14: 267013023
A15: Prep. Leite (laticínio) | B15: 242560871 | C15: 251041083 | D15: 241675010
A16: Prod. Ferro Ligas | B16: 198725841 | C16: 236760318 | D16: 260071883
A17: Trab. com pedras (não associado à extr.) | B17: 162354076 | C17: 213845539 | D17: 202835884
A18: Fab. Cimento | B18: 215597937 | C18: 182619941 | D18: 128876477
A19: Prod. Relaminados e perfilados de aço | B19: 169996984 | C19: 179174724 | D19: 180356972
A20: Fab. Fert Fosfatados | B20: 166178239 | C20: 166774464 | D20: 178377120
A21: Extração de Pedra areia e argila | B21: 126124337 | C21: 130832193 | D21: 127864593
A22: Confecção de peças de vestuário | B22: 131877581 | C22: 130648537 | D22: 129341636
A23: Fabricação de colchões | B23: 122177641 | C23: 121696515 | D23: 121007738
A24: Fab outras máq. e equip | B24: 99364886 | C24: 117129510 | D24: 116717638
A25: fab artefatos concreto | B25: 80683934 | C25: 89397064 | D25: 90164563
A26: Man e reparaçao de maq e equip | B26: 74873429 | C26: 84902941 | D26: 85991300
A27: reciclagem sucatas | B27: 69060494 | C27: 80685566 | D27: 88904554
A28: abate de aves | B28: 60469281 | C28: 61930159 | D28: 67276849
A29: Extração Min Ferro | B29: 9355300917 | C29: 10502904924 | D29: 9662679991
A30: Extração Pedra Areia e Argila | B30: 126124337 | C30: 130832193 | D30: 127864593
A31: Extração Min ñ metalico | B31: 30195498 | C31: 33105384 | D31: 30319277
A32: Extração Min Metais Precisos | B32: 25860113 | C32: 22191680
A33: Extração Alumínio | B33: 11582224 | C33: 9736843

Sheet Receita e Custo Irrig.
B2: Custo | C2: Receita | D2: IGP-M Dez 2009 - Set 2013 | E2: Valores Atualizados Inflação
E3: Custo | F3: Receita
B4: =SUM(F7:F15) -> 527510763 | C4: =SUM(G7:G15) -> 764735171.1 | D4: 1.308050874 | E4: =B4*$D4 -> 690010914.6 | F4: =C4*$D4 -> 1000312509
B7: Culturas Permanentes | C7: Custo (R$/ha/ano) | D7: Receita (R$/ha/ano) | E7: Área Irrigada | F7: Custo | G7: Receita
B8: Café Robusta | C8: 10015.7887 | D8: 15273.4287 | E8: 45552.58307 | F8: =AVERAGE(C8:C9)*E8 -> 390837885.2 | G8: =AVERAGE(D8:D9)*E8 -> 648290229.6
B9: Café Arábica | C9: 7144.0674 | D9: 13189.9508
B10: Mamão | C10: 15420.6668 | D10: 32314.6153 | E10: 491.3637684 | F10: =C10*$E10 -> 7577156.949 | G10: =D10*$E10 -> 15878231.15
B11: Culturas Temporárias | C11: Custo (R$/ha/safra) | D11: Receita (R$/ha/safra) | E11: Área Irrigada | F11: Custo | G11: Receita
B12: Cana-de-açúcar | C12: 4158.1307 | D12: 2985.3644 | E12: 5913.205683 | F12: =C12*$E12 -> 24587882.09 | G12: =D12*$E12 -> 17653073.74
B13: Feijão | C13: 4060.5173 | D13: 3224.3905 | E13: 8436.915482 | F13: 34258241.27 | G13: 27203910.13
B14: Milho | C14: 3310.8096 | D14: 2147.9774 | E14: 17581.44896 | F14: 58208830.01 | G14: 37764555.03
B15: Batata | C15: 15860.1454 | D15: 23637.4492 | E15: 759.1839249 | F15: =C15*$E15 -> 12040767.43 | G15: =D15*$E15 -> 17945171.46
